Workbook

Sheet Title
A16: Repair Order Analysis
A17: And Summary | K17: =TODAY() -> 2017-07-31
A30: Dealership
A33: Student
A36: Class and ID Number | H36: Computer Application by George A. Parker Management Instructor NADA Dealer Academy

Sheet Tech Pay
B1: Tech # | C1: Tech Pay Per FRH
B2: 1317 | C2: 27.5
B3: 1441 | C3: 26.5
B4: 1335 | C4: 25
B5: 913 | C5: 26.5
B6: 464 | C6: 27
B7: 1332 | C7: 24
B8: 1067 | C8: 27.5
B9: 494 | C9: 31.5
B10: 940 | C10: 31
B11: 774 | C11: 35
B12: 1278 | C12: 23.5
B13: 1489 | C13: 19
B14: 988 | C14: 13

Sheet Input Sheet
C2: Repair Order Analysis Input Sheet
G3: Competitive Labor | L3: Maintenance Labor | Q3: Repair Labor | V3: Total Cost of Labor | W3: One Item Repair Order
C4: RO Number | D4: Year | E4: Model | F4: Mileage | G4: Labor Sales | H4: Flat Rate Hours | I4: Technican Number | J4: Pay Per FRH | K4: Labor Cost | L4: Labor Sales | M4: Flat Rate Hours | N4: Technican Number | O4: Pay Per FRH | P4: Labor Cost | Q4: Labor Sales | R4: Flat Rate Hours | S4: Technican Number | T4: Pay Per FRH | U4: Labor Cost
B6: 1 | C6: 1M+S838485 (1) | D6: 2011 | E6: COUNTRYMAN | F6: 65926 | G6: 189 | H6: 1.4 | I6: 1278 | J6: =IF(ISERROR(VLOOKUP('Input Sheet'!$I6,TechNumber,2,FALSE)),"",VLOOKUP('Input Sheet'!$I6,TechNumber,2,FALSE)) -> 23.5 | K6: =IF(ISERROR(H6*J6),"",H6*J6) -> 32.9 | O6: =IF(ISERROR(VLOOKUP('Input Sheet'!$N6,TechNumber,2,FALSE)),"",VLOOKUP('Input Sheet'!$N6,TechNumber,2,FALSE)) ->  | P6: =IF(ISERROR(M6*O6)," ",M6*O6) ->  | T6: =IF(ISERROR(VLOOKUP('Input Sheet'!$S6,TechNumber,2,FALSE)),"",VLOOKUP('Input Sheet'!$S6,TechNumber,2,FALSE)) ->  | U6: =IF(ISERROR(R6*T6),"",R6*T6) ->  | V6: =SUM(U6,P6,K6) -> 32.9 | W6: 1
B7: 2 | C7: 1M+S838487 (2) | D7: 2013 | E7: COOPER | F7: 50693 | J7: =IF(ISERROR(VLOOKUP('Input Sheet'!$I7,TechNumber,2,FALSE)),"",VLOOKUP('Input Sheet'!$I7,TechNumber,2,FALSE)) ->  | L7: 135 | M7: 1 | N7: 940 | O7: =IF(ISERROR(VLOOKUP('Input Sheet'!$N7,TechNumber,2,FALSE)),"",VLOOKUP('Input Sheet'!$N7,TechNumber,2,FALSE)) -> 31 | P7: 31 | T7: =IF(ISERROR(VLOOKUP('Input Sheet'!$S7,TechNumber,2,FALSE)),"",VLOOKUP('Input Sheet'!$S7,TechNumber,2,FALSE)) ->  | V7: =SUM(U7,P7,K7) -> 31
B8: 3 | C8: 1M+S838488 (3) | D8: 2011 | E8: COOPER | F8: 58686 | J8: =IF(ISERROR(VLOOKUP('Input Sheet'!$I8,TechNumber,2,FALSE)),"",VLOOKUP('Input Sheet'!$I8,TechNumber,2,FALSE)) ->  | L8: 297 | M8: 2.2 | N8: 1335 | O8: =IF(ISERROR(VLOOKUP('Input Sheet'!$N8,TechNumber,2,FALSE)),"",VLOOKUP('Input Sheet'!$N8,TechNumber,2,FALSE)) -> 25 | P8: 55 | T8: =IF(ISERROR(VLOOKUP('Input Sheet'!$S8,TechNumber,2,FALSE)),"",VLOOKUP('Input Sheet'!$S8,TechNumber,2,FALSE)) ->  | V8: 55
B9: 4 | C9: 1M+S838494 | D9: 2017 | E9: COOPER | F9: 11663 | J9: =IF(ISERROR(VLOOKUP('Input Sheet'!$I9,TechNumber,2,FALSE)),"",VLOOKUP('Input Sheet'!$I9,TechNumber,2,FALSE)) ->  | O9: =IF(ISERROR(VLOOKUP('Input Sheet'!$N9,TechNumber,2,FALSE)),"",VLOOKUP('Input Sheet'!$N9,TechNumber,2,FALSE)) ->  | Q9: 55 | R9: 0.5 | S9: 988 | T9: =IF(ISERROR(VLOOKUP('Input Sheet'!$S9,TechNumber,2,FALSE)),"",VLOOKUP('Input Sheet'!$S9,TechNumber,2,FALSE)) -> 13 | U9: 6.5 | V9: 6.5 | W9: 1
B10: 5 | C10: 1M+S838496 | D10: 2011 | E10: COOPER | F10: 52709 | J10: =IF(ISERROR(VLOOKUP('Input Sheet'!$I10,TechNumber,2,FALSE)),"",VLOOKUP('Input Sheet'!$I10,TechNumber,2,FALSE)) ->  | K10: =IF(ISERROR(H10*J10),"",H10*J10) ->  | O10: =IF(ISERROR(VLOOKUP('Input Sheet'!$N10,TechNumber,2,FALSE)),"",VLOOKUP('Input Sheet'!$N10,TechNumber,2,FALSE)) ->  | Q10: 472.5 | R10: 3.5 | S10: 940 | T10: =IF(ISERROR(VLOOKUP('Input Sheet'!$S10,TechNumber,2,FALSE)),"",VLOOKUP('Input Sheet'!$S10,TechNumber,2,FALSE)) -> 31 | U10: 108.5 | V10: 108.5
B11: 6 | C11: 1M+S838511 | D11: 2011 | E11: COOPER | F11: 79203 | J11: =IF(ISERROR(VLOOKUP('Input Sheet'!$I11,TechNumber,2,FALSE)),"",VLOOKUP('Input Sheet'!$I11,TechNumber,2,FALSE)) ->  | L11: 162 | M11: 1.2 | N11: 1317 | O11: =IF(ISERROR(VLOOKUP('Input Sheet'!$N11,TechNumber,2,FALSE)),"",VLOOKUP('Input Sheet'!$N11,TechNumber,2,FALSE)) -> 27.5 | P11: 33 | T11: =IF(ISERROR(VLOOKUP('Input Sheet'!$S11,TechNumber,2,FALSE)),"",VLOOKUP('Input Sheet'!$S11,TechNumber,2,FALSE)) ->  | V11: 33
B12: 7 | C12: 1M+S838505 | D12: 2014 | E12: COOPER | F12: 18063 | G12: 31.41 | H12: 0.4 | I12: 1441 | J12: =IF(ISERROR(VLOOKUP('Input Sheet'!$I12,TechNumber,2,FALSE)),"",VLOOKUP('Input Sheet'!$I12,TechNumber,2,FALSE)) -> 26.5 | K12: 10.6 | L12: 90.95 | M12: 1 | N12: 1441 | O12: =IF(ISERROR(VLOOKUP('Input Sheet'!$N12,TechNumber,2,FALSE)),"",VLOOKUP('Input Sheet'!$N12,TechNumber,2,FALSE)) -> 26.5 | P12: 26.5 | T12: =IF(ISERROR(VLOOKUP('Input Sheet'!$S12,TechNumber,2,FALSE)),"",VLOOKUP('Input Sheet'!$S12,TechNumber,2,FALSE)) ->  | V12: 37.1
B13: 8 | C13: 1M+s838512 | D13: 2010 | E13: COOPER | F13: 65759 | G13: 31.41 | H13: 0.4 | I13: 1441 | J13: =IF(ISERROR(VLOOKUP('Input Sheet'!$I13,TechNumber,2,FALSE)),"",VLOOKUP('Input Sheet'!$I13,TechNumber,2,FALSE)) -> 26.5 | K13: 10.6 | O13: =IF(ISERROR(VLOOKUP('Input Sheet'!$N13,TechNumber,2,FALSE)),"",VLOOKUP('Input Sheet'!$N13,TechNumber,2,FALSE)) ->  | Q13: 504 | R13: 3.6 | S13: 1441 | T13: =IF(ISERROR(VLOOKUP('Input Sheet'!$S13,TechNumber,2,FALSE)),"",VLOOKUP('Input Sheet'!$S13,TechNumber,2,FALSE)) -> 26.5 | U13: 95.4 | V13: 106
B14: 9 | C14: 1M+S838518 | D14: 2016 | E14: COOPER | F14: 5123 | G14: 49.95 | H14: 0.6 | I14: 913 | J14: =IF(ISERROR(VLOOKUP('Input Sheet'!$I14,TechNumber,2,FALSE)),"",VLOOKUP('Input Sheet'!$I14,TechNumber,2,FALSE)) -> 26.5 | K14: 15.9 | O14: =IF(ISERROR(VLOOKUP('Input Sheet'!$N14,TechNumber,2,FALSE)),"",VLOOKUP('Input Sheet'!$N14,TechNumber,2,FALSE)) ->  | T14: =IF(ISERROR(VLOOKUP('Input Sheet'!$S14,TechNumber,2,FALSE)),"",VLOOKUP('Input Sheet'!$S14,TechNumber,2,FALSE)) ->  | V14: 15.9 | W14: 1
B15: 10 | C15: 1M+S838519 | D15: 2013 | E15: COOPER | F15: 34013 | G15: 31.41 | H15: 0.4 | I15: 1335 | J15: =IF(ISERROR(VLOOKUP('Input Sheet'!$I15,TechNumber,2,FALSE)),"",VLOOKUP('Input Sheet'!$I15,TechNumber,2,FALSE)) -> 25 | K15: 10 | L15: 161 | M15: 1.4 | N15: 1335 | O15: =IF(ISERROR(VLOOKUP('Input Sheet'!$N15,TechNumber,2,FALSE)),"",VLOOKUP('Input Sheet'!$N15,TechNumber,2,FALSE)) -> 25 | P15: 35 | T15: =IF(ISERROR(VLOOKUP('Input Sheet'!$S15,TechNumber,2,FALSE)),"",VLOOKUP('Input Sheet'!$S15,TechNumber,2,FALSE)) ->  | V15: 45
B16: 11 | C16: 1M+S838528 | D16: 2015 | E16: COOPER | F16: 47094 | G16: 29.95 | H16: 0.4 | I16: 1317 | J16: =IF(ISERROR(VLOOKUP('Input Sheet'!$I16,TechNumber,2,FALSE)),"",VLOOKUP('Input Sheet'!$I16,TechNumber,2,FALSE)) -> 27.5 | K16: 11 | L16: 86.25 | M16: 0.75 | N16: 1317 | O16: =IF(ISERROR(VLOOKUP('Input Sheet'!$N16,TechNumber,2,FALSE)),"",VLOOKUP('Input Sheet'!$N16,TechNumber,2,FALSE)) -> 27.5 | P16: 20.625 | T16: =IF(ISERROR(VLOOKUP('Input Sheet'!$S16,TechNumber,2,FALSE)),"",VLOOKUP('Input Sheet'!$S16,TechNumber,2,FALSE)) ->  | V16: 31.625
B17: 12 | C17: 1M+S838531 | D17: 2013 | E17: COOPER | F17: 42970 | G17: 5 | H17: 0.1 | I17: 940 | J17: =IF(ISERROR(VLOOKUP('Input Sheet'!$I17,TechNumber,2,FALSE)),"",VLOOKUP('Input Sheet'!$I17,TechNumber,2,FALSE)) -> 31 | K17: 3.1 | O17: =IF(ISERROR(VLOOKUP('Input Sheet'!$N17,TechNumber,2,FALSE)),"",VLOOKUP('Input Sheet'!$N17,TechNumber,2,FALSE)) ->  | T17: =IF(ISERROR(VLOOKUP('Input Sheet'!$S17,TechNumber,2,FALSE)),"",VLOOKUP('Input Sheet'!$S17,TechNumber,2,FALSE)) ->  | V17: 3.1
B18: 13 | C18: 1M+S838537 | D18: 2010 | E18: COOPER | F18: 111780 | G18: 31.41 | H18: 0.4 | I18: 1317 | J18: =IF(ISERROR(VLOOKUP('Input Sheet'!$I18,TechNumber,2,FALSE)),"",VLOOKUP('Input Sheet'!$I18,TechNumber,2,FALSE)) -> 27.5 | K18: 11 | L18: 189 | M18: 1.9 | N18: 1317 | O18: =IF(ISERROR(VLOOKUP('Input Sheet'!$N18,TechNumber,2,FALSE)),"",VLOOKUP('Input Sheet'!$N18,TechNumber,2,FALSE)) -> 27.5 | P18: 52.25 | Q18: 297 | R18: 2.2 | S18: 1317 | T18: =IF(ISERROR(VLOOKUP('Input Sheet'!$S18,TechNumber,2,FALSE)),"",VLOOKUP('Input Sheet'!$S18,TechNumber,2,FALSE)) -> 27.5 | U18: 60.5 | V18: 123.75
B19: 14 | C19: 1M+S838544 | D19: 2008 | E19: COOPER | F19: 47414 | G19: 31.41 | H19: 0.4 | I19: 913 | J19: =IF(ISERROR(VLOOKUP('Input Sheet'!$I19,TechNumber,2,FALSE)),"",VLOOKUP('Input Sheet'!$I19,TechNumber,2,FALSE)) -> 26.5 | K19: 10.6 | L19: 86.25 | M19: 0.75 | N19: 913 | O19: =IF(ISERROR(VLOOKUP('Input Sheet'!$N19,TechNumber,2,FALSE)),"",VLOOKUP('Input Sheet'!$N19,TechNumber,2,FALSE)) -> 26.5 | P19: 19.875 | T19: =IF(ISERROR(VLOOKUP('Input Sheet'!$S19,TechNumber,2,FALSE)),"",VLOOKUP('Input Sheet'!$S19,TechNumber,2,FALSE)) ->  | V19: 30.475
B20: 15 | C20: 1M+S838560 | D20: 2006 | E20: COOPER | F20: 20660 | J20: =IF(ISERROR(VLOOKUP('Input Sheet'!$I20,TechNumber,2,FALSE)),"",VLOOKUP('Input Sheet'!$I20,TechNumber,2,FALSE)) ->  | L20: 119.95 | M20: 0.2 | N20: 1317 | O20: =IF(ISERROR(VLOOKUP('Input Sheet'!$N20,TechNumber,2,FALSE)),"",VLOOKUP('Input Sheet'!$N20,TechNumber,2,FALSE)) -> 27.5 | P20: 5.5 | Q20: 756 | R20: 5.6 | S20: 1317 | T20: =IF(ISERROR(VLOOKUP('Input Sheet'!$S20,TechNumber,2,FALSE)),"",VLOOKUP('Input Sheet'!$S20,TechNumber,2,FALSE)) -> 27.5 | U20: 154 | V20: 159.5
B21: 16 | C21: 1M+S838563 | D21: 2009 | E21: COOPER | F21: 35579 | G21: 29.95 | H21: 0.5 | I21: 940 | J21: =IF(ISERROR(VLOOKUP('Input Sheet'!$I21,TechNumber,2,FALSE)),"",VLOOKUP('Input Sheet'!$I21,TechNumber,2,FALSE)) -> 31 | K21: 15.5 | O21: =IF(ISERROR(VLOOKUP('Input Sheet'!$N21,TechNumber,2,FALSE)),"",VLOOKUP('Input Sheet'!$N21,TechNumber,2,FALSE)) ->  | T21: =IF(ISERROR(VLOOKUP('Input Sheet'!$S21,TechNumber,2,FALSE)),"",VLOOKUP('Input Sheet'!$S21,TechNumber,2,FALSE)) ->  | V21: 15.5 | W21: 1
B22: 17 | C22: 1M+S838567 | D22: 2014 | E22: COOPER | F22: 29142 | G22: 119.95 | H22: 0.2 | I22: 940 | J22: =IF(ISERROR(VLOOKUP('Input Sheet'!$I22,TechNumber,2,FALSE)),"",VLOOKUP('Input Sheet'!$I22,TechNumber,2,FALSE)) -> 31 | K22: 6.2 | O22: =IF(ISERROR(VLOOKUP('Input Sheet'!$N22,TechNumber,2,FALSE)),"",VLOOKUP('Input Sheet'!$N22,TechNumber,2,FALSE)) ->  | T22: =IF(ISERROR(VLOOKUP('Input Sheet'!$S22,TechNumber,2,FALSE)),"",VLOOKUP('Input Sheet'!$S22,TechNumber,2,FALSE)) ->  | V22: 6.2 | W22: 1
B23: 18 | C23: 1M+S838574 | D23: 2004 | E23: COOPER | F23: 10800 | G23: 31.41 | H23: 0.4 | I23: 494 | J23: =IF(ISERROR(VLOOKUP('Input Sheet'!$I23,TechNumber,2,FALSE)),"",VLOOKUP('Input Sheet'!$I23,TechNumber,2,FALSE)) -> 31.5 | K23: 12.6 | L23: 81 | M23: 0.6 | N23: 494 | O23: =IF(ISERROR(VLOOKUP('Input Sheet'!$N23,TechNumber,2,FALSE)),"",VLOOKUP('Input Sheet'!$N23,TechNumber,2,FALSE)) -> 31.5 | P23: 18.9 | T23: =IF(ISERROR(VLOOKUP('Input Sheet'!$S23,TechNumber,2,FALSE)),"",VLOOKUP('Input Sheet'!$S23,TechNumber,2,FALSE)) ->  | V23: 31.5
B24: 19 | C24: 1M+S838575 | D24: 2016 | E24: COOPER | F24: 2721 | G24: 25 | H24: 0.3 | I24: 1441 | J24: =IF(ISERROR(VLOOKUP('Input Sheet'!$I24,TechNumber,2,FALSE)),"",VLOOKUP('Input Sheet'!$I24,TechNumber,2,FALSE)) -> 26.5 | K24: 7.95 | O24: =IF(ISERROR(VLOOKUP('Input Sheet'!$N24,TechNumber,2,FALSE)),"",VLOOKUP('Input Sheet'!$N24,TechNumber,2,FALSE)) ->  | T24: =IF(ISERROR(VLOOKUP('Input Sheet'!$S24,TechNumber,2,FALSE)),"",VLOOKUP('Input Sheet'!$S24,TechNumber,2,FALSE)) ->  | V24: 7.95 | W24: 1
B25: 20 | C25: 1M+S838577 | D25: 2013 | E25: COOPER | F25: 62359 | G25: 29.95 | H25: 0.5 | I25: 1335 | J25: =IF(ISERROR(VLOOKUP('Input Sheet'!$I25,TechNumber,2,FALSE)),"",VLOOKUP('Input Sheet'!$I25,TechNumber,2,FALSE)) -> 25 | K25: 12.5 | O25: =IF(ISERROR(VLOOKUP('Input Sheet'!$N25,TechNumber,2,FALSE)),"",VLOOKUP('Input Sheet'!$N25,TechNumber,2,FALSE)) ->  | T25: =IF(ISERROR(VLOOKUP('Input Sheet'!$S25,TechNumber,2,FALSE)),"",VLOOKUP('Input Sheet'!$S25,TechNumber,2,FALSE)) ->  | V25: 12.5 | W25: 1
B26: 21 | C26: 1M+S838579 | D26: 2013 | E26: COOPER | F26: 86197 | G26: 31.41 | H26: 0.4 | I26: 913 | J26: =IF(ISERROR(VLOOKUP('Input Sheet'!$I26,TechNumber,2,FALSE)),"",VLOOKUP('Input Sheet'!$I26,TechNumber,2,FALSE)) -> 26.5 | K26: 10.6 | L26: 207 | M26: 1.8 | N26: 913 | O26: =IF(ISERROR(VLOOKUP('Input Sheet'!$N26,TechNumber,2,FALSE)),"",VLOOKUP('Input Sheet'!$N26,TechNumber,2,FALSE)) -> 26.5 | P26: 47.7 | T26: =IF(ISERROR(VLOOKUP('Input Sheet'!$S26,TechNumber,2,FALSE)),"",VLOOKUP('Input Sheet'!$S26,TechNumber,2,FALSE)) ->  | V26: 58.3
B27: 22 | C27: 1M+S838584 | D27: 2010 | E27: COOPER | F27: 56719 | G27: 81 | H27: 0.6 | I27: 940 | J27: =IF(ISERROR(VLOOKUP('Input Sheet'!$I27,TechNumber,2,FALSE)),"",VLOOKUP('Input Sheet'!$I27,TechNumber,2,FALSE)) -> 31 | K27: 18.6 | O27: =IF(ISERROR(VLOOKUP('Input Sheet'!$N27,TechNumber,2,FALSE)),"",VLOOKUP('Input Sheet'!$N27,TechNumber,2,FALSE)) ->  | T27: =IF(ISERROR(VLOOKUP('Input Sheet'!$S27,TechNumber,2,FALSE)),"",VLOOKUP('Input Sheet'!$S27,TechNumber,2,FALSE)) ->  | V27: 18.6 | W27: 1
B28: 23 | C28: 1M+S838588 | D28: 2005 | E28: COOPER | F28: 40625 | G28: 31.41 | H28: 0.4 | I28: 1317 | J28: =IF(ISERROR(VLOOKUP('Input Sheet'!$I28,TechNumber,2,FALSE)),"",VLOOKUP('Input Sheet'!$I28,TechNumber,2,FALSE)) -> 27.5 | K28: 11 | L28: 67.5 | M28: 0.5 | N28: 1317 | O28: =IF(ISERROR(VLOOKUP('Input Sheet'!$N28,TechNumber,2,FALSE)),"",VLOOKUP('Input Sheet'!$N28,TechNumber,2,FALSE)) -> 27.5 | P28: 13.75 | T28: =IF(ISERROR(VLOOKUP('Input Sheet'!$S28,TechNumber,2,FALSE)),"",VLOOKUP('Input Sheet'!$S28,TechNumber,2,FALSE)) ->  | V28: 24.75
B29: 24 | C29: 1M+S838486 (5) | D29: 2014 | E29: COOPER | F29: 29368 | J29: =IF(ISERROR(VLOOKUP('Input Sheet'!$I29,TechNumber,2,FALSE)),"",VLOOKUP('Input Sheet'!$I29,TechNumber,2,FALSE)) ->  | L29: 178 | M29: 0.8 | N29: 1317 | O29: =IF(ISERROR(VLOOKUP('Input Sheet'!$N29,TechNumber,2,FALSE)),"",VLOOKUP('Input Sheet'!$N29,TechNumber,2,FALSE)) -> 27.5 | P29: 22 | T29: =IF(ISERROR(VLOOKUP('Input Sheet'!$S29,TechNumber,2,FALSE)),"",VLOOKUP('Input Sheet'!$S29,TechNumber,2,FALSE)) ->  | V29: 22
B30: 25 | C30: 1M+S838492 (4) | D30: 2017 | E30: cooper | F30: 7362 | G30: 25 | H30: 0.3 | I30: 913 | J30: =IF(ISERROR(VLOOKUP('Input Sheet'!$I30,TechNumber,2,FALSE)),"",VLOOKUP('Input Sheet'!$I30,TechNumber,2,FALSE)) -> 26.5 | K30: 7.95 | L30: 119.95 | M30: 0.2 | N30: 913 | O30: =IF(ISERROR(VLOOKUP('Input Sheet'!$N30,TechNumber,2,FALSE)),"",VLOOKUP('Input Sheet'!$N30,TechNumber,2,FALSE)) -> 26.5 | P30: 5.3 | T30: =IF(ISERROR(VLOOKUP('Input Sheet'!$S30,TechNumber,2,FALSE)),"",VLOOKUP('Input Sheet'!$S30,TechNumber,2,FALSE)) ->  | V30: 13.25
B31: 26 | C31: 1M+S838966 | D31: 2008 | E31: COOPER | F31: 80052 | G31: 270 | H31: 2 | I31: 494 | J31: =IF(ISERROR(VLOOKUP('Input Sheet'!$I31,TechNumber,2,FALSE)),"",VLOOKUP('Input Sheet'!$I31,TechNumber,2,FALSE)) -> 31.5 | K31: 63 | O31: =IF(ISERROR(VLOOKUP('Input Sheet'!$N31,TechNumber,2,FALSE)),"",VLOOKUP('Input Sheet'!$N31,TechNumber,2,FALSE)) ->  | T31: =IF(ISERROR(VLOOKUP('Input Sheet'!$S31,TechNumber,2,FALSE)),"",VLOOKUP('Input Sheet'!$S31,TechNumber,2,FALSE)) ->  | V31: 63
B32: 27 | C32: 1M+S839190 | D32: 2004 | E32: COOPER | F32: 65651 | G32: 31.41 | H32: 0.4 | I32: 494 | J32: =IF(ISERROR(VLOOKUP('Input Sheet'!$I32,TechNumber,2,FALSE)),"",VLOOKUP('Input Sheet'!$I32,TechNumber,2,FALSE)) -> 31.5 | K32: 12.6 | L32: 648 | M32: 4.8 | N32: 494 | O32: =IF(ISERROR(VLOOKUP('Input Sheet'!$N32,TechNumber,2,FALSE)),"",VLOOKUP('Input Sheet'!$N32,TechNumber,2,FALSE)) -> 31.5 | P32: 151.2 | Q32: 756 | R32: 5.6 | S32: 494 | T32: =IF(ISERROR(VLOOKUP('Input Sheet'!$S32,TechNumber,2,FALSE)),"",VLOOKUP('Input Sheet'!$S32,TechNumber,2,FALSE)) -> 31.5 | U32: 176.4 | V32: 340.2
B33: 28 | C33: 1M+S839204 | D33: 2012 | E33: COOPER | F33: 15605 | J33: =IF(ISERROR(VLOOKUP('Input Sheet'!$I33,TechNumber,2,FALSE)),"",VLOOKUP('Input Sheet'!$I33,TechNumber,2,FALSE)) ->  | L33: 119 | M33: 2 | N33: 494 | O33: =IF(ISERROR(VLOOKUP('Input Sheet'!$N33,TechNumber,2,FALSE)),"",VLOOKUP('Input Sheet'!$N33,TechNumber,2,FALSE)) -> 31.5 | P33: 63 | T33: =IF(ISERROR(VLOOKUP('Input Sheet'!$S33,TechNumber,2,FALSE)),"",VLOOKUP('Input Sheet'!$S33,TechNumber,2,FALSE)) ->  | V33: 63
B34: 29 | C34: 1M+S839211 | D34: 2017 | E34: COOPER | F34: 14637 | G34: 49.95 | H34: 0.6 | I34: 1278 | J34: =IF(ISERROR(VLOOKUP('Input Sheet'!$I34,TechNumber,2,FALSE)),"",VLOOKUP('Input Sheet'!$I34,TechNumber,2,FALSE)) -> 23.5 | K34: 14.1 | O34: =IF(ISERROR(VLOOKUP('Input Sheet'!$N34,TechNumber,2,FALSE)),"",VLOOKUP('Input Sheet'!$N34,TechNumber,2,FALSE)) ->  | T34: =IF(ISERROR(VLOOKUP('Input Sheet'!$S34,TechNumber,2,FALSE)),"",VLOOKUP('Input Sheet'!$S34,TechNumber,2,FALSE)) ->  | V34: 14.1 | W34: 1
B35: 30 | C35: 1M+S839237 | D35: 2015 | E35: COOPER | F35: 23451 | G35: 49.95 | H35: 0.6 | I35: 1335 | J35: =IF(ISERROR(VLOOKUP('Input Sheet'!$I35,TechNumber,2,FALSE)),"",VLOOKUP('Input Sheet'!$I35,TechNumber,2,FALSE)) -> 25 | K35: 15 | L35: 119.95 | M35: 2 | N35: 1335 | O35: =IF(ISERROR(VLOOKUP('Input Sheet'!$N35,TechNumber,2,FALSE)),"",VLOOKUP('Input Sheet'!$N35,TechNumber,2,FALSE)) -> 25 | P35: 50 | T35: =IF(ISERROR(VLOOKUP('Input Sheet'!$S35,TechNumber,2,FALSE)),"",VLOOKUP('Input Sheet'!$S35,TechNumber,2,FALSE)) ->  | V35: 65
B36: 31 | C36: 1M+S839250 | D36: 2009 | E36: COOPER | F36: 90202 | J36: =IF(ISERROR(VLOOKUP('Input Sheet'!$I36,TechNumber,2,FALSE)),"",VLOOKUP('Input Sheet'!$I36,TechNumber,2,FALSE)) ->  | L36: 540 | M36: 4 | N36: 913 | O36: =IF(ISERROR(VLOOKUP('Input Sheet'!$N36,TechNumber,2,FALSE)),"",VLOOKUP('Input Sheet'!$N36,TechNumber,2,FALSE)) -> 26.5 | P36: 106 | Q36: 297 | R36: 2.2 | S36: 913 | T36: =IF(ISERROR(VLOOKUP('Input Sheet'!$S36,TechNumber,2,FALSE)),"",VLOOKUP('Input Sheet'!$S36,TechNumber,2,FALSE)) -> 26.5 | U36: 58.3 | V36: 164.3
B37: 32 | C37: 1M+S839277 | D37: 2009 | E37: COOPER | F37: 95260 | G37: 49.95 | H37: 0.6 | I37: 1335 | J37: =IF(ISERROR(VLOOKUP('Input Sheet'!$I37,TechNumber,2,FALSE)),"",VLOOKUP('Input Sheet'!$I37,TechNumber,2,FALSE)) -> 25 | K37: 15 | O37: =IF(ISERROR(VLOOKUP('Input Sheet'!$N37,TechNumber,2,FALSE)),"",VLOOKUP('Input Sheet'!$N37,TechNumber,2,FALSE)) ->  | Q37: 1256 | R37: 9.3 | S37: 1335 | T37: =IF(ISERROR(VLOOKUP('Input Sheet'!$S37,TechNumber,2,FALSE)),"",VLOOKUP('Input Sheet'!$S37,TechNumber,2,FALSE)) -> 25 | U37: 232.5 | V37: 247.5
B38: 33 | C38: 1M+S839285 | D38: 2012 | E38: COOPER | F38: 42390 | G38: 49.95 | H38: 0.6 | I38: 913 | J38: =IF(ISERROR(VLOOKUP('Input Sheet'!$I38,TechNumber,2,FALSE)),"",VLOOKUP('Input Sheet'!$I38,TechNumber,2,FALSE)) -> 26.5 | K38: 15.9 | O38: =IF(ISERROR(VLOOKUP('Input Sheet'!$N38,TechNumber,2,FALSE)),"",VLOOKUP('Input Sheet'!$N38,TechNumber,2,FALSE)) ->  | T38: =IF(ISERROR(VLOOKUP('Input Sheet'!$S38,TechNumber,2,FALSE)),"",VLOOKUP('Input Sheet'!$S38,TechNumber,2,FALSE)) ->  | V38: 15.9 | W38: 1
B39: 34 | C39: 1M+S839286 | D39: 2013 | E39: COOPER | F39: 52853 | G39: 49.95 | H39: 0.6 | I39: 1317 | J39: =IF(ISERROR(VLOOKUP('Input Sheet'!$I39,TechNumber,2,FALSE)),"",VLOOKUP('Input Sheet'!$I39,TechNumber,2,FALSE)) -> 27.5 | K39: 16.5 | L39: 63 | M39: 0.6 | N39: 1317 | O39: =IF(ISERROR(VLOOKUP('Input Sheet'!$N39,TechNumber,2,FALSE)),"",VLOOKUP('Input Sheet'!$N39,TechNumber,2,FALSE)) -> 27.5 | P39: 16.5 | T39: =IF(ISERROR(VLOOKUP('Input Sheet'!$S39,TechNumber,2,FALSE)),"",VLOOKUP('Input Sheet'!$S39,TechNumber,2,FALSE)) ->  | V39: 33
B40: 35 | C40: 1M+S839290 | D40: 2015 | E40: COOPER | F40: 32789 | J40: =IF(ISERROR(VLOOKUP('Input Sheet'!$I40,TechNumber,2,FALSE)),"",VLOOKUP('Input Sheet'!$I40,TechNumber,2,FALSE)) ->  | L40: 100 | M40: 1.2 | N40: 464 | O40: =IF(ISERROR(VLOOKUP('Input Sheet'!$N40,TechNumber,2,FALSE)),"",VLOOKUP('Input Sheet'!$N40,TechNumber,2,FALSE)) -> 27 | P40: 32.4 | T40: =IF(ISERROR(VLOOKUP('Input Sheet'!$S40,TechNumber,2,FALSE)),"",VLOOKUP('Input Sheet'!$S40,TechNumber,2,FALSE)) ->  | V40: 32.4 | W40: 1
B41: 36 | C41: 1M+S839293 | D41: 2012 | E41: COOPER | F41: 49461 | G41: 31.41 | H41: 0.4 | I41: 464 | J41: =IF(ISERROR(VLOOKUP('Input Sheet'!$I41,TechNumber,2,FALSE)),"",VLOOKUP('Input Sheet'!$I41,TechNumber,2,FALSE)) -> 27 | K41: 10.8 | L41: 72.5 | M41: 0.5 | N41: 464 | O41: =IF(ISERROR(VLOOKUP('Input Sheet'!$N41,TechNumber,2,FALSE)),"",VLOOKUP('Input Sheet'!$N41,TechNumber,2,FALSE)) -> 27 | P41: 13.5 | T41: =IF(ISERROR(VLOOKUP('Input Sheet'!$S41,TechNumber,2,FALSE)),"",VLOOKUP('Input Sheet'!$S41,TechNumber,2,FALSE)) ->  | V41: 24.3
B42: 37 | C42: 1M+S839295 | D42: 2012 | E42: COOPER | F42: 60644 | G42: 24.9 | H42: 0.2 | I42: 940 | J42: =IF(ISERROR(VLOOKUP('Input Sheet'!$I42,TechNumber,2,FALSE)),"",VLOOKUP('Input Sheet'!$I42,TechNumber,2,FALSE)) -> 31 | K42: 6.2 | L42: 348 | M42: 2.4 | N42: 940 | O42: =IF(ISERROR(VLOOKUP('Input Sheet'!$N42,TechNumber,2,FALSE)),"",VLOOKUP('Input Sheet'!$N42,TechNumber,2,FALSE)) -> 31 | P42: 74.4 | T42: =IF(ISERROR(VLOOKUP('Input Sheet'!$S42,TechNumber,2,FALSE)),"",VLOOKUP('Input Sheet'!$S42,TechNumber,2,FALSE)) ->  | V42: 80.6
B43: 38 | C43: 1M+S839307 | D43: 2009 | E43: COOPER | F43: 37070 | G43: 13.5 | H43: 0.1 | I43: 1278 | J43: =IF(ISERROR(VLOOKUP('Input Sheet'!$I43,TechNumber,2,FALSE)),"",VLOOKUP('Input Sheet'!$I43,TechNumber,2,FALSE)) -> 23.5 | K43: 2.35 | L43: 135 | M43: 1 | N43: 1278 | O43: =IF(ISERROR(VLOOKUP('Input Sheet'!$N43,TechNumber,2,FALSE)),"",VLOOKUP('Input Sheet'!$N43,TechNumber,2,FALSE)) -> 23.5 | P43: 23.5 | T43: =IF(ISERROR(VLOOKUP('Input Sheet'!$S43,TechNumber,2,FALSE)),"",VLOOKUP('Input Sheet'!$S43,TechNumber,2,FALSE)) ->  | V43: 25.85
B44: 39 | C44: 1M+S839342 | D44: 2003 | E44: COOPER | F44: 176615 | G44: 15.5 | H44: 0.3 | I44: 494 | J44: =IF(ISERROR(VLOOKUP('Input Sheet'!$I44,TechNumber,2,FALSE)),"",VLOOKUP('Input Sheet'!$I44,TechNumber,2,FALSE)) -> 31.5 | K44: 9.45 | O44: =IF(ISERROR(VLOOKUP('Input Sheet'!$N44,TechNumber,2,FALSE)),"",VLOOKUP('Input Sheet'!$N44,TechNumber,2,FALSE)) ->  | Q44: 891 | R44: 6.6 | S44: 494 | T44: =IF(ISERROR(VLOOKUP('Input Sheet'!$S44,TechNumber,2,FALSE)),"",VLOOKUP('Input Sheet'!$S44,TechNumber,2,FALSE)) -> 31.5 | U44: 207.9 | V44: 217.35
B45: 40 | C45: 1M+S839353 | D45: 2007 | E45: COOPER | F45: 29777 | G45: 31.41 | H45: 0.4 | I45: 1335 | J45: =IF(ISERROR(VLOOKUP('Input Sheet'!$I45,TechNumber,2,FALSE)),"",VLOOKUP('Input Sheet'!$I45,TechNumber,2,FALSE)) -> 25 | K45: 10 | L45: 119.95 | M45: 2 | N45: 1335 | O45: =IF(ISERROR(VLOOKUP('Input Sheet'!$N45,TechNumber,2,FALSE)),"",VLOOKUP('Input Sheet'!$N45,TechNumber,2,FALSE)) -> 25 | P45: 50 | T45: =IF(ISERROR(VLOOKUP('Input Sheet'!$S45,TechNumber,2,FALSE)),"",VLOOKUP('Input Sheet'!$S45,TechNumber,2,FALSE)) ->  | V45: 60
B46: 41 | C46: 1M+S839355 | D46: 2013 | E46: COOPER | F46: 19240 | G46: 29.95 | H46: 0.3 | I46: 1335 | J46: =IF(ISERROR(VLOOKUP('Input Sheet'!$I46,TechNumber,2,FALSE)),"",VLOOKUP('Input Sheet'!$I46,TechNumber,2,FALSE)) -> 25 | K46: 7.5 | O46: =IF(ISERROR(VLOOKUP('Input Sheet'!$N46,TechNumber,2,FALSE)),"",VLOOKUP('Input Sheet'!$N46,TechNumber,2,FALSE)) ->  | T46: =IF(ISERROR(VLOOKUP('Input Sheet'!$S46,TechNumber,2,FALSE)),"",VLOOKUP('Input Sheet'!$S46,TechNumber,2,FALSE)) ->  | V46: 7.5 | W46: 1
B47: 42 | C47: 1M+S839373 | D47: 2012 | E47: COOPER | F47: 49474 | G47: 31.41 | H47: 0.4 | I47: 1317 | J47: =IF(ISERROR(VLOOKUP('Input Sheet'!$I47,TechNumber,2,FALSE)),"",VLOOKUP('Input Sheet'!$I47,TechNumber,2,FALSE)) -> 27.5 | K47: 11 | L47: 73.5 | M47: 0.7 | N47: 1317 | O47: =IF(ISERROR(VLOOKUP('Input Sheet'!$N47,TechNumber,2,FALSE)),"",VLOOKUP('Input Sheet'!$N47,TechNumber,2,FALSE)) -> 27.5 | P47: 19.25 | T47: =IF(ISERROR(VLOOKUP('Input Sheet'!$S47,TechNumber,2,FALSE)),"",VLOOKUP('Input Sheet'!$S47,TechNumber,2,FALSE)) ->  | V47: 30.25
B48: 43 | C48: 1M+S839377 | D48: 2011 | E48: COOPER | F48: 106930 | J48: =IF(ISERROR(VLOOKUP('Input Sheet'!$I48,TechNumber,2,FALSE)),"",VLOOKUP('Input Sheet'!$I48,TechNumber,2,FALSE)) ->  | L48: 202.5 | M48: 1.5 | N48: 940 | O48: =IF(ISERROR(VLOOKUP('Input Sheet'!$N48,TechNumber,2,FALSE)),"",VLOOKUP('Input Sheet'!$N48,TechNumber,2,FALSE)) -> 31 | P48: 46.5 | T48: =IF(ISERROR(VLOOKUP('Input Sheet'!$S48,TechNumber,2,FALSE)),"",VLOOKUP('Input Sheet'!$S48,TechNumber,2,FALSE)) ->  | V48: 46.5 | W48: 1
B49: 44 | C49: 1M+S839382 | D49: 2010 | E49: COOPER | F49: 105881 | G49: 15 | H49: 0.3 | I49: 1278 | J49: =IF(ISERROR(VLOOKUP('Input Sheet'!$I49,TechNumber,2,FALSE)),"",VLOOKUP('Input Sheet'!$I49,TechNumber,2,FALSE)) -> 23.5 | K49: 7.05 | O49: =IF(ISERROR(VLOOKUP('Input Sheet'!$N49,TechNumber,2,FALSE)),"",VLOOKUP('Input Sheet'!$N49,TechNumber,2,FALSE)) ->  | Q49: 270 | R49: 2 | S49: 1278 | T49: =IF(ISERROR(VLOOKUP('Input Sheet'!$S49,TechNumber,2,FALSE)),"",VLOOKUP('Input Sheet'!$S49,TechNumber,2,FALSE)) -> 23.5 | U49: 47 | V49: 54.05
B50: 45 | C50: 1M+S839401 | D50: 2012 | E50: COOPER | F50: 78541 | G50: 31.41 | H50: 0.4 | I50: 1441 | J50: =IF(ISERROR(VLOOKUP('Input Sheet'!$I50,TechNumber,2,FALSE)),"",VLOOKUP('Input Sheet'!$I50,TechNumber,2,FALSE)) -> 26.5 | K50: 10.6 | L50: 135 | M50: 1 | N50: 1441 | O50: =IF(ISERROR(VLOOKUP('Input Sheet'!$N50,TechNumber,2,FALSE)),"",VLOOKUP('Input Sheet'!$N50,TechNumber,2,FALSE)) -> 26.5 | P50: 26.5 | T50: =IF(ISERROR(VLOOKUP('Input Sheet'!$S50,TechNumber,2,FALSE)),"",VLOOKUP('Input Sheet'!$S50,TechNumber,2,FALSE)) ->  | V50: 37.1
B51: 46 | C51: 1M+S839406 | D51: 2013 | E51: COOPER | F51: 91151 | G51: 30 | H51: 0.6 | I51: 774 | J51: =IF(ISERROR(VLOOKUP('Input Sheet'!$I51,TechNumber,2,FALSE)),"",VLOOKUP('Input Sheet'!$I51,TechNumber,2,FALSE)) -> 35 | K51: 21 | L51: 119.95 | M51: 2 | N51: 774 | O51: =IF(ISERROR(VLOOKUP('Input Sheet'!$N51,TechNumber,2,FALSE)),"",VLOOKUP('Input Sheet'!$N51,TechNumber,2,FALSE)) -> 35 | P51: 70 | T51: =IF(ISERROR(VLOOKUP('Input Sheet'!$S51,TechNumber,2,FALSE)),"",VLOOKUP('Input Sheet'!$S51,TechNumber,2,FALSE)) ->  | V51: 91
B52: 47 | C52: 1M+S839407 | D52: 2007 | E52: COOPER | F52: 93167 | G52: 15 | H52: 0.3 | I52: 1441 | J52: =IF(ISERROR(VLOOKUP('Input Sheet'!$I52,TechNumber,2,FALSE)),"",VLOOKUP('Input Sheet'!$I52,TechNumber,2,FALSE)) -> 26.5 | K52: 7.95 | L52: 135 | M52: 1 | N52: 1441 | O52: =IF(ISERROR(VLOOKUP('Input Sheet'!$N52,TechNumber,2,FALSE)),"",VLOOKUP('Input Sheet'!$N52,TechNumber,2,FALSE)) -> 26.5 | P52: 26.5 | T52: =IF(ISERROR(VLOOKUP('Input Sheet'!$S52,TechNumber,2,FALSE)),"",VLOOKUP('Input Sheet'!$S52,TechNumber,2,FALSE)) ->  | V52: 34.45
B53: 48 | C53: 1M+S839412 | D53: 2012 | E53: COOPER | F53: 48235 | G53: 29.95 | H53: 0.3 | I53: 1441 | J53: =IF(ISERROR(VLOOKUP('Input Sheet'!$I53,TechNumber,2,FALSE)),"",VLOOKUP('Input Sheet'!$I53,TechNumber,2,FALSE)) -> 26.5 | K53: 7.95 | O53: =IF(ISERROR(VLOOKUP('Input Sheet'!$N53,TechNumber,2,FALSE)),"",VLOOKUP('Input Sheet'!$N53,TechNumber,2,FALSE)) ->  | T53: =IF(ISERROR(VLOOKUP('Input Sheet'!$S53,TechNumber,2,FALSE)),"",VLOOKUP('Input Sheet'!$S53,TechNumber,2,FALSE)) ->  | V53: 7.95 | W53: 1
B54: 49 | C54: 1M+S839419 | D54: 2011 | E54: COOPER | F54: 73580 | J54: =IF(ISERROR(VLOOKUP('Input Sheet'!$I54,TechNumber,2,FALSE)),"",VLOOKUP('Input Sheet'!$I54,TechNumber,2,FALSE)) ->  | L54: 172.5 | M54: 1.7 | N54: 774 | O54: =IF(ISERROR(VLOOKUP('Input Sheet'!$N54,TechNumber,2,FALSE)),"",VLOOKUP('Input Sheet'!$N54,TechNumber,2,FALSE)) -> 35 | P54: 59.5 | Q54: 232 | R54: 1.6 | S54: 774 | T54: =IF(ISERROR(VLOOKUP('Input Sheet'!$S54,TechNumber,2,FALSE)),"",VLOOKUP('Input Sheet'!$S54,TechNumber,2,FALSE)) -> 35 | U54: 56 | V54: 115.5
B55: 50 | C55: 1M+S839425 | D55: 2013 | E55: COOPER | F55: 37562 | G55: 31.41 | H55: 0.4 | I55: 1441 | J55: =IF(ISERROR(VLOOKUP('Input Sheet'!$I55,TechNumber,2,FALSE)),"",VLOOKUP('Input Sheet'!$I55,TechNumber,2,FALSE)) -> 26.5 | K55: 10.6 | L55: 90.95 | M55: 1 | N55: 1441 | O55: =IF(ISERROR(VLOOKUP('Input Sheet'!$N55,TechNumber,2,FALSE)),"",VLOOKUP('Input Sheet'!$N55,TechNumber,2,FALSE)) -> 26.5 | P55: 26.5 | T55: =IF(ISERROR(VLOOKUP('Input Sheet'!$S55,TechNumber,2,FALSE)),"",VLOOKUP('Input Sheet'!$S55,TechNumber,2,FALSE)) ->  | V55: 37.1
B56: 51 | C56: 1M+S839428 | D56: 2009 | E56: COOPER | F56: 111525 | G56: 135 | H56: 1 | I56: 774 | J56: =IF(ISERROR(VLOOKUP('Input Sheet'!$I56,TechNumber,2,FALSE)),"",VLOOKUP('Input Sheet'!$I56,TechNumber,2,FALSE)) -> 35 | K56: 35 | O56: =IF(ISERROR(VLOOKUP('Input Sheet'!$N56,TechNumber,2,FALSE)),"",VLOOKUP('Input Sheet'!$N56,TechNumber,2,FALSE)) ->  | T56: =IF(ISERROR(VLOOKUP('Input Sheet'!$S56,TechNumber,2,FALSE)),"",VLOOKUP('Input Sheet'!$S56,TechNumber,2,FALSE)) ->  | V56: 35
B57: 52 | C57: 1M+S839429 | D57: 2012 | E57: COOPER | F57: 75020 | G57: 31.41 | H57: 0.4 | I57: 1278 | J57: =IF(ISERROR(VLOOKUP('Input Sheet'!$I57,TechNumber,2,FALSE)),"",VLOOKUP('Input Sheet'!$I57,TechNumber,2,FALSE)) -> 23.5 | K57: 9.4 | L57: 145 | M57: 1 | N57: 1278 | O57: =IF(ISERROR(VLOOKUP('Input Sheet'!$N57,TechNumber,2,FALSE)),"",VLOOKUP('Input Sheet'!$N57,TechNumber,2,FALSE)) -> 23.5 | P57: 23.5 | T57: =IF(ISERROR(VLOOKUP('Input Sheet'!$S57,TechNumber,2,FALSE)),"",VLOOKUP('Input Sheet'!$S57,TechNumber,2,FALSE)) ->  | V57: 32.9
B58: 53 | C58: 1M+S839433 | D58: 2011 | E58: COOPER | F58: 47309 | J58: =IF(ISERROR(VLOOKUP('Input Sheet'!$I58,TechNumber,2,FALSE)),"",VLOOKUP('Input Sheet'!$I58,TechNumber,2,FALSE)) ->  | L58: 135 | M58: 1 | N58: 1489 | O58: =IF(ISERROR(VLOOKUP('Input Sheet'!$N58,TechNumber,2,FALSE)),"",VLOOKUP('Input Sheet'!$N58,TechNumber,2,FALSE)) -> 19 | P58: 19 | T58: =IF(ISERROR(VLOOKUP('Input Sheet'!$S58,TechNumber,2,FALSE)),"",VLOOKUP('Input Sheet'!$S58,TechNumber,2,FALSE)) ->  | V58: 19
B59: 54 | C59: 1M+S839451 | D59: 2013 | E59: COOPER | F59: 55118 | G59: 494.12 | H59: 1.2 | I59: 1441 | J59: =IF(ISERROR(VLOOKUP('Input Sheet'!$I59,TechNumber,2,FALSE)),"",VLOOKUP('Input Sheet'!$I59,TechNumber,2,FALSE)) -> 26.5 | K59: 31.8 | L59: 119.95 | M59: 2 | N59: 1441 | O59: =IF(ISERROR(VLOOKUP('Input Sheet'!$N59,TechNumber,2,FALSE)),"",VLOOKUP('Input Sheet'!$N59,TechNumber,2,FALSE)) -> 26.5 | P59: 53 | T59: =IF(ISERROR(VLOOKUP('Input Sheet'!$S59,TechNumber,2,FALSE)),"",VLOOKUP('Input Sheet'!$S59,TechNumber,2,FALSE)) ->  | V59: 84.8
B60: 55 | C60: 1M+S839453 | D60: 2016 | E60: COOPER | F60: 13641 | G60: 29.95 | H60: 0.3 | I60: 1278 | J60: =IF(ISERROR(VLOOKUP('Input Sheet'!$I60,TechNumber,2,FALSE)),"",VLOOKUP('Input Sheet'!$I60,TechNumber,2,FALSE)) -> 23.5 | K60: 7.05 | L60: 119.95 | M60: 2 | N60: 1278 | O60: =IF(ISERROR(VLOOKUP('Input Sheet'!$N60,TechNumber,2,FALSE)),"",VLOOKUP('Input Sheet'!$N60,TechNumber,2,FALSE)) -> 23.5 | P60: 47 | T60: =IF(ISERROR(VLOOKUP('Input Sheet'!$S60,TechNumber,2,FALSE)),"",VLOOKUP('Input Sheet'!$S60,TechNumber,2,FALSE)) ->  | V60: 54.05
B61: 56 | C61: 1M+S839458 | D61: 2005 | E61: COOPER | F61: 95499 | J61: =IF(ISERROR(VLOOKUP('Input Sheet'!$I61,TechNumber,2,FALSE)),"",VLOOKUP('Input Sheet'!$I61,TechNumber,2,FALSE)) ->  | L61: 135 | M61: 1 | N61: 1278 | O61: =IF(ISERROR(VLOOKUP('Input Sheet'!$N61,TechNumber,2,FALSE)),"",VLOOKUP('Input Sheet'!$N61,TechNumber,2,FALSE)) -> 23.5 | P61: 23.5 | T61: =IF(ISERROR(VLOOKUP('Input Sheet'!$S61,TechNumber,2,FALSE)),"",VLOOKUP('Input Sheet'!$S61,TechNumber,2,FALSE)) ->  | V61: 23.5 | W61: 1
B62: 57 | C62: 1M+S839461 | D62: 2014 | E62: COOPER | F62: 30539 | G62: 100 | H62: 1.2 | I62: 1335 | J62: =IF(ISERROR(VLOOKUP('Input Sheet'!$I62,TechNumber,2,FALSE)),"",VLOOKUP('Input Sheet'!$I62,TechNumber,2,FALSE)) -> 25 | K62: 30 | L62: 119.95 | M62: 2 | N62: 1335 | O62: =IF(ISERROR(VLOOKUP('Input Sheet'!$N62,TechNumber,2,FALSE)),"",VLOOKUP('Input Sheet'!$N62,TechNumber,2,FALSE)) -> 25 | P62: 50 | T62: =IF(ISERROR(VLOOKUP('Input Sheet'!$S62,TechNumber,2,FALSE)),"",VLOOKUP('Input Sheet'!$S62,TechNumber,2,FALSE)) ->  | V62: 80
B63: 58 | C63: 1M+S839463 | D63: 2015 | E63: COOPER | F63: 34882 | G63: 157.3 | H63: 0.3 | I63: 1317 | J63: =IF(ISERROR(VLOOKUP('Input Sheet'!$I63,TechNumber,2,FALSE)),"",VLOOKUP('Input Sheet'!$I63,TechNumber,2,FALSE)) -> 27.5 | K63: 8.25 | O63: =IF(ISERROR(VLOOKUP('Input Sheet'!$N63,TechNumber,2,FALSE)),"",VLOOKUP('Input Sheet'!$N63,TechNumber,2,FALSE)) ->  | T63: =IF(ISERROR(VLOOKUP('Input Sheet'!$S63,TechNumber,2,FALSE)),"",VLOOKUP('Input Sheet'!$S63,TechNumber,2,FALSE)) ->  | V63: 8.25
B64: 59 | C64: 1M+S839468 | D64: 2013 | E64: COOPER | F64: 17013 | G64: 31.41 | H64: 0.4 | I64: 464 | J64: =IF(ISERROR(VLOOKUP('Input Sheet'!$I64,TechNumber,2,FALSE)),"",VLOOKUP('Input Sheet'!$I64,TechNumber,2,FALSE)) -> 27 | K64: 10.8 | L64: 90.95 | M64: 1 | N64: 464 | O64: =IF(ISERROR(VLOOKUP('Input Sheet'!$N64,TechNumber,2,FALSE)),"",VLOOKUP('Input Sheet'!$N64,TechNumber,2,FALSE)) -> 27 | P64: 27 | T64: =IF(ISERROR(VLOOKUP('Input Sheet'!$S64,TechNumber,2,FALSE)),"",VLOOKUP('Input Sheet'!$S64,TechNumber,2,FALSE)) ->  | V64: 37.8
B65: 60 | C65: 1M+S839469 | D65: 2013 | E65: COOPER | F65: 77975 | G65: 31.41 | H65: 0.4 | I65: 774 | J65: =IF(ISERROR(VLOOKUP('Input Sheet'!$I65,TechNumber,2,FALSE)),"",VLOOKUP('Input Sheet'!$I65,TechNumber,2,FALSE)) -> 35 | K65: 14 | L65: 29.95 | M65: 0.3 | N65: 774 | O65: =IF(ISERROR(VLOOKUP('Input Sheet'!$N65,TechNumber,2,FALSE)),"",VLOOKUP('Input Sheet'!$N65,TechNumber,2,FALSE)) -> 35 | P65: 10.5 | T65: =IF(ISERROR(VLOOKUP('Input Sheet'!$S65,TechNumber,2,FALSE)),"",VLOOKUP('Input Sheet'!$S65,TechNumber,2,FALSE)) ->  | V65: 24.5
B66: 61 | C66: 1M+S839473 | D66: 2009 | E66: COOPER | F66: 123819 | G66: 90.95 | H66: 1 | I66: 1441 | J66: =IF(ISERROR(VLOOKUP('Input Sheet'!$I66,TechNumber,2,FALSE)),"",VLOOKUP('Input Sheet'!$I66,TechNumber,2,FALSE)) -> 26.5 | K66: 26.5 | L66: 316.56 | M66: 1.2 | N66: 1441 | O66: =IF(ISERROR(VLOOKUP('Input Sheet'!$N66,TechNumber,2,FALSE)),"",VLOOKUP('Input Sheet'!$N66,TechNumber,2,FALSE)) -> 26.5 | P66: 31.8 | T66: =IF(ISERROR(VLOOKUP('Input Sheet'!$S66,TechNumber,2,FALSE)),"",VLOOKUP('Input Sheet'!$S66,TechNumber,2,FALSE)) ->  | V66: 58.3
B67: 62 | C67: 1M+S839477 | D67: 2009 | E67: COOPER | F67: 42268 | J67: =IF(ISERROR(VLOOKUP('Input Sheet'!$I67,TechNumber,2,FALSE)),"",VLOOKUP('Input Sheet'!$I67,TechNumber,2,FALSE)) ->  | L67: 135 | M67: 1 | N67: 1317 | O67: =IF(ISERROR(VLOOKUP('Input Sheet'!$N67,TechNumber,2,FALSE)),"",VLOOKUP('Input Sheet'!$N67,TechNumber,2,FALSE)) -> 27.5 | P67: 27.5 | T67: =IF(ISERROR(VLOOKUP('Input Sheet'!$S67,TechNumber,2,FALSE)),"",VLOOKUP('Input Sheet'!$S67,TechNumber,2,FALSE)) ->  | V67: 27.5 | W67: 1
B68: 63 | C68: 1M+S839480 | D68: 2015 | E68: COOPER | F68: 12540 | J68: =IF(ISERROR(VLOOKUP('Input Sheet'!$I68,TechNumber,2,FALSE)),"",VLOOKUP('Input Sheet'!$I68,TechNumber,2,FALSE)) ->  | L68: 119.95 | M68: 2 | N68: 1278 | O68: =IF(ISERROR(VLOOKUP('Input Sheet'!$N68,TechNumber,2,FALSE)),"",VLOOKUP('Input Sheet'!$N68,TechNumber,2,FALSE)) -> 23.5 | P68: 47 | T68: =IF(ISERROR(VLOOKUP('Input Sheet'!$S68,TechNumber,2,FALSE)),"",VLOOKUP('Input Sheet'!$S68,TechNumber,2,FALSE)) ->  | V68: 47 | W68: 1
B69: 64 | C69: 1M+S839487 | D69: 2011 | E69: COOPER | F69: 55705 | G69: 31.41 | H69: 0.4 | I69: 494 | J69: =IF(ISERROR(VLOOKUP('Input Sheet'!$I69,TechNumber,2,FALSE)),"",VLOOKUP('Input Sheet'!$I69,TechNumber,2,FALSE)) -> 31.5 | K69: 12.6 | L69: 108.75 | M69: 0.75 | N69: 494 | O69: =IF(ISERROR(VLOOKUP('Input Sheet'!$N69,TechNumber,2,FALSE)),"",VLOOKUP('Input Sheet'!$N69,TechNumber,2,FALSE)) -> 31.5 | P69: 23.625 | T69: =IF(ISERROR(VLOOKUP('Input Sheet'!$S69,TechNumber,2,FALSE)),"",VLOOKUP('Input Sheet'!$S69,TechNumber,2,FALSE)) ->  | V69: 36.225
B70: 65 | C70: 1M+S839483 | D70: 2015 | E70: COOPER | F70: 29721 | J70: =IF(ISERROR(VLOOKUP('Input Sheet'!$I70,TechNumber,2,FALSE)),"",VLOOKUP('Input Sheet'!$I70,TechNumber,2,FALSE)) ->  | K70: =IF(ISERROR(H70*J70),"",H70*J70) ->  | L70: 119.95 | M70: 2 | N70: 1278 | O70: =IF(ISERROR(VLOOKUP('Input Sheet'!$N70,TechNumber,2,FALSE)),"",VLOOKUP('Input Sheet'!$N70,TechNumber,2,FALSE)) -> 23.5 | P70: =IF(ISERROR(M70*O70)," ",M70*O70) -> 47 | T70: =IF(ISERROR(VLOOKUP('Input Sheet'!$S70,TechNumber,2,FALSE)),"",VLOOKUP('Input Sheet'!$S70,TechNumber,2,FALSE)) ->  | U70: =IF(ISERROR(R70*T70),"",R70*T70) ->  | V70: 47 | W70: 1
B71: 66 | C71: 1M+S839496 | D71: 2014 | E71: COOPER | F71: 33487 | J71: =IF(ISERROR(VLOOKUP('Input Sheet'!$I71,TechNumber,2,FALSE)),"",VLOOKUP('Input Sheet'!$I71,TechNumber,2,FALSE)) ->  | L71: 119.95 | M71: 2 | N71: 1317 | O71: =IF(ISERROR(VLOOKUP('Input Sheet'!$N71,TechNumber,2,FALSE)),"",VLOOKUP('Input Sheet'!$N71,TechNumber,2,FALSE)) -> 27.5 | P71: 55 | Q71: 145 | R71: 1 | S71: 1317 | T71: =IF(ISERROR(VLOOKUP('Input Sheet'!$S71,TechNumber,2,FALSE)),"",VLOOKUP('Input Sheet'!$S71,TechNumber,2,FALSE)) -> 27.5 | U71: 27.5 | V71: =SUM(U71,P71,K71) -> 82.5
B72: 67 | C72: 1M+S839498 | D72: 2011 | E72: COOPER | F72: 58848 | J72: =IF(ISERROR(VLOOKUP('Input Sheet'!$I72,TechNumber,2,FALSE)),"",VLOOKUP('Input Sheet'!$I72,TechNumber,2,FALSE)) ->  | L72: 110 | M72: 1.5 | N72: 940 | O72: =IF(ISERROR(VLOOKUP('Input Sheet'!$N72,TechNumber,2,FALSE)),"",VLOOKUP('Input Sheet'!$N72,TechNumber,2,FALSE)) -> 31 | P72: 46.5 | T72: =IF(ISERROR(VLOOKUP('Input Sheet'!$S72,TechNumber,2,FALSE)),"",VLOOKUP('Input Sheet'!$S72,TechNumber,2,FALSE)) ->  | V72: 46.5
B73: 68 | C73: 1M+S839504 | D73: 2011 | E73: COOPER | F73: 40935 | J73: =IF(ISERROR(VLOOKUP('Input Sheet'!$I73,TechNumber,2,FALSE)),"",VLOOKUP('Input Sheet'!$I73,TechNumber,2,FALSE)) ->  | L73: 110 | M73: 1.5 | N73: 464 | O73: =IF(ISERROR(VLOOKUP('Input Sheet'!$N73,TechNumber,2,FALSE)),"",VLOOKUP('Input Sheet'!$N73,TechNumber,2,FALSE)) -> 27 | P73: 40.5 | T73: =IF(ISERROR(VLOOKUP('Input Sheet'!$S73,TechNumber,2,FALSE)),"",VLOOKUP('Input Sheet'!$S73,TechNumber,2,FALSE)) ->  | V73: 40.5
B74: 69 | C74: 1M+S839514 | D74: 2015 | E74: COOPER | F74: 37729 | G74: 29.95 | H74: 0.4 | I74: 1317 | J74: =IF(ISERROR(VLOOKUP('Input Sheet'!$I74,TechNumber,2,FALSE)),"",VLOOKUP('Input Sheet'!$I74,TechNumber,2,FALSE)) -> 27.5 | K74: 11 | O74: =IF(ISERROR(VLOOKUP('Input Sheet'!$N74,TechNumber,2,FALSE)),"",VLOOKUP('Input Sheet'!$N74,TechNumber,2,FALSE)) ->  | T74: =IF(ISERROR(VLOOKUP('Input Sheet'!$S74,TechNumber,2,FALSE)),"",VLOOKUP('Input Sheet'!$S74,TechNumber,2,FALSE)) ->  | V74: 11
B75: 70 | C75: 1M+S839520 | D75: 2013 | E75: COOPER | F75: 25474 | J75: =IF(ISERROR(VLOOKUP('Input Sheet'!$I75,TechNumber,2,FALSE)),"",VLOOKUP('Input Sheet'!$I75,TechNumber,2,FALSE)) ->  | O75: =IF(ISERROR(VLOOKUP('Input Sheet'!$N75,TechNumber,2,FALSE)),"",VLOOKUP('Input Sheet'!$N75,TechNumber,2,FALSE)) ->  | Q75: 217.5 | R75: 1.5 | S75: 774 | T75: =IF(ISERROR(VLOOKUP('Input Sheet'!$S75,TechNumber,2,FALSE)),"",VLOOKUP('Input Sheet'!$S75,TechNumber,2,FALSE)) -> 35 | U75: 52.5 | V75: 52.5
B76: 71 | C76: 1M+S839522 | D76: 2006 | E76: COOPER | F76: 94279 | G76: 31.41 | H76: 0.4 | I76: 464 | J76: =IF(ISERROR(VLOOKUP('Input Sheet'!$I76,TechNumber,2,FALSE)),"",VLOOKUP('Input Sheet'!$I76,TechNumber,2,FALSE)) -> 27 | K76: 10.8 | L76: 90.95 | M76: 1 | N76: 464 | O76: =IF(ISERROR(VLOOKUP('Input Sheet'!$N76,TechNumber,2,FALSE)),"",VLOOKUP('Input Sheet'!$N76,TechNumber,2,FALSE)) -> 27 | P76: 27 | Q76: 499.5 | R76: 3.7 | S76: 464 | T76: =IF(ISERROR(VLOOKUP('Input Sheet'!$S76,TechNumber,2,FALSE)),"",VLOOKUP('Input Sheet'!$S76,TechNumber,2,FALSE)) -> 27 | U76: 99.9 | V76: 137.7
B77: 72 | C77: 1M+S839525 | D77: 2010 | E77: COOPER | F77: 71590 | J77: =IF(ISERROR(VLOOKUP('Input Sheet'!$I77,TechNumber,2,FALSE)),"",VLOOKUP('Input Sheet'!$I77,TechNumber,2,FALSE)) ->  | L77: 135 | M77: 1 | N77: 1278 | O77: =IF(ISERROR(VLOOKUP('Input Sheet'!$N77,TechNumber,2,FALSE)),"",VLOOKUP('Input Sheet'!$N77,TechNumber,2,FALSE)) -> 23.5 | P77: 23.5 | T77: =IF(ISERROR(VLOOKUP('Input Sheet'!$S77,TechNumber,2,FALSE)),"",VLOOKUP('Input Sheet'!$S77,TechNumber,2,FALSE)) ->  | V77: 23.5
B78: 73 | C78: 1M+S839530 | D78: 2011 | E78: COOPER | F78: 82647 | J78: =IF(ISERROR(VLOOKUP('Input Sheet'!$I78,TechNumber,2,FALSE)),"",VLOOKUP('Input Sheet'!$I78,TechNumber,2,FALSE)) ->  | L78: 135 | M78: 1 | N78: 1441 | O78: =IF(ISERROR(VLOOKUP('Input Sheet'!$N78,TechNumber,2,FALSE)),"",VLOOKUP('Input Sheet'!$N78,TechNumber,2,FALSE)) -> 26.5 | P78: 26.5 | Q78: 15 | R78: 0.3 | S78: 1441 | T78: =IF(ISERROR(VLOOKUP('Input Sheet'!$S78,TechNumber,2,FALSE)),"",VLOOKUP('Input Sheet'!$S78,TechNumber,2,FALSE)) -> 26.5 | U78: 7.95 | V78: 34.45
B79: 74 | C79: 1M+S839531 | D79: 2011 | E79: COOPER | F79: 41315 | G79: 90.95 | H79: 1 | I79: 1335 | J79: =IF(ISERROR(VLOOKUP('Input Sheet'!$I79,TechNumber,2,FALSE)),"",VLOOKUP('Input Sheet'!$I79,TechNumber,2,FALSE)) -> 25 | K79: 25 | L79: 270 | M79: 2 | N79: 1335 | O79: =IF(ISERROR(VLOOKUP('Input Sheet'!$N79,TechNumber,2,FALSE)),"",VLOOKUP('Input Sheet'!$N79,TechNumber,2,FALSE)) -> 25 | P79: 50 | Q79: 135 | R79: 1 | S79: 1335 | T79: =IF(ISERROR(VLOOKUP('Input Sheet'!$S79,TechNumber,2,FALSE)),"",VLOOKUP('Input Sheet'!$S79,TechNumber,2,FALSE)) -> 25 | U79: 25 | V79: 100
B80: 75 | C80: 1M+S839534 | D80: 2009 | E80: COOPER | F80: 86824 | G80: 31.41 | H80: 0.4 | I80: 1489 | J80: =IF(ISERROR(VLOOKUP('Input Sheet'!$I80,TechNumber,2,FALSE)),"",VLOOKUP('Input Sheet'!$I80,TechNumber,2,FALSE)) -> 19 | K80: 7.6 | O80: =IF(ISERROR(VLOOKUP('Input Sheet'!$N80,TechNumber,2,FALSE)),"",VLOOKUP('Input Sheet'!$N80,TechNumber,2,FALSE)) ->  | T80: =IF(ISERROR(VLOOKUP('Input Sheet'!$S80,TechNumber,2,FALSE)),"",VLOOKUP('Input Sheet'!$S80,TechNumber,2,FALSE)) ->  | V80: 7.6 | W80: 1
B81: 76 | C81: 1M+S839535 | D81: 2012 | E81: COOPER | F81: 43245 | G81: 31.41 | H81: 0.4 | I81: 1335 | J81: =IF(ISERROR(VLOOKUP('Input Sheet'!$I81,TechNumber,2,FALSE)),"",VLOOKUP('Input Sheet'!$I81,TechNumber,2,FALSE)) -> 25 | K81: 10 | L81: 73.5 | M81: 0.7 | N81: 1335 | O81: =IF(ISERROR(VLOOKUP('Input Sheet'!$N81,TechNumber,2,FALSE)),"",VLOOKUP('Input Sheet'!$N81,TechNumber,2,FALSE)) -> 25 | P81: 17.5 | Q81: 207 | R81: 1.8 | S81: 1335 | T81: =IF(ISERROR(VLOOKUP('Input Sheet'!$S81,TechNumber,2,FALSE)),"",VLOOKUP('Input Sheet'!$S81,TechNumber,2,FALSE)) -> 25 | U81: 45 | V81: 72.5
B82: 77 | C82: 1M+S839539 | D82: 2014 | E82: COOPER | F82: 64860 | J82: =IF(ISERROR(VLOOKUP('Input Sheet'!$I82,TechNumber,2,FALSE)),"",VLOOKUP('Input Sheet'!$I82,TechNumber,2,FALSE)) ->  | O82: =IF(ISERROR(VLOOKUP('Input Sheet'!$N82,TechNumber,2,FALSE)),"",VLOOKUP('Input Sheet'!$N82,TechNumber,2,FALSE)) ->  | T82: =IF(ISERROR(VLOOKUP('Input Sheet'!$S82,TechNumber,2,FALSE)),"",VLOOKUP('Input Sheet'!$S82,TechNumber,2,FALSE)) ->  | V82: 0
B83: 78 | C83: 1M+S839541 | D83: 2004 | E83: COOPER | F83: 71649 | G83: 31.41 | H83: 0.4 | I83: 1317 | J83: =IF(ISERROR(VLOOKUP('Input Sheet'!$I83,TechNumber,2,FALSE)),"",VLOOKUP('Input Sheet'!$I83,TechNumber,2,FALSE)) -> 27.5 | K83: 11 | O83: =IF(ISERROR(VLOOKUP('Input Sheet'!$N83,TechNumber,2,FALSE)),"",VLOOKUP('Input Sheet'!$N83,TechNumber,2,FALSE)) ->  | Q83: 30 | R83: 0.6 | S83: 1317 | T83: =IF(ISERROR(VLOOKUP('Input Sheet'!$S83,TechNumber,2,FALSE)),"",VLOOKUP('Input Sheet'!$S83,TechNumber,2,FALSE)) -> 27.5 | U83: 16.5 | V83: 27.5
B84: 79 | C84: 1M+S839543 | D84: 2013 | E84: COOPER | F84: 10470 | G84: 31.41 | H84: 0.4 | I84: 1278 | J84: =IF(ISERROR(VLOOKUP('Input Sheet'!$I84,TechNumber,2,FALSE)),"",VLOOKUP('Input Sheet'!$I84,TechNumber,2,FALSE)) -> 23.5 | K84: 9.4 | L84: 90.95 | M84: 1 | N84: 1278 | O84: =IF(ISERROR(VLOOKUP('Input Sheet'!$N84,TechNumber,2,FALSE)),"",VLOOKUP('Input Sheet'!$N84,TechNumber,2,FALSE)) -> 23.5 | P84: 23.5 | T84: =IF(ISERROR(VLOOKUP('Input Sheet'!$S84,TechNumber,2,FALSE)),"",VLOOKUP('Input Sheet'!$S84,TechNumber,2,FALSE)) ->  | V84: 32.9
B85: 80 | C85: 1M+S839561 | D85: 2014 | E85: COOPER | F85: 38806 | G85: 31.41 | H85: 0.4 | I85: 913 | J85: =IF(ISERROR(VLOOKUP('Input Sheet'!$I85,TechNumber,2,FALSE)),"",VLOOKUP('Input Sheet'!$I85,TechNumber,2,FALSE)) -> 26.5 | K85: 10.6 | L85: 161 | M85: 1.4 | N85: 913 | O85: =IF(ISERROR(VLOOKUP('Input Sheet'!$N85,TechNumber,2,FALSE)),"",VLOOKUP('Input Sheet'!$N85,TechNumber,2,FALSE)) -> 26.5 | P85: 37.1 | T85: =IF(ISERROR(VLOOKUP('Input Sheet'!$S85,TechNumber,2,FALSE)),"",VLOOKUP('Input Sheet'!$S85,TechNumber,2,FALSE)) ->  | V85: 47.7
B86: 81 | C86: 1M+S839566 | D86: 2012 | E86: COOPER | F86: 44729 | G86: 31.41 | H86: 0.4 | I86: 913 | J86: =IF(ISERROR(VLOOKUP('Input Sheet'!$I86,TechNumber,2,FALSE)),"",VLOOKUP('Input Sheet'!$I86,TechNumber,2,FALSE)) -> 26.5 | K86: 10.6 | L86: 42 | M86: 0.4 | N86: 913 | O86: =IF(ISERROR(VLOOKUP('Input Sheet'!$N86,TechNumber,2,FALSE)),"",VLOOKUP('Input Sheet'!$N86,TechNumber,2,FALSE)) -> 26.5 | P86: 10.6 | T86: =IF(ISERROR(VLOOKUP('Input Sheet'!$S86,TechNumber,2,FALSE)),"",VLOOKUP('Input Sheet'!$S86,TechNumber,2,FALSE)) ->  | V86: 21.2
B87: 82 | C87: 1M+S839573 | D87: 2016 | E87: COOPER | F87: 33660 | G87: 25 | H87: 0.3 | I87: 913 | J87: =IF(ISERROR(VLOOKUP('Input Sheet'!$I87,TechNumber,2,FALSE)),"",VLOOKUP('Input Sheet'!$I87,TechNumber,2,FALSE)) -> 26.5 | K87: 7.95 | L87: 119.95 | M87: 2 | N87: 913 | O87: =IF(ISERROR(VLOOKUP('Input Sheet'!$N87,TechNumber,2,FALSE)),"",VLOOKUP('Input Sheet'!$N87,TechNumber,2,FALSE)) -> 26.5 | P87: 53 | Q87: 75 | R87: 0.9 | S87: 913 | T87: =IF(ISERROR(VLOOKUP('Input Sheet'!$S87,TechNumber,2,FALSE)),"",VLOOKUP('Input Sheet'!$S87,TechNumber,2,FALSE)) -> 26.5 | U87: 23.85 | V87: 84.8
B88: 83 | C88: 1M+S839229 | D88: 2005 | E88: COOPER | F88: 157089 | G88: 31.41 | H88: 0.4 | I88: 1278 | J88: =IF(ISERROR(VLOOKUP('Input Sheet'!$I88,TechNumber,2,FALSE)),"",VLOOKUP('Input Sheet'!$I88,TechNumber,2,FALSE)) -> 23.5 | K88: 9.4 | L88: =92+162 -> 254 | M88: 1.8 | N88: 1278 | O88: =IF(ISERROR(VLOOKUP('Input Sheet'!$N88,TechNumber,2,FALSE)),"",VLOOKUP('Input Sheet'!$N88,TechNumber,2,FALSE)) -> 23.5 | P88: 42.3 | Q88: 567 | R88: 4.2 | S88: 1278 | T88: =IF(ISERROR(VLOOKUP('Input Sheet'!$S88,TechNumber,2,FALSE)),"",VLOOKUP('Input Sheet'!$S88,TechNumber,2,FALSE)) -> 23.5 | U88: 98.7 | V88: 150.4
B89: 84 | C89: 1M+S839270 | D89: 2012 | E89: COOPER | F89: 50884 | J89: =IF(ISERROR(VLOOKUP('Input Sheet'!$I89,TechNumber,2,FALSE)),"",VLOOKUP('Input Sheet'!$I89,TechNumber,2,FALSE)) ->  | O89: =IF(ISERROR(VLOOKUP('Input Sheet'!$N89,TechNumber,2,FALSE)),"",VLOOKUP('Input Sheet'!$N89,TechNumber,2,FALSE)) ->  | Q89: 87 | R89: 0.6 | S89: 940 | T89: =IF(ISERROR(VLOOKUP('Input Sheet'!$S89,TechNumber,2,FALSE)),"",VLOOKUP('Input Sheet'!$S89,TechNumber,2,FALSE)) -> 31 | U89: 18.6 | V89: 18.6 | W89: 1
B90: 85 | C90: 1M+S839279 | D90: 2012 | E90: COOPER | F90: 50421 | J90: =IF(ISERROR(VLOOKUP('Input Sheet'!$I90,TechNumber,2,FALSE)),"",VLOOKUP('Input Sheet'!$I90,TechNumber,2,FALSE)) ->  | L90: 391.5 | M90: 2.7 | N90: 494 | O90: =IF(ISERROR(VLOOKUP('Input Sheet'!$N90,TechNumber,2,FALSE)),"",VLOOKUP('Input Sheet'!$N90,TechNumber,2,FALSE)) -> 31.5 | P90: 85.05 | T90: =IF(ISERROR(VLOOKUP('Input Sheet'!$S90,TechNumber,2,FALSE)),"",VLOOKUP('Input Sheet'!$S90,TechNumber,2,FALSE)) ->  | V90: 85.05 | W90: 1
B91: 86 | C91: 1M+S839287 | D91: 2011 | E91: COOPER | F91: 61709 | G91: 31.41 | H91: 0.4 | I91: 1441 | J91: =IF(ISERROR(VLOOKUP('Input Sheet'!$I91,TechNumber,2,FALSE)),"",VLOOKUP('Input Sheet'!$I91,TechNumber,2,FALSE)) -> 26.5 | K91: 10.6 | L91: 73 | M91: 0.7 | N91: 1441 | O91: =IF(ISERROR(VLOOKUP('Input Sheet'!$N91,TechNumber,2,FALSE)),"",VLOOKUP('Input Sheet'!$N91,TechNumber,2,FALSE)) -> 26.5 | P91: 18.55 | Q91: 540 | R91: 4 | S91: 1441 | T91: =IF(ISERROR(VLOOKUP('Input Sheet'!$S91,TechNumber,2,FALSE)),"",VLOOKUP('Input Sheet'!$S91,TechNumber,2,FALSE)) -> 26.5 | U91: 106 | V91: 135.15
B92: 87 | C92: 1M+S839294 | D92: 2010 | E92: COOPER | F92: 75011 | G92: 25 | H92: 0.3 | I92: 913 | J92: =IF(ISERROR(VLOOKUP('Input Sheet'!$I92,TechNumber,2,FALSE)),"",VLOOKUP('Input Sheet'!$I92,TechNumber,2,FALSE)) -> 26.5 | K92: 7.95 | O92: =IF(ISERROR(VLOOKUP('Input Sheet'!$N92,TechNumber,2,FALSE)),"",VLOOKUP('Input Sheet'!$N92,TechNumber,2,FALSE)) ->  | Q92: 189 | R92: 1.4 | S92: 913 | T92: =IF(ISERROR(VLOOKUP('Input Sheet'!$S92,TechNumber,2,FALSE)),"",VLOOKUP('Input Sheet'!$S92,TechNumber,2,FALSE)) -> 26.5 | U92: 37.1 | V92: 45.05
B93: 88 | C93: 1M+S839311 | D93: 2015 | E93: COOPER | F93: 28327 | J93: =IF(ISERROR(VLOOKUP('Input Sheet'!$I93,TechNumber,2,FALSE)),"",VLOOKUP('Input Sheet'!$I93,TechNumber,2,FALSE)) ->  | O93: =IF(ISERROR(VLOOKUP('Input Sheet'!$N93,TechNumber,2,FALSE)),"",VLOOKUP('Input Sheet'!$N93,TechNumber,2,FALSE)) ->  | Q93: 232 | R93: 1.6 | S93: 1441 | T93: =IF(ISERROR(VLOOKUP('Input Sheet'!$S93,TechNumber,2,FALSE)),"",VLOOKUP('Input Sheet'!$S93,TechNumber,2,FALSE)) -> 26.5 | U93: 42.4 | V93: 42.4
B94: 89 | C94: 1M+S836347 | D94: 2014 | E94: COOPER | F94: 55688 | G94: =31.41+49.95 -> 81.36 | H94: 1 | I94: 1335 | J94: =IF(ISERROR(VLOOKUP('Input Sheet'!$I94,TechNumber,2,FALSE)),"",VLOOKUP('Input Sheet'!$I94,TechNumber,2,FALSE)) -> 25 | K94: 25 | L94: =60+73.5 -> 133.5 | M94: 1.5 | N94: 1335 | O94: =IF(ISERROR(VLOOKUP('Input Sheet'!$N94,TechNumber,2,FALSE)),"",VLOOKUP('Input Sheet'!$N94,TechNumber,2,FALSE)) -> 25 | P94: 37.5 | T94: =IF(ISERROR(VLOOKUP('Input Sheet'!$S94,TechNumber,2,FALSE)),"",VLOOKUP('Input Sheet'!$S94,TechNumber,2,FALSE)) ->  | V94: 62.5
B95: 90 | C95: 1M+S839351 | D95: 2013 | E95: COOPER | F95: 83420 | G95: 31.41 | H95: 0.4 | I95: 1441 | J95: =IF(ISERROR(VLOOKUP('Input Sheet'!$I95,TechNumber,2,FALSE)),"",VLOOKUP('Input Sheet'!$I95,TechNumber,2,FALSE)) -> 26.5 | K95: 10.6 | L95: 90.95 | M95: 1 | N95: 1441 | O95: =IF(ISERROR(VLOOKUP('Input Sheet'!$N95,TechNumber,2,FALSE)),"",VLOOKUP('Input Sheet'!$N95,TechNumber,2,FALSE)) -> 26.5 | P95: 26.5 | T95: =IF(ISERROR(VLOOKUP('Input Sheet'!$S95,TechNumber,2,FALSE)),"",VLOOKUP('Input Sheet'!$S95,TechNumber,2,FALSE)) ->  | V95: 37.1
B96: 91 | C96: 1M+S839294 | D96: 2010 | E96: COOPER | F96: 75011 | G96: 229.5 | H96: 1.7 | I96: 1317 | J96: =IF(ISERROR(VLOOKUP('Input Sheet'!$I96,TechNumber,2,FALSE)),"",VLOOKUP('Input Sheet'!$I96,TechNumber,2,FALSE)) -> 27.5 | K96: 46.75 | O96: =IF(ISERROR(VLOOKUP('Input Sheet'!$N96,TechNumber,2,FALSE)),"",VLOOKUP('Input Sheet'!$N96,TechNumber,2,FALSE)) ->  | Q96: 864 | R96: 6.4 | S96: 1317 | T96: =IF(ISERROR(VLOOKUP('Input Sheet'!$S96,TechNumber,2,FALSE)),"",VLOOKUP('Input Sheet'!$S96,TechNumber,2,FALSE)) -> 27.5 | U96: 176 | V96: 222.75
B97: 92 | C97: 1M+S839365 | D97: 2012 | E97: COOPER | F97: 53536 | J97: =IF(ISERROR(VLOOKUP('Input Sheet'!$I97,TechNumber,2,FALSE)),"",VLOOKUP('Input Sheet'!$I97,TechNumber,2,FALSE)) ->  | L97: 217.5 | M97: 1.5 | N97: 1441 | O97: =IF(ISERROR(VLOOKUP('Input Sheet'!$N97,TechNumber,2,FALSE)),"",VLOOKUP('Input Sheet'!$N97,TechNumber,2,FALSE)) -> 26.5 | P97: 39.75 | T97: =IF(ISERROR(VLOOKUP('Input Sheet'!$S97,TechNumber,2,FALSE)),"",VLOOKUP('Input Sheet'!$S97,TechNumber,2,FALSE)) ->  | V97: 39.75 | W97: 1
B98: 93 | C98: 1M+S839360 | D98: 2008 | E98: COOPER | F98: 93246 | J98: =IF(ISERROR(VLOOKUP('Input Sheet'!$I98,TechNumber,2,FALSE)),"",VLOOKUP('Input Sheet'!$I98,TechNumber,2,FALSE)) ->  | L98: 217.5 | M98: 1.5 | N98: 940 | O98: =IF(ISERROR(VLOOKUP('Input Sheet'!$N98,TechNumber,2,FALSE)),"",VLOOKUP('Input Sheet'!$N98,TechNumber,2,FALSE)) -> 31 | P98: 46.5 | T98: =IF(ISERROR(VLOOKUP('Input Sheet'!$S98,TechNumber,2,FALSE)),"",VLOOKUP('Input Sheet'!$S98,TechNumber,2,FALSE)) ->  | V98: 46.5 | W98: 1
B99: 94 | C99: 1M+S839378 | D99: 2011 | E99: COOPER | F99: 3 | J99: =IF(ISERROR(VLOOKUP('Input Sheet'!$I99,TechNumber,2,FALSE)),"",VLOOKUP('Input Sheet'!$I99,TechNumber,2,FALSE)) ->  | L99: 378 | M99: 2.8 | N99: 940 | O99: =IF(ISERROR(VLOOKUP('Input Sheet'!$N99,TechNumber,2,FALSE)),"",VLOOKUP('Input Sheet'!$N99,TechNumber,2,FALSE)) -> 31 | P99: 86.8 | Q99: 756 | R99: 5.6 | S99: 940 | T99: =IF(ISERROR(VLOOKUP('Input Sheet'!$S99,TechNumber,2,FALSE)),"",VLOOKUP('Input Sheet'!$S99,TechNumber,2,FALSE)) -> 31 | U99: 173.6 | V99: 260.4
B100: 95 | C100: 1M+S839408 | D100: 2011 | E100: COOPER | F100: 51721 | J100: =IF(ISERROR(VLOOKUP('Input Sheet'!$I100,TechNumber,2,FALSE)),"",VLOOKUP('Input Sheet'!$I100,TechNumber,2,FALSE)) ->  | L100: 540 | M100: 4 | N100: 464 | O100: =IF(ISERROR(VLOOKUP('Input Sheet'!$N100,TechNumber,2,FALSE)),"",VLOOKUP('Input Sheet'!$N100,TechNumber,2,FALSE)) -> 27 | P100: 108 | Q100: 270 | R100: 2 | S100: 464 | T100: =IF(ISERROR(VLOOKUP('Input Sheet'!$S100,TechNumber,2,FALSE)),"",VLOOKUP('Input Sheet'!$S100,TechNumber,2,FALSE)) -> 27 | U100: 54 | V100: 162
B101: 96 | C101: 1M+S839427 | D101: 2007 | E101: COOPER | F101: 105224 | J101: =IF(ISERROR(VLOOKUP('Input Sheet'!$I101,TechNumber,2,FALSE)),"",VLOOKUP('Input Sheet'!$I101,TechNumber,2,FALSE)) ->  | L101: 90.95 | M101: 1 | N101: 1335 | O101: =IF(ISERROR(VLOOKUP('Input Sheet'!$N101,TechNumber,2,FALSE)),"",VLOOKUP('Input Sheet'!$N101,TechNumber,2,FALSE)) -> 25 | P101: 25 | Q101: 472.5 | R101: 3.5 | S101: 1335 | T101: =IF(ISERROR(VLOOKUP('Input Sheet'!$S101,TechNumber,2,FALSE)),"",VLOOKUP('Input Sheet'!$S101,TechNumber,2,FALSE)) -> 25 | U101: 87.5 | V101: 112.5
B102: 97 | C102: 1M+S839448 | D102: 2012 | E102: COOPER | F102: 46168 | J102: =IF(ISERROR(VLOOKUP('Input Sheet'!$I102,TechNumber,2,FALSE)),"",VLOOKUP('Input Sheet'!$I102,TechNumber,2,FALSE)) ->  | L102: 86.25 | M102: 0.75 | N102: 1335 | O102: =IF(ISERROR(VLOOKUP('Input Sheet'!$N102,TechNumber,2,FALSE)),"",VLOOKUP('Input Sheet'!$N102,TechNumber,2,FALSE)) -> 25 | P102: 18.75 | T102: =IF(ISERROR(VLOOKUP('Input Sheet'!$S102,TechNumber,2,FALSE)),"",VLOOKUP('Input Sheet'!$S102,TechNumber,2,FALSE)) ->  | V102: 18.75 | W102: 1
B103: 98 | C103: 1M+S839450 | D103: 2008 | E103: COOPER | F103: 35155 | J103: =IF(ISERROR(VLOOKUP('Input Sheet'!$I103,TechNumber,2,FALSE)),"",VLOOKUP('Input Sheet'!$I103,TechNumber,2,FALSE)) ->  | L103: 90.95 | M103: 0.3 | N103: 774 | O103: =IF(ISERROR(VLOOKUP('Input Sheet'!$N103,TechNumber,2,FALSE)),"",VLOOKUP('Input Sheet'!$N103,TechNumber,2,FALSE)) -> 35 | P103: 10.5 | Q103: 189 | R103: 1.4 | S103: 774 | T103: =IF(ISERROR(VLOOKUP('Input Sheet'!$S103,TechNumber,2,FALSE)),"",VLOOKUP('Input Sheet'!$S103,TechNumber,2,FALSE)) -> 35 | U103: 49 | V103: 59.5
B104: 99 | C104: 1M+S839452 | D104: 2009 | E104: COOPER | F104: 91119 | G104: 90.95 | H104: 1 | I104: 1489 | J104: =IF(ISERROR(VLOOKUP('Input Sheet'!$I104,TechNumber,2,FALSE)),"",VLOOKUP('Input Sheet'!$I104,TechNumber,2,FALSE)) -> 19 | K104: 19 | O104: =IF(ISERROR(VLOOKUP('Input Sheet'!$N104,TechNumber,2,FALSE)),"",VLOOKUP('Input Sheet'!$N104,TechNumber,2,FALSE)) ->  | T104: =IF(ISERROR(VLOOKUP('Input Sheet'!$S104,TechNumber,2,FALSE)),"",VLOOKUP('Input Sheet'!$S104,TechNumber,2,FALSE)) ->  | V104: 19 | W104: 1
B105: 100 | C105: 1M+S839462 | D105: 2011 | E105: COOPER | F105: 76633 | J105: =IF(ISERROR(VLOOKUP('Input Sheet'!$I105,TechNumber,2,FALSE)),"",VLOOKUP('Input Sheet'!$I105,TechNumber,2,FALSE)) ->  | K105: =IF(ISERROR(H105*J105),"",H105*J105) ->  | L105: =189+432 -> 621 | M105: 4.6 | N105: 464 | O105: =IF(ISERROR(VLOOKUP('Input Sheet'!$N105,TechNumber,2,FALSE)),"",VLOOKUP('Input Sheet'!$N105,TechNumber,2,FALSE)) -> 27 | P105: =IF(ISERROR(M105*O105)," ",M105*O105) -> 124.2 | T105: =IF(ISERROR(VLOOKUP('Input Sheet'!$S105,TechNumber,2,FALSE)),"",VLOOKUP('Input Sheet'!$S105,TechNumber,2,FALSE)) ->  | U105: =IF(ISERROR(R105*T105),"",R105*T105) ->  | V105: 124.2 | W105: 1
E106: Totals | F106: Totals | G106: =SUM(G6:G105) -> 3737.81 | H106: =SUM(H6:H105) -> 34.2 | K106: =SUM(K6:K105) -> 921.8 | L106: 11515.01 | M106: 100.6 | P106: 2752.175 | Q106: 11277 | R106: 84.2 | U106: 2344.1 | V106: 6018.075 | W106: =COUNTIF(W5:W105,1) -> 26
E107: Number of RO's in Sample | G107: Competative Labor | L107: Maintenance Labor | Q107: Repair Labor | V107: Total Cost of Labor | W107: One Item Repair Order
G108: Labor Sales | H108: Flat Rate Hours | I108: Technican Number | J108: Pay Per FRH | K108: Labor Cost | L108: Labor Sales | M108: Flat Rate Hours | N108: Technican Number | O108: Pay Per FRH | P108: Labor Cost | Q108: Labor Sales | R108: Flat Rate Hours | S108: Technican Number | T108: Pay Per FRH | U108: Labor Cost

Sheet RO Report 1-50
A1: Repair Order Analysis
E2: Competitive Labor | J2: Maintenance Labor | O2: Repair Labor
A3: Dealership | T3: Total Cost of Labor | U3: One Item Repair Order
A4: RO Number | E4: Labor Sales | F4: Flat Rate Hours | G4: Technician Number | H4: Pay Per FRH | I4: Labor Cost | J4: Labor Sales | K4: Flat Rate Hours | L4: Technician Number | M4: Pay Per FRH | N4: Labor Cost | O4: Labor Sales | P4: Flat Rate Hours | Q4: Technician Number | R4: Pay Per FRH | S4: Labor Cost
B5: Year | C5: Model | D5: Mileage
A6: ='Input Sheet'!C6 -> 1M+S838485 (1) | B6: ='Input Sheet'!D6 -> 2011 | C6: ='Input Sheet'!E6 -> COUNTRYMAN | D6: ='Input Sheet'!F6 -> 65926 | E6: ='Input Sheet'!G6 -> 189 | F6: ='Input Sheet'!H6 -> 1.4 | G6: ='Input Sheet'!I6 -> 1278 | H6: ='Input Sheet'!J6 -> 23.5 | I6: =F6*H6 -> 32.9 | J6: ='Input Sheet'!L6 -> 0 | K6: ='Input Sheet'!M6 -> 0 | L6: ='Input Sheet'!I6 -> 1278 | M6: ='Input Sheet'!J6 -> 23.5 | N6: =K6*M6 -> 0 | O6: ='Input Sheet'!Q6 -> 0 | P6: ='Input Sheet'!R6 -> 0 | Q6: ='Input Sheet'!S6 -> 0 | R6: ='Input Sheet'!T6 ->  | S6: =P6*R6 ->  | T6: ='Input Sheet'!V6 -> 32.9 | U6: ='Input Sheet'!W6 -> 1
A7: ='Input Sheet'!C7 -> 1M+S838487 (2) | B7: ='Input Sheet'!D7 -> 2013 | C7: ='Input Sheet'!E7 -> COOPER | D7: ='Input Sheet'!F7 -> 50693 | E7: ='Input Sheet'!G7 -> 0 | F7: ='Input Sheet'!H7 -> 0 | G7: ='Input Sheet'!I7 -> 0 | H7: ='Input Sheet'!J7 ->  | I7: =F7*H7 ->  | J7: ='Input Sheet'!L7 -> 135 | K7: ='Input Sheet'!M7 -> 1 | L7: ='Input Sheet'!I7 -> 0 | M7: ='Input Sheet'!J7 ->  | N7: =K7*M7 ->  | O7: ='Input Sheet'!Q7 -> 0 | P7: ='Input Sheet'!R7 -> 0 | Q7: ='Input Sheet'!S7 -> 0 | R7: ='Input Sheet'!T7 ->  | S7: =P7*R7 ->  | T7: ='Input Sheet'!V7 -> 31 | U7: ='Input Sheet'!W7 -> 0
A8: ='Input Sheet'!C8 -> 1M+S838488 (3) | B8: ='Input Sheet'!D8 -> 2011 | C8: ='Input Sheet'!E8 -> COOPER | D8: ='Input Sheet'!F8 -> 58686 | E8: ='Input Sheet'!G8 -> 0 | F8: ='Input Sheet'!H8 -> 0 | G8: ='Input Sheet'!I8 -> 0 | H8: ='Input Sheet'!J8 ->  | J8: ='Input Sheet'!L8 -> 297 | K8: ='Input Sheet'!M8 -> 2.2 | L8: ='Input Sheet'!I8 -> 0 | M8: ='Input Sheet'!J8 ->  | O8: ='Input Sheet'!Q8 -> 0 | P8: ='Input Sheet'!R8 -> 0 | Q8: ='Input Sheet'!S8 -> 0 | R8: ='Input Sheet'!T8 ->  | T8: ='Input Sheet'!V8 -> 55 | U8: ='Input Sheet'!W8 -> 0
A9: ='Input Sheet'!C9 -> 1M+S838494 | B9: ='Input Sheet'!D9 -> 2017 | C9: ='Input Sheet'!E9 -> COOPER | D9: ='Input Sheet'!F9 -> 11663 | E9: ='Input Sheet'!G9 -> 0 | F9: ='Input Sheet'!H9 -> 0 | G9: ='Input Sheet'!I9 -> 0 | H9: ='Input Sheet'!J9 ->  | J9: ='Input Sheet'!L9 -> 0 | K9: ='Input Sheet'!M9 -> 0 | L9: ='Input Sheet'!I9 -> 0 | M9: ='Input Sheet'!J9 ->  | O9: ='Input Sheet'!Q9 -> 55 | P9: ='Input Sheet'!R9 -> 0.5 | Q9: ='Input Sheet'!S9 -> 988 | R9: ='Input Sheet'!T9 -> 13 | S9: 6.5 | T9: ='Input Sheet'!V9 -> 6.5 | U9: ='Input Sheet'!W9 -> 1
A10: ='Input Sheet'!C10 -> 1M+S838496 | B10: ='Input Sheet'!D10 -> 2011 | C10: ='Input Sheet'!E10 -> COOPER | D10: ='Input Sheet'!F10 -> 52709 | E10: ='Input Sheet'!G10 -> 0 | F10: ='Input Sheet'!H10 -> 0 | G10: ='Input Sheet'!I10 -> 0 | H10: ='Input Sheet'!J10 ->  | J10: ='Input Sheet'!L10 -> 0 | K10: ='Input Sheet'!M10 -> 0 | L10: ='Input Sheet'!I10 -> 0 | M10: ='Input Sheet'!J10 ->  | O10: ='Input Sheet'!Q10 -> 472.5 | P10: ='Input Sheet'!R10 -> 3.5 | Q10: ='Input Sheet'!S10 -> 940 | R10: ='Input Sheet'!T10 -> 31 | S10: 108.5 | T10: ='Input Sheet'!V10 -> 108.5 | U10: ='Input Sheet'!W10 -> 0
A11: ='Input Sheet'!C11 -> 1M+S838511 | B11: ='Input Sheet'!D11 -> 2011 | C11: ='Input Sheet'!E11 -> COOPER | D11: ='Input Sheet'!F11 -> 79203 | E11: ='Input Sheet'!G11 -> 0 | F11: ='Input Sheet'!H11 -> 0 | G11: ='Input Sheet'!I11 -> 0 | H11: ='Input Sheet'!J11 ->  | J11: ='Input Sheet'!L11 -> 162 | K11: ='Input Sheet'!M11 -> 1.2 | L11: ='Input Sheet'!I11 -> 0 | M11: ='Input Sheet'!J11 ->  | O11: ='Input Sheet'!Q11 -> 0 | P11: ='Input Sheet'!R11 -> 0 | Q11: ='Input Sheet'!S11 -> 0 | R11: ='Input Sheet'!T11 ->  | T11: ='Input Sheet'!V11 -> 33 | U11: ='Input Sheet'!W11 -> 0
A12: ='Input Sheet'!C12 -> 1M+S838505 | B12: ='Input Sheet'!D12 -> 2014 | C12: ='Input Sheet'!E12 -> COOPER | D12: ='Input Sheet'!F12 -> 18063 | E12: ='Input Sheet'!G12 -> 31.41 | F12: ='Input Sheet'!H12 -> 0.4 | G12: ='Input Sheet'!I12 -> 1441 | H12: ='Input Sheet'!J12 -> 26.5 | I12: 10.6 | J12: ='Input Sheet'!L12 -> 90.95 | K12: ='Input Sheet'!M12 -> 1 | L12: ='Input Sheet'!I12 -> 1441 | M12: ='Input Sheet'!J12 -> 26.5 | N12: 26.5 | O12: ='Input Sheet'!Q12 -> 0 | P12: ='Input Sheet'!R12 -> 0 | Q12: ='Input Sheet'!S12 -> 0 | R12: ='Input Sheet'!T12 ->  | T12: ='Input Sheet'!V12 -> 37.1 | U12: ='Input Sheet'!W12 -> 0
A13: ='Input Sheet'!C13 -> 1M+s838512 | B13: ='Input Sheet'!D13 -> 2010 | C13: ='Input Sheet'!E13 -> COOPER | D13: ='Input Sheet'!F13 -> 65759 | E13: ='Input Sheet'!G13 -> 31.41 | F13: ='Input Sheet'!H13 -> 0.4 | G13: ='Input Sheet'!I13 -> 1441 | H13: ='Input Sheet'!J13 -> 26.5 | I13: 10.6 | J13: ='Input Sheet'!L13 -> 0 | K13: ='Input Sheet'!M13 -> 0 | L13: ='Input Sheet'!I13 -> 1441 | M13: ='Input Sheet'!J13 -> 26.5 | N13: 0 | O13: ='Input Sheet'!Q13 -> 504 | P13: ='Input Sheet'!R13 -> 3.6 | Q13: ='Input Sheet'!S13 -> 1441 | R13: ='Input Sheet'!T13 -> 26.5 | S13: 95.4 | T13: ='Input Sheet'!V13 -> 106 | U13: ='Input Sheet'!W13 -> 0
A14: ='Input Sheet'!C14 -> 1M+S838518 | B14: ='Input Sheet'!D14 -> 2016 | C14: ='Input Sheet'!E14 -> COOPER | D14: ='Input Sheet'!F14 -> 5123 | E14: ='Input Sheet'!G14 -> 49.95 | F14: ='Input Sheet'!H14 -> 0.6 | G14: ='Input Sheet'!I14 -> 913 | H14: ='Input Sheet'!J14 -> 26.5 | I14: 15.9 | J14: ='Input Sheet'!L14 -> 0 | K14: ='Input Sheet'!M14 -> 0 | L14: ='Input Sheet'!I14 -> 913 | M14: ='Input Sheet'!J14 -> 26.5 | N14: 0 | O14: ='Input Sheet'!Q14 -> 0 | P14: ='Input Sheet'!R14 -> 0 | Q14: ='Input Sheet'!S14 -> 0 | R14: ='Input Sheet'!T14 ->  | T14: ='Input Sheet'!V14 -> 15.9 | U14: ='Input Sheet'!W14 -> 1
A15: ='Input Sheet'!C15 -> 1M+S838519 | B15: ='Input Sheet'!D15 -> 2013 | C15: ='Input Sheet'!E15 -> COOPER | D15: ='Input Sheet'!F15 -> 34013 | E15: ='Input Sheet'!G15 -> 31.41 | F15: ='Input Sheet'!H15 -> 0.4 | G15: ='Input Sheet'!I15 -> 1335 | H15: ='Input Sheet'!J15 -> 25 | I15: 10 | J15: ='Input Sheet'!L15 -> 161 | K15: ='Input Sheet'!M15 -> 1.4 | L15: ='Input Sheet'!I15 -> 1335 | M15: ='Input Sheet'!J15 -> 25 | N15: 35 | O15: ='Input Sheet'!Q15 -> 0 | P15: ='Input Sheet'!R15 -> 0 | Q15: ='Input Sheet'!S15 -> 0 | R15: ='Input Sheet'!T15 ->  | T15: ='Input Sheet'!V15 -> 45 | U15: ='Input Sheet'!W15 -> 0
A16: ='Input Sheet'!C16 -> 1M+S838528 | B16: ='Input Sheet'!D16 -> 2015 | C16: ='Input Sheet'!E16 -> COOPER | D16: ='Input Sheet'!F16 -> 47094 | E16: ='Input Sheet'!G16 -> 29.95 | F16: ='Input Sheet'!H16 -> 0.4 | G16: ='Input Sheet'!I16 -> 1317 | H16: ='Input Sheet'!J16 -> 27.5 | I16: 11 | J16: ='Input Sheet'!L16 -> 86.25 | K16: ='Input Sheet'!M16 -> 0.75 | L16: ='Input Sheet'!I16 -> 1317 | M16: ='Input Sheet'!J16 -> 27.5 | N16: 20.625 | O16: ='Input Sheet'!Q16 -> 0 | P16: ='Input Sheet'!R16 -> 0 | Q16: ='Input Sheet'!S16 -> 0 | R16: ='Input Sheet'!T16 ->  | T16: ='Input Sheet'!V16 -> 31.625 | U16: ='Input Sheet'!W16 -> 0
A17: ='Input Sheet'!C17 -> 1M+S838531 | B17: ='Input Sheet'!D17 -> 2013 | C17: ='Input Sheet'!E17 -> COOPER | D17: ='Input Sheet'!F17 -> 42970 | E17: ='Input Sheet'!G17 -> 5 | F17: ='Input Sheet'!H17 -> 0.1 | G17: ='Input Sheet'!I17 -> 940 | H17: ='Input Sheet'!J17 -> 31 | I17: 3.1 | J17: ='Input Sheet'!L17 -> 0 | K17: ='Input Sheet'!M17 -> 0 | L17: ='Input Sheet'!I17 -> 940 | M17: ='Input Sheet'!J17 -> 31 | N17: 0 | O17: ='Input Sheet'!Q17 -> 0 | P17: ='Input Sheet'!R17 -> 0 | Q17: ='Input Sheet'!S17 -> 0 | R17: ='Input Sheet'!T17 ->  | T17: ='Input Sheet'!V17 -> 3.1 | U17: ='Input Sheet'!W17 -> 0
A18: ='Input Sheet'!C18 -> 1M+S838537 | B18: ='Input Sheet'!D18 -> 2010 | C18: ='Input Sheet'!E18 -> COOPER | D18: ='Input Sheet'!F18 -> 111780 | E18: ='Input Sheet'!G18 -> 31.41 | F18: ='Input Sheet'!H18 -> 0.4 | G18: ='Input Sheet'!I18 -> 1317 | H18: ='Input Sheet'!J18 -> 27.5 | I18: 11 | J18: ='Input Sheet'!L18 -> 189 | K18: ='Input Sheet'!M18 -> 1.9 | L18: ='Input Sheet'!I18 -> 1317 | M18: ='Input Sheet'!J18 -> 27.5 | N18: 52.25 | O18: ='Input Sheet'!Q18 -> 297 | P18: ='Input Sheet'!R18 -> 2.2 | Q18: ='Input Sheet'!S18 -> 1317 | R18: ='Input Sheet'!T18 -> 27.5 | S18: 60.5 | T18: ='Input Sheet'!V18 -> 123.75 | U18: ='Input Sheet'!W18 -> 0
A19: ='Input Sheet'!C19 -> 1M+S838544 | B19: ='Input Sheet'!D19 -> 2008 | C19: ='Input Sheet'!E19 -> COOPER | D19: ='Input Sheet'!F19 -> 47414 | E19: ='Input Sheet'!G19 -> 31.41 | F19: ='Input Sheet'!H19 -> 0.4 | G19: ='Input Sheet'!I19 -> 913 | H19: ='Input Sheet'!J19 -> 26.5 | I19: 10.6 | J19: ='Input Sheet'!L19 -> 86.25 | K19: ='Input Sheet'!M19 -> 0.75 | L19: ='Input Sheet'!I19 -> 913 | M19: ='Input Sheet'!J19 -> 26.5 | N19: 19.875 | O19: ='Input Sheet'!Q19 -> 0 | P19: ='Input Sheet'!R19 -> 0 | Q19: ='Input Sheet'!S19 -> 0 | R19: ='Input Sheet'!T19 ->  | T19: ='Input Sheet'!V19 -> 30.475 | U19: ='Input Sheet'!W19 -> 0
A20: ='Input Sheet'!C20 -> 1M+S838560 | B20: ='Input Sheet'!D20 -> 2006 | C20: ='Input Sheet'!E20 -> COOPER | D20: ='Input Sheet'!F20 -> 20660 | E20: ='Input Sheet'!G20 -> 0 | F20: ='Input Sheet'!H20 -> 0 | G20: ='Input Sheet'!I20 -> 0 | H20: ='Input Sheet'!J20 ->  | J20: ='Input Sheet'!L20 -> 119.95 | K20: ='Input Sheet'!M20 -> 0.2 | L20: ='Input Sheet'!I20 -> 0 | M20: ='Input Sheet'!J20 ->  | O20: ='Input Sheet'!Q20 -> 756 | P20: ='Input Sheet'!R20 -> 5.6 | Q20: ='Input Sheet'!S20 -> 1317 | R20: ='Input Sheet'!T20 -> 27.5 | S20: 154 | T20: ='Input Sheet'!V20 -> 159.5 | U20: ='Input Sheet'!W20 -> 0
A21: ='Input Sheet'!C21 -> 1M+S838563 | B21: ='Input Sheet'!D21 -> 2009 | C21: ='Input Sheet'!E21 -> COOPER | D21: ='Input Sheet'!F21 -> 35579 | E21: ='Input Sheet'!G21 -> 29.95 | F21: ='Input Sheet'!H21 -> 0.5 | G21: ='Input Sheet'!I21 -> 940 | H21: ='Input Sheet'!J21 -> 31 | I21: 15.5 | J21: ='Input Sheet'!L21 -> 0 | K21: ='Input Sheet'!M21 -> 0 | L21: ='Input Sheet'!I21 -> 940 | M21: ='Input Sheet'!J21 -> 31 | N21: 0 | O21: ='Input Sheet'!Q21 -> 0 | P21: ='Input Sheet'!R21 -> 0 | Q21: ='Input Sheet'!S21 -> 0 | R21: ='Input Sheet'!T21 ->  | T21: ='Input Sheet'!V21 -> 15.5 | U21: ='Input Sheet'!W21 -> 1
A22: ='Input Sheet'!C22 -> 1M+S838567 | B22: ='Input Sheet'!D22 -> 2014 | C22: ='Input Sheet'!E22 -> COOPER | D22: ='Input Sheet'!F22 -> 29142 | E22: ='Input Sheet'!G22 -> 119.95 | F22: ='Input Sheet'!H22 -> 0.2 | G22: ='Input Sheet'!I22 -> 940 | H22: ='Input Sheet'!J22 -> 31 | I22: 6.2 | J22: ='Input Sheet'!L22 -> 0 | K22: ='Input Sheet'!M22 -> 0 | L22: ='Input Sheet'!I22 -> 940 | M22: ='Input Sheet'!J22 -> 31 | N22: 0 | O22: ='Input Sheet'!Q22 -> 0 | P22: ='Input Sheet'!R22 -> 0 | Q22: ='Input Sheet'!S22 -> 0 | R22: ='Input Sheet'!T22 ->  | T22: ='Input Sheet'!V22 -> 6.2 | U22: ='Input Sheet'!W22 -> 1
A23: ='Input Sheet'!C23 -> 1M+S838574 | B23: ='Input Sheet'!D23 -> 2004 | C23: ='Input Sheet'!E23 -> COOPER | D23: ='Input Sheet'!F23 -> 10800 | E23: ='Input Sheet'!G23 -> 31.41 | F23: ='Input Sheet'!H23 -> 0.4 | G23: ='Input Sheet'!I23 -> 494 | H23: ='Input Sheet'!J23 -> 31.5 | I23: 12.6 | J23: ='Input Sheet'!L23 -> 81 | K23: ='Input Sheet'!M23 -> 0.6 | L23: ='Input Sheet'!I23 -> 494 | M23: ='Input Sheet'!J23 -> 31.5 | N23: 18.9 | O23: ='Input Sheet'!Q23 -> 0 | P23: ='Input Sheet'!R23 -> 0 | Q23: ='Input Sheet'!S23 -> 0 | R23: ='Input Sheet'!T23 ->  | T23: ='Input Sheet'!V23 -> 31.5 | U23: ='Input Sheet'!W23 -> 0
A24: ='Input Sheet'!C24 -> 1M+S838575 | B24: ='Input Sheet'!D24 -> 2016 | C24: ='Input Sheet'!E24 -> COOPER | D24: ='Input Sheet'!F24 -> 2721 | E24: ='Input Sheet'!G24 -> 25 | F24: ='Input Sheet'!H24 -> 0.3 | G24: ='Input Sheet'!I24 -> 1441 | H24: ='Input Sheet'!J24 -> 26.5 | I24: 7.95 | J24: ='Input Sheet'!L24 -> 0 | K24: ='Input Sheet'!M24 -> 0 | L24: ='Input Sheet'!I24 -> 1441 | M24: ='Input Sheet'!J24 -> 26.5 | N24: 0 | O24: ='Input Sheet'!Q24 -> 0 | P24: ='Input Sheet'!R24 -> 0 | Q24: ='Input Sheet'!S24 -> 0 | R24: ='Input Sheet'!T24 ->  | T24: ='Input Sheet'!V24 -> 7.95 | U24: ='Input Sheet'!W24 -> 1
A25: ='Input Sheet'!C25 -> 1M+S838577 | B25: ='Input Sheet'!D25 -> 2013 | C25: ='Input Sheet'!E25 -> COOPER | D25: ='Input Sheet'!F25 -> 62359 | E25: ='Input Sheet'!G25 -> 29.95 | F25: ='Input Sheet'!H25 -> 0.5 | G25: ='Input Sheet'!I25 -> 1335 | H25: ='Input Sheet'!J25 -> 25 | I25: 12.5 | J25: ='Input Sheet'!L25 -> 0 | K25: ='Input Sheet'!M25 -> 0 | L25: ='Input Sheet'!I25 -> 1335 | M25: ='Input Sheet'!J25 -> 25 | N25: 0 | O25: ='Input Sheet'!Q25 -> 0 | P25: ='Input Sheet'!R25 -> 0 | Q25: ='Input Sheet'!S25 -> 0 | R25: ='Input Sheet'!T25 ->  | T25: ='Input Sheet'!V25 -> 12.5 | U25: ='Input Sheet'!W25 -> 1
A26: ='Input Sheet'!C26 -> 1M+S838579 | B26: ='Input Sheet'!D26 -> 2013 | C26: ='Input Sheet'!E26 -> COOPER | D26: ='Input Sheet'!F26 -> 86197 | E26: ='Input Sheet'!G26 -> 31.41 | F26: ='Input Sheet'!H26 -> 0.4 | G26: ='Input Sheet'!I26 -> 913 | H26: ='Input Sheet'!J26 -> 26.5 | I26: 10.6 | J26: ='Input Sheet'!L26 -> 207 | K26: ='Input Sheet'!M26 -> 1.8 | L26: ='Input Sheet'!I26 -> 913 | M26: ='Input Sheet'!J26 -> 26.5 | N26: 47.7 | O26: ='Input Sheet'!Q26 -> 0 | P26: ='Input Sheet'!R26 -> 0 | Q26: ='Input Sheet'!S26 -> 0 | R26: ='Input Sheet'!T26 ->  | T26: ='Input Sheet'!V26 -> 58.3 | U26: ='Input Sheet'!W26 -> 0
A27: ='Input Sheet'!C27 -> 1M+S838584 | B27: ='Input Sheet'!D27 -> 2010 | C27: ='Input Sheet'!E27 -> COOPER | D27: ='Input Sheet'!F27 -> 56719 | E27: ='Input Sheet'!G27 -> 81 | F27: ='Input Sheet'!H27 -> 0.6 | G27: ='Input Sheet'!I27 -> 940 | H27: ='Input Sheet'!J27 -> 31 | I27: 18.6 | J27: ='Input Sheet'!L27 -> 0 | K27: ='Input Sheet'!M27 -> 0 | L27: ='Input Sheet'!I27 -> 940 | M27: ='Input Sheet'!J27 -> 31 | N27: 0 | O27: ='Input Sheet'!Q27 -> 0 | P27: ='Input Sheet'!R27 -> 0 | Q27: ='Input Sheet'!S27 -> 0 | R27: ='Input Sheet'!T27 ->  | T27: ='Input Sheet'!V27 -> 18.6 | U27: ='Input Sheet'!W27 -> 1
A28: ='Input Sheet'!C28 -> 1M+S838588 | B28: ='Input Sheet'!D28 -> 2005 | C28: ='Input Sheet'!E28 -> COOPER | D28: ='Input Sheet'!F28 -> 40625 | E28: ='Input Sheet'!G28 -> 31.41 | F28: ='Input Sheet'!H28 -> 0.4 | G28: ='Input Sheet'!I28 -> 1317 | H28: ='Input Sheet'!J28 -> 27.5 | I28: 11 | J28: ='Input Sheet'!L28 -> 67.5 | K28: ='Input Sheet'!M28 -> 0.5 | L28: ='Input Sheet'!I28 -> 1317 | M28: ='Input Sheet'!J28 -> 27.5 | N28: 13.75 | O28: ='Input Sheet'!Q28 -> 0 | P28: ='Input Sheet'!R28 -> 0 | Q28: ='Input Sheet'!S28 -> 0 | R28: ='Input Sheet'!T28 ->  | T28: ='Input Sheet'!V28 -> 24.75 | U28: ='Input Sheet'!W28 -> 0
A29: ='Input Sheet'!C29 -> 1M+S838486 (5) | B29: ='Input Sheet'!D29 -> 2014 | C29: ='Input Sheet'!E29 -> COOPER | D29: ='Input Sheet'!F29 -> 29368 | E29: ='Input Sheet'!G29 -> 0 | F29: ='Input Sheet'!H29 -> 0 | G29: ='Input Sheet'!I29 -> 0 | H29: ='Input Sheet'!J29 ->  | J29: ='Input Sheet'!L29 -> 178 | K29: ='Input Sheet'!M29 -> 0.8 | L29: ='Input Sheet'!I29 -> 0 | M29: ='Input Sheet'!J29 ->  | O29: ='Input Sheet'!Q29 -> 0 | P29: ='Input Sheet'!R29 -> 0 | Q29: ='Input Sheet'!S29 -> 0 | R29: ='Input Sheet'!T29 ->  | T29: ='Input Sheet'!V29 -> 22 | U29: ='Input Sheet'!W29 -> 0
A30: ='Input Sheet'!C30 -> 1M+S838492 (4) | B30: ='Input Sheet'!D30 -> 2017 | C30: ='Input Sheet'!E30 -> cooper | D30: ='Input Sheet'!F30 -> 7362 | E30: ='Input Sheet'!G30 -> 25 | F30: ='Input Sheet'!H30 -> 0.3 | G30: ='Input Sheet'!I30 -> 913 | H30: ='Input Sheet'!J30 -> 26.5 | I30: 7.95 | J30: ='Input Sheet'!L30 -> 119.95 | K30: ='Input Sheet'!M30 -> 0.2 | L30: ='Input Sheet'!I30 -> 913 | M30: ='Input Sheet'!J30 -> 26.5 | N30: 5.3 | O30: ='Input Sheet'!Q30 -> 0 | P30: ='Input Sheet'!R30 -> 0 | Q30: ='Input Sheet'!S30 -> 0 | R30: ='Input Sheet'!T30 ->  | T30: ='Input Sheet'!V30 -> 13.25 | U30: ='Input Sheet'!W30 -> 0
A31: ='Input Sheet'!C31 -> 1M+S838966 | B31: ='Input Sheet'!D31 -> 2008 | C31: ='Input Sheet'!E31 -> COOPER | D31: ='Input Sheet'!F31 -> 80052 | E31: ='Input Sheet'!G31 -> 270 | F31: ='Input Sheet'!H31 -> 2 | G31: ='Input Sheet'!I31 -> 494 | H31: ='Input Sheet'!J31 -> 31.5 | I31: 63 | J31: ='Input Sheet'!L31 -> 0 | K31: ='Input Sheet'!M31 -> 0 | L31: ='Input Sheet'!I31 -> 494 | M31: ='Input Sheet'!J31 -> 31.5 | N31: 0 | O31: ='Input Sheet'!Q31 -> 0 | P31: ='Input Sheet'!R31 -> 0 | Q31: ='Input Sheet'!S31 -> 0 | R31: ='Input Sheet'!T31 ->  | T31: ='Input Sheet'!V31 -> 63 | U31: ='Input Sheet'!W31 -> 0
A32: ='Input Sheet'!C32 -> 1M+S839190 | B32: ='Input Sheet'!D32 -> 2004 | C32: ='Input Sheet'!E32 -> COOPER | D32: ='Input Sheet'!F32 -> 65651 | E32: ='Input Sheet'!G32 -> 31.41 | F32: ='Input Sheet'!H32 -> 0.4 | G32: ='Input Sheet'!I32 -> 494 | H32: ='Input Sheet'!J32 -> 31.5 | I32: 12.6 | J32: ='Input Sheet'!L32 -> 648 | K32: ='Input Sheet'!M32 -> 4.8 | L32: ='Input Sheet'!I32 -> 494 | M32: ='Input Sheet'!J32 -> 31.5 | N32: 151.2 | O32: ='Input Sheet'!Q32 -> 756 | P32: ='Input Sheet'!R32 -> 5.6 | Q32: ='Input Sheet'!S32 -> 494 | R32: ='Input Sheet'!T32 -> 31.5 | S32: 176.4 | T32: ='Input Sheet'!V32 -> 340.2 | U32: ='Input Sheet'!W32 -> 0
A33: ='Input Sheet'!C33 -> 1M+S839204 | B33: ='Input Sheet'!D33 -> 2012 | C33: ='Input Sheet'!E33 -> COOPER | D33: ='Input Sheet'!F33 -> 15605 | E33: ='Input Sheet'!G33 -> 0 | F33: ='Input Sheet'!H33 -> 0 | G33: ='Input Sheet'!I33 -> 0 | H33: ='Input Sheet'!J33 ->  | J33: ='Input Sheet'!L33 -> 119 | K33: ='Input Sheet'!M33 -> 2 | L33: ='Input Sheet'!I33 -> 0 | M33: ='Input Sheet'!J33 ->  | O33: ='Input Sheet'!Q33 -> 0 | P33: ='Input Sheet'!R33 -> 0 | Q33: ='Input Sheet'!S33 -> 0 | R33: ='Input Sheet'!T33 ->  | T33: ='Input Sheet'!V33 -> 63 | U33: ='Input Sheet'!W33 -> 0
A34: ='Input Sheet'!C34 -> 1M+S839211 | B34: ='Input Sheet'!D34 -> 2017 | C34: ='Input Sheet'!E34 -> COOPER | D34: ='Input Sheet'!F34 -> 14637 | E34: ='Input Sheet'!G34 -> 49.95 | F34: ='Input Sheet'!H34 -> 0.6 | G34: ='Input Sheet'!I34 -> 1278 | H34: ='Input Sheet'!J34 -> 23.5 | I34: 14.1 | J34: ='Input Sheet'!L34 -> 0 | K34: ='Input Sheet'!M34 -> 0 | L34: ='Input Sheet'!I34 -> 1278 | M34: ='Input Sheet'!J34 -> 23.5 | N34: 0 | O34: ='Input Sheet'!Q34 -> 0 | P34: ='Input Sheet'!R34 -> 0 | Q34: ='Input Sheet'!S34 -> 0 | R34: ='Input Sheet'!T34 ->  | T34: ='Input Sheet'!V34 -> 14.1 | U34: ='Input Sheet'!W34 -> 1
A35: ='Input Sheet'!C35 -> 1M+S839237 | B35: ='Input Sheet'!D35 -> 2015 | C35: ='Input Sheet'!E35 -> COOPER | D35: ='Input Sheet'!F35 -> 23451 | E35: ='Input Sheet'!G35 -> 49.95 | F35: ='Input Sheet'!H35 -> 0.6 | G35: ='Input Sheet'!I35 -> 1335 | H35: ='Input Sheet'!J35 -> 25 | I35: 15 | J35: ='Input Sheet'!L35 -> 119.95 | K35: ='Input Sheet'!M35 -> 2 | L35: ='Input Sheet'!I35 -> 1335 | M35: ='Input Sheet'!J35 -> 25 | N35: 50 | O35: ='Input Sheet'!Q35 -> 0 | P35: ='Input Sheet'!R35 -> 0 | Q35: ='Input Sheet'!S35 -> 0 | R35: ='Input Sheet'!T35 ->  | T35: ='Input Sheet'!V35 -> 65 | U35: ='Input Sheet'!W35 -> 0
A36: ='Input Sheet'!C36 -> 1M+S839250 | B36: ='Input Sheet'!D36 -> 2009 | C36: ='Input Sheet'!E36 -> COOPER | D36: ='Input Sheet'!F36 -> 90202 | E36: ='Input Sheet'!G36 -> 0 | F36: ='Input Sheet'!H36 -> 0 | G36: ='Input Sheet'!I36 -> 0 | H36: ='Input Sheet'!J36 ->  | J36: ='Input Sheet'!L36 -> 540 | K36: ='Input Sheet'!M36 -> 4 | L36: ='Input Sheet'!I36 -> 0 | M36: ='Input Sheet'!J36 ->  | O36: ='Input Sheet'!Q36 -> 297 | P36: ='Input Sheet'!R36 -> 2.2 | Q36: ='Input Sheet'!S36 -> 913 | R36: ='Input Sheet'!T36 -> 26.5 | S36: 58.3 | T36: ='Input Sheet'!V36 -> 164.3 | U36: ='Input Sheet'!W36 -> 0
A37: ='Input Sheet'!C37 -> 1M+S839277 | B37: ='Input Sheet'!D37 -> 2009 | C37: ='Input Sheet'!E37 -> COOPER | D37: ='Input Sheet'!F37 -> 95260 | E37: ='Input Sheet'!G37 -> 49.95 | F37: ='Input Sheet'!H37 -> 0.6 | G37: ='Input Sheet'!I37 -> 1335 | H37: ='Input Sheet'!J37 -> 25 | I37: 15 | J37: ='Input Sheet'!L37 -> 0 | K37: ='Input Sheet'!M37 -> 0 | L37: ='Input Sheet'!I37 -> 1335 | M37: ='Input Sheet'!J37 -> 25 | N37: 0 | O37: ='Input Sheet'!Q37 -> 1256 | P37: ='Input Sheet'!R37 -> 9.3 | Q37: ='Input Sheet'!S37 -> 1335 | R37: ='Input Sheet'!T37 -> 25 | S37: 232.5 | T37: ='Input Sheet'!V37 -> 247.5 | U37: ='Input Sheet'!W37 -> 0
A38: ='Input Sheet'!C38 -> 1M+S839285 | B38: ='Input Sheet'!D38 -> 2012 | C38: ='Input Sheet'!E38 -> COOPER | D38: ='Input Sheet'!F38 -> 42390 | E38: ='Input Sheet'!G38 -> 49.95 | F38: ='Input Sheet'!H38 -> 0.6 | G38: ='Input Sheet'!I38 -> 913 | H38: ='Input Sheet'!J38 -> 26.5 | I38: 15.9 | J38: ='Input Sheet'!L38 -> 0 | K38: ='Input Sheet'!M38 -> 0 | L38: ='Input Sheet'!I38 -> 913 | M38: ='Input Sheet'!J38 -> 26.5 | N38: 0 | O38: ='Input Sheet'!Q38 -> 0 | P38: ='Input Sheet'!R38 -> 0 | Q38: ='Input Sheet'!S38 -> 0 | R38: ='Input Sheet'!T38 ->  | T38: ='Input Sheet'!V38 -> 15.9 | U38: ='Input Sheet'!W38 -> 1
A39: ='Input Sheet'!C39 -> 1M+S839286 | B39: ='Input Sheet'!D39 -> 2013 | C39: ='Input Sheet'!E39 -> COOPER | D39: ='Input Sheet'!F39 -> 52853 | E39: ='Input Sheet'!G39 -> 49.95 | F39: ='Input Sheet'!H39 -> 0.6 | G39: ='Input Sheet'!I39 -> 1317 | H39: ='Input Sheet'!J39 -> 27.5 | I39: 16.5 | J39: ='Input Sheet'!L39 -> 63 | K39: ='Input Sheet'!M39 -> 0.6 | L39: ='Input Sheet'!I39 -> 1317 | M39: ='Input Sheet'!J39 -> 27.5 | N39: 16.5 | O39: ='Input Sheet'!Q39 -> 0 | P39: ='Input Sheet'!R39 -> 0 | Q39: ='Input Sheet'!S39 -> 0 | R39: ='Input Sheet'!T39 ->  | T39: ='Input Sheet'!V39 -> 33 | U39: ='Input Sheet'!W39 -> 0
A40: ='Input Sheet'!C40 -> 1M+S839290 | B40: ='Input Sheet'!D40 -> 2015 | C40: ='Input Sheet'!E40 -> COOPER | D40: ='Input Sheet'!F40 -> 32789 | E40: ='Input Sheet'!G40 -> 0 | F40: ='Input Sheet'!H40 -> 0 | G40: ='Input Sheet'!I40 -> 0 | H40: ='Input Sheet'!J40 ->  | J40: ='Input Sheet'!L40 -> 100 | K40: ='Input Sheet'!M40 -> 1.2 | L40: ='Input Sheet'!I40 -> 0 | M40: ='Input Sheet'!J40 ->  | O40: ='Input Sheet'!Q40 -> 0 | P40: ='Input Sheet'!R40 -> 0 | Q40: ='Input Sheet'!S40 -> 0 | R40: ='Input Sheet'!T40 ->  | T40: ='Input Sheet'!V40 -> 32.4 | U40: ='Input Sheet'!W40 -> 1
A41: ='Input Sheet'!C41 -> 1M+S839293 | B41: ='Input Sheet'!D41 -> 2012 | C41: ='Input Sheet'!E41 -> COOPER | D41: ='Input Sheet'!F41 -> 49461 | E41: ='Input Sheet'!G41 -> 31.41 | F41: ='Input Sheet'!H41 -> 0.4 | G41: ='Input Sheet'!I41 -> 464 | H41: ='Input Sheet'!J41 -> 27 | I41: 10.8 | J41: ='Input Sheet'!L41 -> 72.5 | K41: ='Input Sheet'!M41 -> 0.5 | L41: ='Input Sheet'!I41 -> 464 | M41: ='Input Sheet'!J41 -> 27 | N41: 13.5 | O41: ='Input Sheet'!Q41 -> 0 | P41: ='Input Sheet'!R41 -> 0 | Q41: ='Input Sheet'!S41 -> 0 | R41: ='Input Sheet'!T41 ->  | T41: ='Input Sheet'!V41 -> 24.3 | U41: ='Input Sheet'!W41 -> 0
A42: ='Input Sheet'!C42 -> 1M+S839295 | B42: ='Input Sheet'!D42 -> 2012 | C42: ='Input Sheet'!E42 -> COOPER | D42: ='Input Sheet'!F42 -> 60644 | E42: ='Input Sheet'!G42 -> 24.9 | F42: ='Input Sheet'!H42 -> 0.2 | G42: ='Input Sheet'!I42 -> 940 | H42: ='Input Sheet'!J42 -> 31 | I42: 6.2 | J42: ='Input Sheet'!L42 -> 348 | K42: ='Input Sheet'!M42 -> 2.4 | L42: ='Input Sheet'!I42 -> 940 | M42: ='Input Sheet'!J42 -> 31 | N42: 74.4 | O42: ='Input Sheet'!Q42 -> 0 | P42: ='Input Sheet'!R42 -> 0 | Q42: ='Input Sheet'!S42 -> 0 | R42: ='Input Sheet'!T42 ->  | T42: ='Input Sheet'!V42 -> 80.6 | U42: ='Input Sheet'!W42 -> 0
A43: ='Input Sheet'!C43 -> 1M+S839307 | B43: ='Input Sheet'!D43 -> 2009 | C43: ='Input Sheet'!E43 -> COOPER | D43: ='Input Sheet'!F43 -> 37070 | E43: ='Input Sheet'!G43 -> 13.5 | F43: ='Input Sheet'!H43 -> 0.1 | G43: ='Input Sheet'!I43 -> 1278 | H43: ='Input Sheet'!J43 -> 23.5 | I43: 2.35 | J43: ='Input Sheet'!L43 -> 135 | K43: ='Input Sheet'!M43 -> 1 | L43: ='Input Sheet'!I43 -> 1278 | M43: ='Input Sheet'!J43 -> 23.5 | N43: 23.5 | O43: ='Input Sheet'!Q43 -> 0 | P43: ='Input Sheet'!R43 -> 0 | Q43: ='Input Sheet'!S43 -> 0 | R43: ='Input Sheet'!T43 ->  | T43: ='Input Sheet'!V43 -> 25.85 | U43: ='Input Sheet'!W43 -> 0
A44: ='Input Sheet'!C44 -> 1M+S839342 | B44: ='Input Sheet'!D44 -> 2003 | C44: ='Input Sheet'!E44 -> COOPER | D44: ='Input Sheet'!F44 -> 176615 | E44: ='Input Sheet'!G44 -> 15.5 | F44: ='Input Sheet'!H44 -> 0.3 | G44: ='Input Sheet'!I44 -> 494 | H44: ='Input Sheet'!J44 -> 31.5 | I44: 9.45 | J44: ='Input Sheet'!L44 -> 0 | K44: ='Input Sheet'!M44 -> 0 | L44: ='Input Sheet'!I44 -> 494 | M44: ='Input Sheet'!J44 -> 31.5 | N44: 0 | O44: ='Input Sheet'!Q44 -> 891 | P44: ='Input Sheet'!R44 -> 6.6 | Q44: ='Input Sheet'!S44 -> 494 | R44: ='Input Sheet'!T44 -> 31.5 | S44: 207.9 | T44: ='Input Sheet'!V44 -> 217.35 | U44: ='Input Sheet'!W44 -> 0
A45: ='Input Sheet'!C45 -> 1M+S839353 | B45: ='Input Sheet'!D45 -> 2007 | C45: ='Input Sheet'!E45 -> COOPER | D45: ='Input Sheet'!F45 -> 29777 | E45: ='Input Sheet'!G45 -> 31.41 | F45: ='Input Sheet'!H45 -> 0.4 | G45: ='Input Sheet'!I45 -> 1335 | H45: ='Input Sheet'!J45 -> 25 | I45: 10 | J45: ='Input Sheet'!L45 -> 119.95 | K45: ='Input Sheet'!M45 -> 2 | L45: ='Input Sheet'!I45 -> 1335 | M45: ='Input Sheet'!J45 -> 25 | N45: 50 | O45: ='Input Sheet'!Q45 -> 0 | P45: ='Input Sheet'!R45 -> 0 | Q45: ='Input Sheet'!S45 -> 0 | R45: ='Input Sheet'!T45 ->  | T45: ='Input Sheet'!V45 -> 60 | U45: ='Input Sheet'!W45 -> 0
A46: ='Input Sheet'!C46 -> 1M+S839355 | B46: ='Input Sheet'!D46 -> 2013 | C46: ='Input Sheet'!E46 -> COOPER | D46: ='Input Sheet'!F46 -> 19240 | E46: ='Input Sheet'!G46 -> 29.95 | F46: ='Input Sheet'!H46 -> 0.3 | G46: ='Input Sheet'!I46 -> 1335 | H46: ='Input Sheet'!J46 -> 25 | I46: 7.5 | J46: ='Input Sheet'!L46 -> 0 | K46: ='Input Sheet'!M46 -> 0 | L46: ='Input Sheet'!I46 -> 1335 | M46: ='Input Sheet'!J46 -> 25 | N46: 0 | O46: ='Input Sheet'!Q46 -> 0 | P46: ='Input Sheet'!R46 -> 0 | Q46: ='Input Sheet'!S46 -> 0 | R46: ='Input Sheet'!T46 ->  | T46: ='Input Sheet'!V46 -> 7.5 | U46: ='Input Sheet'!W46 -> 1
A47: ='Input Sheet'!C47 -> 1M+S839373 | B47: ='Input Sheet'!D47 -> 2012 | C47: ='Input Sheet'!E47 -> COOPER | D47: ='Input Sheet'!F47 -> 49474 | E47: ='Input Sheet'!G47 -> 31.41 | F47: ='Input Sheet'!H47 -> 0.4 | G47: ='Input Sheet'!I47 -> 1317 | H47: ='Input Sheet'!J47 -> 27.5 | I47: 11 | J47: ='Input Sheet'!L47 -> 73.5 | K47: ='Input Sheet'!M47 -> 0.7 | L47: ='Input Sheet'!I47 -> 1317 | M47: ='Input Sheet'!J47 -> 27.5 | N47: 19.25 | O47: ='Input Sheet'!Q47 -> 0 | P47: ='Input Sheet'!R47 -> 0 | Q47: ='Input Sheet'!S47 -> 0 | R47: ='Input Sheet'!T47 ->  | T47: ='Input Sheet'!V47 -> 30.25 | U47: ='Input Sheet'!W47 -> 0
A48: ='Input Sheet'!C48 -> 1M+S839377 | B48: ='Input Sheet'!D48 -> 2011 | C48: ='Input Sheet'!E48 -> COOPER | D48: ='Input Sheet'!F48 -> 106930 | E48: ='Input Sheet'!G48 -> 0 | F48: ='Input Sheet'!H48 -> 0 | G48: ='Input Sheet'!I48 -> 0 | H48: ='Input Sheet'!J48 ->  | J48: ='Input Sheet'!L48 -> 202.5 | K48: ='Input Sheet'!M48 -> 1.5 | L48: ='Input Sheet'!I48 -> 0 | M48: ='Input Sheet'!J48 ->  | O48: ='Input Sheet'!Q48 -> 0 | P48: ='Input Sheet'!R48 -> 0 | Q48: ='Input Sheet'!S48 -> 0 | R48: ='Input Sheet'!T48 ->  | T48: ='Input Sheet'!V48 -> 46.5 | U48: ='Input Sheet'!W48 -> 1
A49: ='Input Sheet'!C49 -> 1M+S839382 | B49: ='Input Sheet'!D49 -> 2010 | C49: ='Input Sheet'!E49 -> COOPER | D49: ='Input Sheet'!F49 -> 105881 | E49: ='Input Sheet'!G49 -> 15 | F49: ='Input Sheet'!H49 -> 0.3 | G49: ='Input Sheet'!I49 -> 1278 | H49: ='Input Sheet'!J49 -> 23.5 | I49: 7.05 | J49: ='Input Sheet'!L49 -> 0 | K49: ='Input Sheet'!M49 -> 0 | L49: ='Input Sheet'!I49 -> 1278 | M49: ='Input Sheet'!J49 -> 23.5 | N49: 0 | O49: ='Input Sheet'!Q49 -> 270 | P49: ='Input Sheet'!R49 -> 2 | Q49: ='Input Sheet'!S49 -> 1278 | R49: ='Input Sheet'!T49 -> 23.5 | S49: 47 | T49: ='Input Sheet'!V49 -> 54.05 | U49: ='Input Sheet'!W49 -> 0
A50: ='Input Sheet'!C50 -> 1M+S839401 | B50: ='Input Sheet'!D50 -> 2012 | C50: ='Input Sheet'!E50 -> COOPER | D50: ='Input Sheet'!F50 -> 78541 | E50: ='Input Sheet'!G50 -> 31.41 | F50: ='Input Sheet'!H50 -> 0.4 | G50: ='Input Sheet'!I50 -> 1441 | H50: ='Input Sheet'!J50 -> 26.5 | I50: 10.6 | J50: ='Input Sheet'!L50 -> 135 | K50: ='Input Sheet'!M50 -> 1 | L50: ='Input Sheet'!I50 -> 1441 | M50: ='Input Sheet'!J50 -> 26.5 | N50: 26.5 | O50: ='Input Sheet'!Q50 -> 0 | P50: ='Input Sheet'!R50 -> 0 | Q50: ='Input Sheet'!S50 -> 0 | R50: ='Input Sheet'!T50 ->  | T50: ='Input Sheet'!V50 -> 37.1 | U50: ='Input Sheet'!W50 -> 0
A51: ='Input Sheet'!C51 -> 1M+S839406 | B51: ='Input Sheet'!D51 -> 2013 | C51: ='Input Sheet'!E51 -> COOPER | D51: ='Input Sheet'!D51 -> 2013 | E51: ='Input Sheet'!G51 -> 30 | F51: ='Input Sheet'!H51 -> 0.6 | G51: ='Input Sheet'!I51 -> 774 | H51: ='Input Sheet'!J51 -> 35 | I51: =F55*H51 -> 14 | J51: ='Input Sheet'!L51 -> 119.95 | K51: ='Input Sheet'!M51 -> 2 | L51: ='Input Sheet'!I51 -> 774 | M51: ='Input Sheet'!J51 -> 35 | N51: 70 | O51: ='Input Sheet'!Q51 -> 0 | P51: ='Input Sheet'!R51 -> 0 | Q51: ='Input Sheet'!S51 -> 0 | R51: ='Input Sheet'!T51 ->  | T51: ='Input Sheet'!V51 -> 91 | U51: ='Input Sheet'!W51 -> 0
A52: ='Input Sheet'!C52 -> 1M+S839407 | B52: ='Input Sheet'!D52 -> 2007 | C52: ='Input Sheet'!E52 -> COOPER | D52: ='Input Sheet'!F52 -> 93167 | E52: ='Input Sheet'!G52 -> 15 | F52: ='Input Sheet'!H52 -> 0.3 | G52: ='Input Sheet'!I99 -> 0 | H52: ='Input Sheet'!J99 ->  | J52: ='Input Sheet'!L52 -> 135 | K52: ='Input Sheet'!M52 -> 1 | L52: ='Input Sheet'!I99 -> 0 | M52: ='Input Sheet'!J99 ->  | O52: ='Input Sheet'!Q52 -> 0 | P52: ='Input Sheet'!R52 -> 0 | Q52: ='Input Sheet'!S99 -> 940 | R52: ='Input Sheet'!T99 -> 31 | S52: 0 | T52: ='Input Sheet'!V52 -> 34.45 | U52: ='Input Sheet'!W52 -> 0
A53: ='Input Sheet'!C53 -> 1M+S839412 | B53: ='Input Sheet'!D53 -> 2012 | C53: ='Input Sheet'!E53 -> COOPER | D53: ='Input Sheet'!F53 -> 48235 | E53: ='Input Sheet'!G53 -> 29.95 | F53: ='Input Sheet'!H53 -> 0.3 | G53: ='Input Sheet'!I100 -> 0 | H53: ='Input Sheet'!J100 ->  | J53: ='Input Sheet'!L53 -> 0 | K53: ='Input Sheet'!M53 -> 0 | L53: ='Input Sheet'!I100 -> 0 | M53: ='Input Sheet'!J100 ->  | O53: ='Input Sheet'!Q53 -> 0 | P53: ='Input Sheet'!R53 -> 0 | Q53: ='Input Sheet'!S100 -> 464 | R53: ='Input Sheet'!T100 -> 27 | S53: 0 | T53: ='Input Sheet'!V53 -> 7.95 | U53: ='Input Sheet'!W53 -> 1
A54: ='Input Sheet'!C54 -> 1M+S839419 | B54: ='Input Sheet'!D54 -> 2011 | C54: ='Input Sheet'!E54 -> COOPER | D54: ='Input Sheet'!F54 -> 73580 | E54: ='Input Sheet'!G54 -> 0 | F54: ='Input Sheet'!H54 -> 0 | G54: ='Input Sheet'!I101 -> 0 | H54: ='Input Sheet'!J101 ->  | I54: =F54*H54 ->  | J54: ='Input Sheet'!L54 -> 172.5 | K54: ='Input Sheet'!M54 -> 1.7 | L54: ='Input Sheet'!I101 -> 0 | M54: ='Input Sheet'!J101 ->  | N54: =K54*M54 ->  | O54: ='Input Sheet'!Q54 -> 232 | P54: ='Input Sheet'!R54 -> 1.6 | Q54: ='Input Sheet'!S101 -> 1335 | R54: ='Input Sheet'!T101 -> 25 | S54: =P54*R54 -> 40 | T54: ='Input Sheet'!V54 -> 115.5 | U54: ='Input Sheet'!W54 -> 0
A55: ='Input Sheet'!C55 -> 1M+S839425 | B55: ='Input Sheet'!D55 -> 2013 | C55: ='Input Sheet'!E55 -> COOPER | D55: ='Input Sheet'!F55 -> 37562 | E55: ='Input Sheet'!G55 -> 31.41 | F55: ='Input Sheet'!H55 -> 0.4 | G55: ='Input Sheet'!I105 -> 0 | H55: ='Input Sheet'!J105 ->  | I55: =#REF!*H55 ->  | J55: ='Input Sheet'!L55 -> 90.95 | K55: ='Input Sheet'!M55 -> 1 | L55: ='Input Sheet'!I105 -> 0 | M55: ='Input Sheet'!J105 ->  | O55: ='Input Sheet'!Q55 -> 0 | P55: ='Input Sheet'!R55 -> 0 | Q55: ='Input Sheet'!S105 -> 0 | R55: ='Input Sheet'!T105 ->  | T55: ='Input Sheet'!V55 -> 37.1 | U55: ='Input Sheet'!W55 -> 0
A56: RO's 1-50 | D56: Totals | E56: =SUM(E6:E55) -> 1718.04 | F56: =SUM(F6:F55) -> 17.9 | I56: =SUM(I6:I55) ->  | J56: 5175.65 | K56: 43.7 | L56: 37950 | M56: 963 | O56: =SUM(O6:O55) -> 5786.5 | P56: 42.7 | T56: 2937.8 | U56: =COUNTIF(U5:U55,1) -> 14
A57: Date of Study: | E57: C Labor | J57: M Labor | O57: R Labor | T57: Total Cost of Labor | U57: One Item Repair Order
A58: Study Compiled by | E58: Labor Sales | F58: Flat Rate Hours | G58: Technician Number | H58: Pay Per FRH | I58: Labor Cost | J58: Labor Sales | K58: Flat Rate Hours | L58: Technician Number | M58: Pay Per FRH | N58: Labor Cost | O58: Labor Sales | P58: Flat Rate Hours | Q58: Technician Number | R58: Pay Per FRH | S58: Labor Cost
T65: `

Sheet RO Report 51-100
A1: Repair Order Analysis
E2: Competitive Labor | J2: Maintenance Labor | O2: Repair Labor
A3: Dealership | T3: Total Cost of Labor | U3: One Item Repair Order
A4: RO Number | E4: Labor Sales | F4: Flat Rate Hours | G4: Technician Number | H4: Pay Per FRH | I4: Labor Cost | J4: Labor Sales | K4: Flat Rate Hours | L4: Technician Number | M4: Pay Per FRH | N4: Labor Cost | O4: Labor Sales | P4: Flat Rate Hours | Q4: Technician Number | R4: Pay Per FRH | S4: Labor Cost
B5: Year | C5: Model | D5: Mileage
A6: ='Input Sheet'!C56 -> 1M+S839428 | B6: ='Input Sheet'!D56 -> 2009 | C6: ='Input Sheet'!E56 -> COOPER | D6: ='Input Sheet'!F56 -> 111525 | E6: ='Input Sheet'!G56 -> 135 | F6: ='Input Sheet'!H56 -> 1 | G6: ='Input Sheet'!I56 -> 774 | H6: ='Input Sheet'!J56 -> 35 | I6: =F6*H6 -> 35 | J6: ='Input Sheet'!L56 -> 0 | K6: ='Input Sheet'!M56 -> 0 | L6: ='Input Sheet'!N56 -> 0 | M6: ='Input Sheet'!O56 ->  | N6: =K6*M6 ->  | O6: ='Input Sheet'!Q56 -> 0 | P6: ='Input Sheet'!R56 -> 0 | Q6: ='Input Sheet'!S56 -> 0 | R6: ='Input Sheet'!T56 ->  | S6: =P6*R6 ->  | T6: ='Input Sheet'!V56 -> 35 | U6: ='Input Sheet'!W56 -> 0
A7: ='Input Sheet'!C57 -> 1M+S839429 | B7: ='Input Sheet'!D57 -> 2012 | C7: ='Input Sheet'!E57 -> COOPER | D7: ='Input Sheet'!F57 -> 75020 | E7: ='Input Sheet'!G57 -> 31.41 | F7: ='Input Sheet'!H57 -> 0.4 | G7: ='Input Sheet'!I57 -> 1278 | H7: ='Input Sheet'!J57 -> 23.5 | I7: 9.4 | J7: ='Input Sheet'!L57 -> 145 | K7: ='Input Sheet'!M57 -> 1 | L7: ='Input Sheet'!N57 -> 1278 | M7: ='Input Sheet'!O57 -> 23.5 | N7: 23.5 | O7: ='Input Sheet'!Q57 -> 0 | P7: ='Input Sheet'!R57 -> 0 | Q7: ='Input Sheet'!S57 -> 0 | R7: ='Input Sheet'!T57 ->  | T7: ='Input Sheet'!V57 -> 32.9 | U7: ='Input Sheet'!W57 -> 0
A8: ='Input Sheet'!C58 -> 1M+S839433 | B8: ='Input Sheet'!D58 -> 2011 | C8: ='Input Sheet'!E58 -> COOPER | D8: ='Input Sheet'!F58 -> 47309 | E8: ='Input Sheet'!G58 -> 0 | F8: ='Input Sheet'!H58 -> 0 | G8: ='Input Sheet'!I58 -> 0 | H8: ='Input Sheet'!J58 ->  | J8: ='Input Sheet'!L58 -> 135 | K8: ='Input Sheet'!M58 -> 1 | L8: ='Input Sheet'!N58 -> 1489 | M8: ='Input Sheet'!O58 -> 19 | N8: 19 | O8: ='Input Sheet'!Q58 -> 0 | P8: ='Input Sheet'!R58 -> 0 | Q8: ='Input Sheet'!S58 -> 0 | R8: ='Input Sheet'!T58 ->  | T8: ='Input Sheet'!V58 -> 19 | U8: ='Input Sheet'!W58 -> 0
A9: ='Input Sheet'!C59 -> 1M+S839451 | B9: ='Input Sheet'!D59 -> 2013 | C9: ='Input Sheet'!E59 -> COOPER | D9: ='Input Sheet'!F59 -> 55118 | E9: ='Input Sheet'!G59 -> 494.12 | F9: ='Input Sheet'!H59 -> 1.2 | G9: ='Input Sheet'!I59 -> 1441 | H9: ='Input Sheet'!J59 -> 26.5 | I9: 31.8 | J9: ='Input Sheet'!L59 -> 119.95 | K9: ='Input Sheet'!M59 -> 2 | L9: ='Input Sheet'!N59 -> 1441 | M9: ='Input Sheet'!O59 -> 26.5 | N9: 53 | O9: ='Input Sheet'!Q59 -> 0 | P9: ='Input Sheet'!R59 -> 0 | Q9: ='Input Sheet'!S59 -> 0 | R9: ='Input Sheet'!T59 ->  | T9: ='Input Sheet'!V59 -> 84.8 | U9: ='Input Sheet'!W59 -> 0
A10: ='Input Sheet'!C60 -> 1M+S839453 | B10: ='Input Sheet'!D60 -> 2016 | C10: ='Input Sheet'!E60 -> COOPER | D10: ='Input Sheet'!F60 -> 13641 | E10: ='Input Sheet'!G60 -> 29.95 | F10: ='Input Sheet'!H60 -> 0.3 | G10: ='Input Sheet'!I60 -> 1278 | H10: ='Input Sheet'!J60 -> 23.5 | I10: 7.05 | J10: ='Input Sheet'!L60 -> 119.95 | K10: ='Input Sheet'!M60 -> 2 | L10: ='Input Sheet'!N60 -> 1278 | M10: ='Input Sheet'!O60 -> 23.5 | N10: 47 | O10: ='Input Sheet'!Q60 -> 0 | P10: ='Input Sheet'!R60 -> 0 | Q10: ='Input Sheet'!S60 -> 0 | R10: ='Input Sheet'!T60 ->  | T10: ='Input Sheet'!V60 -> 54.05 | U10: ='Input Sheet'!W60 -> 0
A11: ='Input Sheet'!C61 -> 1M+S839458 | B11: ='Input Sheet'!D61 -> 2005 | C11: ='Input Sheet'!E61 -> COOPER | D11: ='Input Sheet'!F61 -> 95499 | E11: ='Input Sheet'!G61 -> 0 | F11: ='Input Sheet'!H61 -> 0 | G11: ='Input Sheet'!I61 -> 0 | H11: ='Input Sheet'!J61 ->  | J11: ='Input Sheet'!L61 -> 135 | K11: ='Input Sheet'!M61 -> 1 | L11: ='Input Sheet'!N61 -> 1278 | M11: ='Input Sheet'!O61 -> 23.5 | N11: 23.5 | O11: ='Input Sheet'!Q61 -> 0 | P11: ='Input Sheet'!R61 -> 0 | Q11: ='Input Sheet'!S61 -> 0 | R11: ='Input Sheet'!T61 ->  | T11: ='Input Sheet'!V61 -> 23.5 | U11: ='Input Sheet'!W61 -> 1
A12: ='Input Sheet'!C62 -> 1M+S839461 | B12: ='Input Sheet'!D62 -> 2014 | C12: ='Input Sheet'!E62 -> COOPER | D12: ='Input Sheet'!F62 -> 30539 | E12: ='Input Sheet'!G62 -> 100 | F12: ='Input Sheet'!H62 -> 1.2 | G12: ='Input Sheet'!I62 -> 1335 | H12: ='Input Sheet'!J62 -> 25 | I12: 30 | J12: ='Input Sheet'!L62 -> 119.95 | K12: ='Input Sheet'!M62 -> 2 | L12: ='Input Sheet'!N62 -> 1335 | M12: ='Input Sheet'!O62 -> 25 | N12: 50 | O12: ='Input Sheet'!Q62 -> 0 | P12: ='Input Sheet'!R62 -> 0 | Q12: ='Input Sheet'!S62 -> 0 | R12: ='Input Sheet'!T62 ->  | T12: ='Input Sheet'!V62 -> 80 | U12: ='Input Sheet'!W62 -> 0
A13: ='Input Sheet'!C63 -> 1M+S839463 | B13: ='Input Sheet'!D63 -> 2015 | C13: ='Input Sheet'!E63 -> COOPER | D13: ='Input Sheet'!F63 -> 34882 | E13: ='Input Sheet'!G63 -> 157.3 | F13: ='Input Sheet'!H63 -> 0.3 | G13: ='Input Sheet'!I63 -> 1317 | H13: ='Input Sheet'!J63 -> 27.5 | I13: 8.25 | J13: ='Input Sheet'!L63 -> 0 | K13: ='Input Sheet'!M63 -> 0 | L13: ='Input Sheet'!N63 -> 0 | M13: ='Input Sheet'!O63 ->  | O13: ='Input Sheet'!Q63 -> 0 | P13: ='Input Sheet'!R63 -> 0 | Q13: ='Input Sheet'!S63 -> 0 | R13: ='Input Sheet'!T63 ->  | T13: ='Input Sheet'!V63 -> 8.25 | U13: ='Input Sheet'!W63 -> 0
A14: ='Input Sheet'!C64 -> 1M+S839468 | B14: ='Input Sheet'!D64 -> 2013 | C14: ='Input Sheet'!E64 -> COOPER | D14: ='Input Sheet'!F64 -> 17013 | E14: ='Input Sheet'!G64 -> 31.41 | F14: ='Input Sheet'!H64 -> 0.4 | G14: ='Input Sheet'!I64 -> 464 | H14: ='Input Sheet'!J64 -> 27 | I14: 10.8 | J14: ='Input Sheet'!L64 -> 90.95 | K14: ='Input Sheet'!M64 -> 1 | L14: ='Input Sheet'!N64 -> 464 | M14: ='Input Sheet'!O64 -> 27 | N14: 27 | O14: ='Input Sheet'!Q64 -> 0 | P14: ='Input Sheet'!R64 -> 0 | Q14: ='Input Sheet'!S64 -> 0 | R14: ='Input Sheet'!T64 ->  | T14: ='Input Sheet'!V64 -> 37.8 | U14: ='Input Sheet'!W64 -> 0
A15: ='Input Sheet'!C65 -> 1M+S839469 | B15: ='Input Sheet'!D65 -> 2013 | C15: ='Input Sheet'!E65 -> COOPER | D15: ='Input Sheet'!F65 -> 77975 | E15: ='Input Sheet'!G65 -> 31.41 | F15: ='Input Sheet'!H65 -> 0.4 | G15: ='Input Sheet'!I65 -> 774 | H15: ='Input Sheet'!J65 -> 35 | I15: 14 | J15: ='Input Sheet'!L65 -> 29.95 | K15: ='Input Sheet'!M65 -> 0.3 | L15: ='Input Sheet'!N65 -> 774 | M15: ='Input Sheet'!O65 -> 35 | N15: 10.5 | O15: ='Input Sheet'!Q65 -> 0 | P15: ='Input Sheet'!R65 -> 0 | Q15: ='Input Sheet'!S65 -> 0 | R15: ='Input Sheet'!T65 ->  | T15: ='Input Sheet'!V65 -> 24.5 | U15: ='Input Sheet'!W65 -> 0
A16: ='Input Sheet'!C66 -> 1M+S839473 | B16: ='Input Sheet'!D66 -> 2009 | C16: ='Input Sheet'!E66 -> COOPER | D16: ='Input Sheet'!F66 -> 123819 | E16: ='Input Sheet'!G66 -> 90.95 | F16: ='Input Sheet'!H66 -> 1 | G16: ='Input Sheet'!I66 -> 1441 | H16: ='Input Sheet'!J66 -> 26.5 | I16: 26.5 | J16: ='Input Sheet'!L66 -> 316.56 | K16: ='Input Sheet'!M66 -> 1.2 | L16: ='Input Sheet'!N66 -> 1441 | M16: ='Input Sheet'!O66 -> 26.5 | N16: 31.8 | O16: ='Input Sheet'!Q66 -> 0 | P16: ='Input Sheet'!R66 -> 0 | Q16: ='Input Sheet'!S66 -> 0 | R16: ='Input Sheet'!T66 ->  | T16: ='Input Sheet'!V66 -> 58.3 | U16: ='Input Sheet'!W66 -> 0
A17: ='Input Sheet'!C67 -> 1M+S839477 | B17: ='Input Sheet'!D67 -> 2009 | C17: ='Input Sheet'!E67 -> COOPER | D17: ='Input Sheet'!F67 -> 42268 | E17: ='Input Sheet'!G67 -> 0 | F17: ='Input Sheet'!H67 -> 0 | G17: ='Input Sheet'!I67 -> 0 | H17: ='Input Sheet'!J67 ->  | J17: ='Input Sheet'!L67 -> 135 | K17: ='Input Sheet'!M67 -> 1 | L17: ='Input Sheet'!N67 -> 1317 | M17: ='Input Sheet'!O67 -> 27.5 | N17: 27.5 | O17: ='Input Sheet'!Q67 -> 0 | P17: ='Input Sheet'!R67 -> 0 | Q17: ='Input Sheet'!S67 -> 0 | R17: ='Input Sheet'!T67 ->  | T17: ='Input Sheet'!V67 -> 27.5 | U17: ='Input Sheet'!W67 -> 1
A18: ='Input Sheet'!C68 -> 1M+S839480 | B18: ='Input Sheet'!D68 -> 2015 | C18: ='Input Sheet'!E68 -> COOPER | D18: ='Input Sheet'!F68 -> 12540 | E18: ='Input Sheet'!G68 -> 0 | F18: ='Input Sheet'!H68 -> 0 | G18: ='Input Sheet'!I68 -> 0 | H18: ='Input Sheet'!J68 ->  | J18: ='Input Sheet'!L68 -> 119.95 | K18: ='Input Sheet'!M68 -> 2 | L18: ='Input Sheet'!N68 -> 1278 | M18: ='Input Sheet'!O68 -> 23.5 | N18: 47 | O18: ='Input Sheet'!Q68 -> 0 | P18: ='Input Sheet'!R68 -> 0 | Q18: ='Input Sheet'!S68 -> 0 | R18: ='Input Sheet'!T68 ->  | T18: ='Input Sheet'!V68 -> 47 | U18: ='Input Sheet'!W68 -> 1
A19: ='Input Sheet'!C69 -> 1M+S839487 | B19: ='Input Sheet'!D69 -> 2011 | C19: ='Input Sheet'!E69 -> COOPER | D19: ='Input Sheet'!F69 -> 55705 | E19: ='Input Sheet'!G69 -> 31.41 | F19: ='Input Sheet'!H69 -> 0.4 | G19: ='Input Sheet'!I69 -> 494 | H19: ='Input Sheet'!J69 -> 31.5 | I19: 12.6 | J19: ='Input Sheet'!L69 -> 108.75 | K19: ='Input Sheet'!M69 -> 0.75 | L19: ='Input Sheet'!N69 -> 494 | M19: ='Input Sheet'!O69 -> 31.5 | N19: 23.625 | O19: ='Input Sheet'!Q69 -> 0 | P19: ='Input Sheet'!R69 -> 0 | Q19: ='Input Sheet'!S69 -> 0 | R19: ='Input Sheet'!T69 ->  | T19: ='Input Sheet'!V69 -> 36.225 | U19: ='Input Sheet'!W69 -> 0
A20: ='Input Sheet'!C70 -> 1M+S839483 | B20: ='Input Sheet'!D70 -> 2015 | C20: ='Input Sheet'!E70 -> COOPER | D20: ='Input Sheet'!F70 -> 29721 | E20: ='Input Sheet'!G70 -> 0 | F20: ='Input Sheet'!H70 -> 0 | G20: ='Input Sheet'!I70 -> 0 | H20: ='Input Sheet'!J70 ->  | J20: ='Input Sheet'!L70 -> 119.95 | K20: ='Input Sheet'!M70 -> 2 | L20: ='Input Sheet'!N70 -> 1278 | M20: ='Input Sheet'!O70 -> 23.5 | N20: 47 | O20: ='Input Sheet'!Q70 -> 0 | P20: ='Input Sheet'!R70 -> 0 | Q20: ='Input Sheet'!S70 -> 0 | R20: ='Input Sheet'!T70 ->  | T20: ='Input Sheet'!V70 -> 47 | U20: ='Input Sheet'!W70 -> 1
A21: ='Input Sheet'!C71 -> 1M+S839496 | B21: ='Input Sheet'!D71 -> 2014 | C21: ='Input Sheet'!E71 -> COOPER | D21: ='Input Sheet'!F71 -> 33487 | E21: ='Input Sheet'!G71 -> 0 | F21: ='Input Sheet'!H71 -> 0 | G21: ='Input Sheet'!I71 -> 0 | H21: ='Input Sheet'!J71 ->  | J21: ='Input Sheet'!L71 -> 119.95 | K21: ='Input Sheet'!M71 -> 2 | L21: ='Input Sheet'!N71 -> 1317 | M21: ='Input Sheet'!O71 -> 27.5 | N21: 55 | O21: ='Input Sheet'!Q71 -> 145 | P21: ='Input Sheet'!R71 -> 1 | Q21: ='Input Sheet'!S71 -> 1317 | R21: ='Input Sheet'!T71 -> 27.5 | S21: 27.5 | T21: ='Input Sheet'!V71 -> 82.5 | U21: ='Input Sheet'!W71 -> 0
A22: ='Input Sheet'!C72 -> 1M+S839498 | B22: ='Input Sheet'!D72 -> 2011 | C22: ='Input Sheet'!E72 -> COOPER | D22: ='Input Sheet'!F72 -> 58848 | E22: ='Input Sheet'!G72 -> 0 | F22: ='Input Sheet'!H72 -> 0 | G22: ='Input Sheet'!I72 -> 0 | H22: ='Input Sheet'!J72 ->  | J22: ='Input Sheet'!L72 -> 110 | K22: ='Input Sheet'!M72 -> 1.5 | L22: ='Input Sheet'!N72 -> 940 | M22: ='Input Sheet'!O72 -> 31 | N22: 46.5 | O22: ='Input Sheet'!Q72 -> 0 | P22: ='Input Sheet'!R72 -> 0 | Q22: ='Input Sheet'!S72 -> 0 | R22: ='Input Sheet'!T72 ->  | T22: ='Input Sheet'!V72 -> 46.5 | U22: ='Input Sheet'!W72 -> 0
A23: ='Input Sheet'!C73 -> 1M+S839504 | B23: ='Input Sheet'!D73 -> 2011 | C23: ='Input Sheet'!E73 -> COOPER | D23: ='Input Sheet'!F73 -> 40935 | E23: ='Input Sheet'!G73 -> 0 | F23: ='Input Sheet'!H73 -> 0 | G23: ='Input Sheet'!I73 -> 0 | H23: ='Input Sheet'!J73 ->  | J23: ='Input Sheet'!L73 -> 110 | K23: ='Input Sheet'!M73 -> 1.5 | L23: ='Input Sheet'!N73 -> 464 | M23: ='Input Sheet'!O73 -> 27 | N23: 40.5 | O23: ='Input Sheet'!Q73 -> 0 | P23: ='Input Sheet'!R73 -> 0 | Q23: ='Input Sheet'!S73 -> 0 | R23: ='Input Sheet'!T73 ->  | T23: ='Input Sheet'!V73 -> 40.5 | U23: ='Input Sheet'!W73 -> 0
A24: ='Input Sheet'!C74 -> 1M+S839514 | B24: ='Input Sheet'!D74 -> 2015 | C24: ='Input Sheet'!E74 -> COOPER | D24: ='Input Sheet'!F74 -> 37729 | E24: ='Input Sheet'!G74 -> 29.95 | F24: ='Input Sheet'!H74 -> 0.4 | G24: ='Input Sheet'!I74 -> 1317 | H24: ='Input Sheet'!J74 -> 27.5 | I24: 11 | J24: ='Input Sheet'!L74 -> 0 | K24: ='Input Sheet'!M74 -> 0 | L24: ='Input Sheet'!N74 -> 0 | M24: ='Input Sheet'!O74 ->  | O24: ='Input Sheet'!Q74 -> 0 | P24: ='Input Sheet'!R74 -> 0 | Q24: ='Input Sheet'!S74 -> 0 | R24: ='Input Sheet'!T74 ->  | T24: ='Input Sheet'!V74 -> 11 | U24: ='Input Sheet'!W74 -> 0
A25: ='Input Sheet'!C75 -> 1M+S839520 | B25: ='Input Sheet'!D75 -> 2013 | C25: ='Input Sheet'!E75 -> COOPER | D25: ='Input Sheet'!F75 -> 25474 | E25: ='Input Sheet'!G75 -> 0 | F25: ='Input Sheet'!H75 -> 0 | G25: ='Input Sheet'!I75 -> 0 | H25: ='Input Sheet'!J75 ->  | J25: ='Input Sheet'!L75 -> 0 | K25: ='Input Sheet'!M75 -> 0 | L25: ='Input Sheet'!N75 -> 0 | M25: ='Input Sheet'!O75 ->  | O25: ='Input Sheet'!Q75 -> 217.5 | P25: ='Input Sheet'!R75 -> 1.5 | Q25: ='Input Sheet'!S75 -> 774 | R25: ='Input Sheet'!T75 -> 35 | S25: 52.5 | T25: ='Input Sheet'!V75 -> 52.5 | U25: ='Input Sheet'!W75 -> 0
A26: ='Input Sheet'!C76 -> 1M+S839522 | B26: ='Input Sheet'!D76 -> 2006 | C26: ='Input Sheet'!E76 -> COOPER | D26: ='Input Sheet'!F76 -> 94279 | E26: ='Input Sheet'!G76 -> 31.41 | F26: ='Input Sheet'!H76 -> 0.4 | G26: ='Input Sheet'!I76 -> 464 | H26: ='Input Sheet'!J76 -> 27 | I26: 10.8 | J26: ='Input Sheet'!L76 -> 90.95 | K26: ='Input Sheet'!M76 -> 1 | L26: ='Input Sheet'!N76 -> 464 | M26: ='Input Sheet'!O76 -> 27 | N26: 27 | O26: ='Input Sheet'!Q76 -> 499.5 | P26: ='Input Sheet'!R76 -> 3.7 | Q26: ='Input Sheet'!S76 -> 464 | R26: ='Input Sheet'!T76 -> 27 | S26: 99.9 | T26: ='Input Sheet'!V76 -> 137.7 | U26: ='Input Sheet'!W76 -> 0
A27: ='Input Sheet'!C77 -> 1M+S839525 | B27: ='Input Sheet'!D77 -> 2010 | C27: ='Input Sheet'!E77 -> COOPER | D27: ='Input Sheet'!F77 -> 71590 | E27: ='Input Sheet'!G77 -> 0 | F27: ='Input Sheet'!H77 -> 0 | G27: ='Input Sheet'!I77 -> 0 | H27: ='Input Sheet'!J77 ->  | J27: ='Input Sheet'!L77 -> 135 | K27: ='Input Sheet'!M77 -> 1 | L27: ='Input Sheet'!N77 -> 1278 | M27: ='Input Sheet'!O77 -> 23.5 | N27: 23.5 | O27: ='Input Sheet'!Q77 -> 0 | P27: ='Input Sheet'!R77 -> 0 | Q27: ='Input Sheet'!S77 -> 0 | R27: ='Input Sheet'!T77 ->  | T27: ='Input Sheet'!V77 -> 23.5 | U27: ='Input Sheet'!W77 -> 0
A28: ='Input Sheet'!C78 -> 1M+S839530 | B28: ='Input Sheet'!D78 -> 2011 | C28: ='Input Sheet'!E78 -> COOPER | D28: ='Input Sheet'!F78 -> 82647 | E28: ='Input Sheet'!G78 -> 0 | F28: ='Input Sheet'!H78 -> 0 | G28: ='Input Sheet'!I78 -> 0 | H28: ='Input Sheet'!J78 ->  | J28: ='Input Sheet'!L78 -> 135 | K28: ='Input Sheet'!M78 -> 1 | L28: ='Input Sheet'!N78 -> 1441 | M28: ='Input Sheet'!O78 -> 26.5 | N28: 26.5 | O28: ='Input Sheet'!Q78 -> 15 | P28: ='Input Sheet'!R78 -> 0.3 | Q28: ='Input Sheet'!S78 -> 1441 | R28: ='Input Sheet'!T78 -> 26.5 | S28: 7.95 | T28: ='Input Sheet'!V78 -> 34.45 | U28: ='Input Sheet'!W78 -> 0
A29: ='Input Sheet'!C79 -> 1M+S839531 | B29: ='Input Sheet'!D79 -> 2011 | C29: ='Input Sheet'!E79 -> COOPER | D29: ='Input Sheet'!F79 -> 41315 | E29: ='Input Sheet'!G79 -> 90.95 | F29: ='Input Sheet'!H79 -> 1 | G29: ='Input Sheet'!I79 -> 1335 | H29: ='Input Sheet'!J79 -> 25 | I29: 25 | J29: ='Input Sheet'!L79 -> 270 | K29: ='Input Sheet'!M79 -> 2 | L29: ='Input Sheet'!N79 -> 1335 | M29: ='Input Sheet'!O79 -> 25 | N29: 50 | O29: ='Input Sheet'!Q79 -> 135 | P29: ='Input Sheet'!R79 -> 1 | Q29: ='Input Sheet'!S79 -> 1335 | R29: ='Input Sheet'!T79 -> 25 | S29: 25 | T29: ='Input Sheet'!V79 -> 100 | U29: ='Input Sheet'!W79 -> 0
A30: ='Input Sheet'!C80 -> 1M+S839534 | B30: ='Input Sheet'!D80 -> 2009 | C30: ='Input Sheet'!E80 -> COOPER | D30: ='Input Sheet'!F80 -> 86824 | E30: ='Input Sheet'!G80 -> 31.41 | F30: ='Input Sheet'!H80 -> 0.4 | G30: ='Input Sheet'!I80 -> 1489 | H30: ='Input Sheet'!J80 -> 19 | I30: 7.6 | J30: ='Input Sheet'!L80 -> 0 | K30: ='Input Sheet'!M80 -> 0 | L30: ='Input Sheet'!N80 -> 0 | M30: ='Input Sheet'!O80 ->  | O30: ='Input Sheet'!Q80 -> 0 | P30: ='Input Sheet'!R80 -> 0 | Q30: ='Input Sheet'!S80 -> 0 | R30: ='Input Sheet'!T80 ->  | T30: ='Input Sheet'!V80 -> 7.6 | U30: ='Input Sheet'!W80 -> 1
A31: ='Input Sheet'!C81 -> 1M+S839535 | B31: ='Input Sheet'!D81 -> 2012 | C31: ='Input Sheet'!E81 -> COOPER | D31: ='Input Sheet'!F81 -> 43245 | E31: ='Input Sheet'!G81 -> 31.41 | F31: ='Input Sheet'!H81 -> 0.4 | G31: ='Input Sheet'!I81 -> 1335 | H31: ='Input Sheet'!J81 -> 25 | I31: 10 | J31: ='Input Sheet'!L81 -> 73.5 | K31: ='Input Sheet'!M81 -> 0.7 | L31: ='Input Sheet'!N81 -> 1335 | M31: ='Input Sheet'!O81 -> 25 | N31: 17.5 | O31: ='Input Sheet'!Q81 -> 207 | P31: ='Input Sheet'!R81 -> 1.8 | Q31: ='Input Sheet'!S81 -> 1335 | R31: ='Input Sheet'!T81 -> 25 | S31: 45 | T31: ='Input Sheet'!V81 -> 72.5 | U31: ='Input Sheet'!W81 -> 0
A32: ='Input Sheet'!C82 -> 1M+S839539 | B32: ='Input Sheet'!D82 -> 2014 | C32: ='Input Sheet'!E82 -> COOPER | D32: ='Input Sheet'!F82 -> 64860 | E32: ='Input Sheet'!G82 -> 0 | F32: ='Input Sheet'!H82 -> 0 | G32: ='Input Sheet'!I82 -> 0 | H32: ='Input Sheet'!J82 ->  | J32: ='Input Sheet'!L82 -> 0 | K32: ='Input Sheet'!M82 -> 0 | L32: ='Input Sheet'!N82 -> 0 | M32: ='Input Sheet'!O82 ->  | O32: ='Input Sheet'!Q82 -> 0 | P32: ='Input Sheet'!R82 -> 0 | Q32: ='Input Sheet'!S82 -> 0 | R32: ='Input Sheet'!T82 ->  | T32: ='Input Sheet'!V82 -> 0 | U32: ='Input Sheet'!W82 -> 0
A33: ='Input Sheet'!C83 -> 1M+S839541 | B33: ='Input Sheet'!D83 -> 2004 | C33: ='Input Sheet'!E83 -> COOPER | D33: ='Input Sheet'!F83 -> 71649 | E33: ='Input Sheet'!G83 -> 31.41 | F33: ='Input Sheet'!H83 -> 0.4 | G33: ='Input Sheet'!I83 -> 1317 | H33: ='Input Sheet'!J83 -> 27.5 | I33: 11 | J33: ='Input Sheet'!L83 -> 0 | K33: ='Input Sheet'!M83 -> 0 | L33: ='Input Sheet'!N83 -> 0 | M33: ='Input Sheet'!O83 ->  | O33: ='Input Sheet'!Q83 -> 30 | P33: ='Input Sheet'!R83 -> 0.6 | Q33: ='Input Sheet'!S83 -> 1317 | R33: ='Input Sheet'!T83 -> 27.5 | S33: 16.5 | T33: ='Input Sheet'!V83 -> 27.5 | U33: ='Input Sheet'!W83 -> 0
A34: ='Input Sheet'!C84 -> 1M+S839543 | B34: ='Input Sheet'!D84 -> 2013 | C34: ='Input Sheet'!E84 -> COOPER | D34: ='Input Sheet'!F84 -> 10470 | E34: ='Input Sheet'!G84 -> 31.41 | F34: ='Input Sheet'!H84 -> 0.4 | G34: ='Input Sheet'!I84 -> 1278 | H34: ='Input Sheet'!J84 -> 23.5 | I34: 9.4 | J34: ='Input Sheet'!L84 -> 90.95 | K34: ='Input Sheet'!M84 -> 1 | L34: ='Input Sheet'!N84 -> 1278 | M34: ='Input Sheet'!O84 -> 23.5 | N34: 23.5 | O34: ='Input Sheet'!Q84 -> 0 | P34: ='Input Sheet'!R84 -> 0 | Q34: ='Input Sheet'!S84 -> 0 | R34: ='Input Sheet'!T84 ->  | T34: ='Input Sheet'!V84 -> 32.9 | U34: ='Input Sheet'!W84 -> 0
A35: ='Input Sheet'!C85 -> 1M+S839561 | B35: ='Input Sheet'!D85 -> 2014 | C35: ='Input Sheet'!E85 -> COOPER | D35: ='Input Sheet'!F85 -> 38806 | E35: ='Input Sheet'!G85 -> 31.41 | F35: ='Input Sheet'!H85 -> 0.4 | G35: ='Input Sheet'!I85 -> 913 | H35: ='Input Sheet'!J85 -> 26.5 | I35: 10.6 | J35: ='Input Sheet'!L85 -> 161 | K35: ='Input Sheet'!M85 -> 1.4 | L35: ='Input Sheet'!N85 -> 913 | M35: ='Input Sheet'!O85 -> 26.5 | N35: 37.1 | O35: ='Input Sheet'!Q85 -> 0 | P35: ='Input Sheet'!R85 -> 0 | Q35: ='Input Sheet'!S85 -> 0 | R35: ='Input Sheet'!T85 ->  | T35: ='Input Sheet'!V85 -> 47.7 | U35: ='Input Sheet'!W85 -> 0
A36: ='Input Sheet'!C86 -> 1M+S839566 | B36: ='Input Sheet'!D86 -> 2012 | C36: ='Input Sheet'!E86 -> COOPER | D36: ='Input Sheet'!F86 -> 44729 | E36: ='Input Sheet'!G86 -> 31.41 | F36: ='Input Sheet'!H86 -> 0.4 | G36: ='Input Sheet'!I86 -> 913 | H36: ='Input Sheet'!J86 -> 26.5 | I36: 10.6 | J36: ='Input Sheet'!L86 -> 42 | K36: ='Input Sheet'!M86 -> 0.4 | L36: ='Input Sheet'!N86 -> 913 | M36: ='Input Sheet'!O86 -> 26.5 | N36: 10.6 | O36: ='Input Sheet'!Q86 -> 0 | P36: ='Input Sheet'!R86 -> 0 | Q36: ='Input Sheet'!S86 -> 0 | R36: ='Input Sheet'!T86 ->  | T36: ='Input Sheet'!V86 -> 21.2 | U36: ='Input Sheet'!W86 -> 0
A37: ='Input Sheet'!C87 -> 1M+S839573 | B37: ='Input Sheet'!D87 -> 2016 | C37: ='Input Sheet'!E87 -> COOPER | D37: ='Input Sheet'!F87 -> 33660 | E37: ='Input Sheet'!G87 -> 25 | F37: ='Input Sheet'!H87 -> 0.3 | G37: ='Input Sheet'!I87 -> 913 | H37: ='Input Sheet'!J87 -> 26.5 | I37: 7.95 | J37: ='Input Sheet'!L87 -> 119.95 | K37: ='Input Sheet'!M87 -> 2 | L37: ='Input Sheet'!N87 -> 913 | M37: ='Input Sheet'!O87 -> 26.5 | N37: 53 | O37: ='Input Sheet'!Q87 -> 75 | P37: ='Input Sheet'!R87 -> 0.9 | Q37: ='Input Sheet'!S87 -> 913 | R37: ='Input Sheet'!T87 -> 26.5 | S37: 23.85 | T37: ='Input Sheet'!V87 -> 84.8 | U37: ='Input Sheet'!W87 -> 0
A38: ='Input Sheet'!C88 -> 1M+S839229 | B38: ='Input Sheet'!D88 -> 2005 | C38: ='Input Sheet'!E88 -> COOPER | D38: ='Input Sheet'!F88 -> 157089 | E38: ='Input Sheet'!G88 -> 31.41 | F38: ='Input Sheet'!H88 -> 0.4 | G38: ='Input Sheet'!I88 -> 1278 | H38: ='Input Sheet'!J88 -> 23.5 | I38: 9.4 | J38: ='Input Sheet'!L88 -> 254 | K38: ='Input Sheet'!M88 -> 1.8 | L38: ='Input Sheet'!N88 -> 1278 | M38: ='Input Sheet'!O88 -> 23.5 | N38: 42.3 | O38: ='Input Sheet'!Q88 -> 567 | P38: ='Input Sheet'!R88 -> 4.2 | Q38: ='Input Sheet'!S88 -> 1278 | R38: ='Input Sheet'!T88 -> 23.5 | S38: 98.7 | T38: ='Input Sheet'!V88 -> 150.4 | U38: ='Input Sheet'!W88 -> 0
A39: ='Input Sheet'!C89 -> 1M+S839270 | B39: ='Input Sheet'!D89 -> 2012 | C39: ='Input Sheet'!E89 -> COOPER | D39: ='Input Sheet'!F89 -> 50884 | E39: ='Input Sheet'!G89 -> 0 | F39: ='Input Sheet'!H89 -> 0 | G39: ='Input Sheet'!I89 -> 0 | H39: ='Input Sheet'!J89 ->  | J39: ='Input Sheet'!L89 -> 0 | K39: ='Input Sheet'!M89 -> 0 | L39: ='Input Sheet'!N89 -> 0 | M39: ='Input Sheet'!O89 ->  | O39: ='Input Sheet'!Q89 -> 87 | P39: ='Input Sheet'!R89 -> 0.6 | Q39: ='Input Sheet'!S89 -> 940 | R39: ='Input Sheet'!T89 -> 31 | S39: 18.6 | T39: ='Input Sheet'!V89 -> 18.6 | U39: ='Input Sheet'!W89 -> 1
A40: ='Input Sheet'!C90 -> 1M+S839279 | B40: ='Input Sheet'!D90 -> 2012 | C40: ='Input Sheet'!E90 -> COOPER | D40: ='Input Sheet'!F90 -> 50421 | E40: ='Input Sheet'!G90 -> 0 | F40: ='Input Sheet'!H90 -> 0 | G40: ='Input Sheet'!I90 -> 0 | H40: ='Input Sheet'!J90 ->  | J40: ='Input Sheet'!L90 -> 391.5 | K40: ='Input Sheet'!M90 -> 2.7 | L40: ='Input Sheet'!N90 -> 494 | M40: ='Input Sheet'!O90 -> 31.5 | N40: 85.05 | O40: ='Input Sheet'!Q90 -> 0 | P40: ='Input Sheet'!R90 -> 0 | Q40: ='Input Sheet'!S90 -> 0 | R40: ='Input Sheet'!T90 ->  | T40: ='Input Sheet'!V90 -> 85.05 | U40: ='Input Sheet'!W90 -> 1
A41: ='Input Sheet'!C91 -> 1M+S839287 | B41: ='Input Sheet'!D91 -> 2011 | C41: ='Input Sheet'!E91 -> COOPER | D41: ='Input Sheet'!F91 -> 61709 | E41: ='Input Sheet'!G91 -> 31.41 | F41: ='Input Sheet'!H91 -> 0.4 | G41: ='Input Sheet'!I91 -> 1441 | H41: ='Input Sheet'!J91 -> 26.5 | I41: 10.6 | J41: ='Input Sheet'!L91 -> 73 | K41: ='Input Sheet'!M91 -> 0.7 | L41: ='Input Sheet'!N91 -> 1441 | M41: ='Input Sheet'!O91 -> 26.5 | N41: 18.55 | O41: ='Input Sheet'!Q91 -> 540 | P41: ='Input Sheet'!R91 -> 4 | Q41: ='Input Sheet'!S91 -> 1441 | R41: ='Input Sheet'!T91 -> 26.5 | S41: 106 | T41: ='Input Sheet'!V91 -> 135.15 | U41: ='Input Sheet'!W91 -> 0
A42: ='Input Sheet'!C92 -> 1M+S839294 | B42: ='Input Sheet'!D92 -> 2010 | C42: ='Input Sheet'!E92 -> COOPER | D42: ='Input Sheet'!F92 -> 75011 | E42: ='Input Sheet'!G92 -> 25 | F42: ='Input Sheet'!H92 -> 0.3 | G42: ='Input Sheet'!I92 -> 913 | H42: ='Input Sheet'!J92 -> 26.5 | I42: 7.95 | J42: ='Input Sheet'!L92 -> 0 | K42: ='Input Sheet'!M92 -> 0 | L42: ='Input Sheet'!N92 -> 0 | M42: ='Input Sheet'!O92 ->  | O42: ='Input Sheet'!Q92 -> 189 | P42: ='Input Sheet'!R92 -> 1.4 | Q42: ='Input Sheet'!S92 -> 913 | R42: ='Input Sheet'!T92 -> 26.5 | S42: 37.1 | T42: ='Input Sheet'!V92 -> 45.05 | U42: ='Input Sheet'!W92 -> 0
A43: ='Input Sheet'!C93 -> 1M+S839311 | B43: ='Input Sheet'!D93 -> 2015 | C43: ='Input Sheet'!E93 -> COOPER | D43: ='Input Sheet'!F93 -> 28327 | E43: ='Input Sheet'!G93 -> 0 | F43: ='Input Sheet'!H93 -> 0 | G43: ='Input Sheet'!I93 -> 0 | H43: ='Input Sheet'!J93 ->  | J43: ='Input Sheet'!L93 -> 0 | K43: ='Input Sheet'!M93 -> 0 | L43: ='Input Sheet'!N93 -> 0 | M43: ='Input Sheet'!O93 ->  | O43: ='Input Sheet'!Q93 -> 232 | P43: ='Input Sheet'!R93 -> 1.6 | Q43: ='Input Sheet'!S93 -> 1441 | R43: ='Input Sheet'!T93 -> 26.5 | S43: 42.4 | T43: ='Input Sheet'!V93 -> 42.4 | U43: ='Input Sheet'!W93 -> 0
A44: ='Input Sheet'!C94 -> 1M+S836347 | B44: ='Input Sheet'!D94 -> 2014 | C44: ='Input Sheet'!E94 -> COOPER | D44: ='Input Sheet'!F94 -> 55688 | E44: ='Input Sheet'!G94 -> 81.36 | F44: ='Input Sheet'!H94 -> 1 | G44: ='Input Sheet'!I94 -> 1335 | H44: ='Input Sheet'!J94 -> 25 | I44: 25 | J44: ='Input Sheet'!L94 -> 133.5 | K44: ='Input Sheet'!M94 -> 1.5 | L44: ='Input Sheet'!N94 -> 1335 | M44: ='Input Sheet'!O94 -> 25 | N44: 37.5 | O44: ='Input Sheet'!Q94 -> 0 | P44: ='Input Sheet'!R94 -> 0 | Q44: ='Input Sheet'!S94 -> 0 | R44: ='Input Sheet'!T94 ->  | T44: ='Input Sheet'!V94 -> 62.5 | U44: ='Input Sheet'!W94 -> 0
A45: ='Input Sheet'!C95 -> 1M+S839351 | B45: ='Input Sheet'!D95 -> 2013 | C45: ='Input Sheet'!E95 -> COOPER | D45: ='Input Sheet'!F95 -> 83420 | E45: ='Input Sheet'!G95 -> 31.41 | F45: ='Input Sheet'!H95 -> 0.4 | G45: ='Input Sheet'!I95 -> 1441 | H45: ='Input Sheet'!J95 -> 26.5 | I45: 10.6 | J45: ='Input Sheet'!L95 -> 90.95 | K45: ='Input Sheet'!M95 -> 1 | L45: ='Input Sheet'!N95 -> 1441 | M45: ='Input Sheet'!O95 -> 26.5 | N45: 26.5 | O45: ='Input Sheet'!Q95 -> 0 | P45: ='Input Sheet'!R95 -> 0 | Q45: ='Input Sheet'!S95 -> 0 | R45: ='Input Sheet'!T95 ->  | T45: ='Input Sheet'!V95 -> 37.1 | U45: ='Input Sheet'!W95 -> 0
A46: ='Input Sheet'!C96 -> 1M+S839294 | B46: ='Input Sheet'!D96 -> 2010 | C46: ='Input Sheet'!E96 -> COOPER | D46: ='Input Sheet'!F96 -> 75011 | E46: ='Input Sheet'!G96 -> 229.5 | F46: ='Input Sheet'!H96 -> 1.7 | G46: ='Input Sheet'!I96 -> 1317 | H46: ='Input Sheet'!J96 -> 27.5 | I46: 46.75 | J46: ='Input Sheet'!L96 -> 0 | K46: ='Input Sheet'!M96 -> 0 | L46: ='Input Sheet'!N96 -> 0 | M46: ='Input Sheet'!O96 ->  | O46: ='Input Sheet'!Q96 -> 864 | P46: ='Input Sheet'!R96 -> 6.4 | Q46: ='Input Sheet'!S96 -> 1317 | R46: ='Input Sheet'!T96 -> 27.5 | S46: 176 | T46: ='Input Sheet'!V96 -> 222.75 | U46: ='Input Sheet'!W96 -> 0
A47: ='Input Sheet'!C97 -> 1M+S839365 | B47: ='Input Sheet'!D97 -> 2012 | C47: ='Input Sheet'!E97 -> COOPER | D47: ='Input Sheet'!F97 -> 53536 | E47: ='Input Sheet'!G97 -> 0 | F47: ='Input Sheet'!H97 -> 0 | G47: ='Input Sheet'!I97 -> 0 | H47: ='Input Sheet'!J97 ->  | J47: ='Input Sheet'!L97 -> 217.5 | K47: ='Input Sheet'!M97 -> 1.5 | L47: ='Input Sheet'!N97 -> 1441 | M47: ='Input Sheet'!O97 -> 26.5 | N47: 39.75 | O47: ='Input Sheet'!Q97 -> 0 | P47: ='Input Sheet'!R97 -> 0 | Q47: ='Input Sheet'!S97 -> 0 | R47: ='Input Sheet'!T97 ->  | T47: ='Input Sheet'!V97 -> 39.75 | U47: ='Input Sheet'!W97 -> 1
A48: ='Input Sheet'!C98 -> 1M+S839360 | B48: ='Input Sheet'!D98 -> 2008 | C48: ='Input Sheet'!E98 -> COOPER | D48: ='Input Sheet'!F98 -> 93246 | E48: ='Input Sheet'!G98 -> 0 | F48: ='Input Sheet'!H98 -> 0 | G48: ='Input Sheet'!I98 -> 0 | H48: ='Input Sheet'!J98 ->  | J48: ='Input Sheet'!L98 -> 217.5 | K48: ='Input Sheet'!M98 -> 1.5 | L48: ='Input Sheet'!N98 -> 940 | M48: ='Input Sheet'!O98 -> 31 | N48: 46.5 | O48: ='Input Sheet'!Q98 -> 0 | P48: ='Input Sheet'!R98 -> 0 | Q48: ='Input Sheet'!S98 -> 0 | R48: ='Input Sheet'!T98 ->  | T48: ='Input Sheet'!V98 -> 46.5 | U48: ='Input Sheet'!W98 -> 1
A49: ='Input Sheet'!C99 -> 1M+S839378 | B49: ='Input Sheet'!D99 -> 2011 | C49: ='Input Sheet'!E99 -> COOPER | D49: ='Input Sheet'!F99 -> 3 | E49: ='Input Sheet'!G99 -> 0 | F49: ='Input Sheet'!H99 -> 0 | G49: ='Input Sheet'!I99 -> 0 | H49: ='Input Sheet'!J99 ->  | J49: ='Input Sheet'!L99 -> 378 | K49: ='Input Sheet'!M99 -> 2.8 | L49: ='Input Sheet'!N99 -> 940 | M49: ='Input Sheet'!O99 -> 31 | N49: 86.8 | O49: ='Input Sheet'!Q99 -> 756 | P49: ='Input Sheet'!R99 -> 5.6 | Q49: ='Input Sheet'!S99 -> 940 | R49: ='Input Sheet'!T99 -> 31 | S49: 173.6 | T49: ='Input Sheet'!V99 -> 260.4 | U49: ='Input Sheet'!W99 -> 0
A50: ='Input Sheet'!C100 -> 1M+S839408 | B50: ='Input Sheet'!D100 -> 2011 | C50: ='Input Sheet'!E100 -> COOPER | D50: ='Input Sheet'!F100 -> 51721 | E50: ='Input Sheet'!G100 -> 0 | F50: ='Input Sheet'!H100 -> 0 | G50: ='Input Sheet'!I100 -> 0 | H50: ='Input Sheet'!J100 ->  | J50: ='Input Sheet'!L100 -> 540 | K50: ='Input Sheet'!M100 -> 4 | L50: ='Input Sheet'!N100 -> 464 | M50: ='Input Sheet'!O100 -> 27 | N50: 108 | O50: ='Input Sheet'!Q100 -> 270 | P50: ='Input Sheet'!R100 -> 2 | Q50: ='Input Sheet'!S100 -> 464 | R50: ='Input Sheet'!T100 -> 27 | S50: 54 | T50: ='Input Sheet'!V100 -> 162 | U50: ='Input Sheet'!W100 -> 0
A51: ='Input Sheet'!C101 -> 1M+S839427 | B51: ='Input Sheet'!D101 -> 2007 | C51: ='Input Sheet'!E101 -> COOPER | D51: ='Input Sheet'!F101 -> 105224 | E51: ='Input Sheet'!G101 -> 0 | F51: ='Input Sheet'!H101 -> 0 | G51: ='Input Sheet'!I101 -> 0 | H51: ='Input Sheet'!J101 ->  | J51: ='Input Sheet'!L101 -> 90.95 | K51: ='Input Sheet'!M101 -> 1 | L51: ='Input Sheet'!N101 -> 1335 | M51: ='Input Sheet'!O101 -> 25 | N51: 25 | O51: ='Input Sheet'!Q101 -> 472.5 | P51: ='Input Sheet'!R101 -> 3.5 | Q51: ='Input Sheet'!S101 -> 1335 | R51: ='Input Sheet'!T101 -> 25 | S51: 87.5 | T51: ='Input Sheet'!V101 -> 112.5 | U51: ='Input Sheet'!W101 -> 0
A52: ='Input Sheet'!C102 -> 1M+S839448 | B52: ='Input Sheet'!D102 -> 2012 | C52: ='Input Sheet'!E102 -> COOPER | D52: ='Input Sheet'!F102 -> 46168 | E52: ='Input Sheet'!G102 -> 0 | F52: ='Input Sheet'!H102 -> 0 | G52: ='Input Sheet'!I102 -> 0 | H52: ='Input Sheet'!J102 ->  | J52: ='Input Sheet'!L102 -> 86.25 | K52: ='Input Sheet'!M102 -> 0.75 | L52: ='Input Sheet'!N102 -> 1335 | M52: ='Input Sheet'!O102 -> 25 | N52: 18.75 | O52: ='Input Sheet'!Q102 -> 0 | P52: ='Input Sheet'!R102 -> 0 | Q52: ='Input Sheet'!S102 -> 0 | R52: ='Input Sheet'!T102 ->  | T52: ='Input Sheet'!V102 -> 18.75 | U52: ='Input Sheet'!W102 -> 1
A53: ='Input Sheet'!C103 -> 1M+S839450 | B53: ='Input Sheet'!D103 -> 2008 | C53: ='Input Sheet'!E103 -> COOPER | D53: ='Input Sheet'!F103 -> 35155 | E53: ='Input Sheet'!G103 -> 0 | F53: ='Input Sheet'!H103 -> 0 | G53: ='Input Sheet'!I103 -> 0 | H53: ='Input Sheet'!J103 ->  | J53: ='Input Sheet'!L103 -> 90.95 | K53: ='Input Sheet'!M103 -> 0.3 | L53: ='Input Sheet'!N103 -> 774 | M53: ='Input Sheet'!O103 -> 35 | N53: 10.5 | O53: ='Input Sheet'!Q103 -> 189 | P53: ='Input Sheet'!R103 -> 1.4 | Q53: ='Input Sheet'!S103 -> 774 | R53: ='Input Sheet'!T103 -> 35 | S53: 49 | T53: ='Input Sheet'!V103 -> 59.5 | U53: ='Input Sheet'!W103 -> 0
A54: ='Input Sheet'!C104 -> 1M+S839452 | B54: ='Input Sheet'!D104 -> 2009 | C54: ='Input Sheet'!E104 -> COOPER | D54: ='Input Sheet'!F104 -> 91119 | E54: ='Input Sheet'!G104 -> 90.95 | F54: ='Input Sheet'!H104 -> 1 | G54: ='Input Sheet'!I104 -> 1489 | H54: ='Input Sheet'!J104 -> 19 | I54: 19 | J54: ='Input Sheet'!L104 -> 0 | K54: ='Input Sheet'!M104 -> 0 | L54: ='Input Sheet'!N104 -> 0 | M54: ='Input Sheet'!O104 ->  | O54: ='Input Sheet'!Q104 -> 0 | P54: ='Input Sheet'!R104 -> 0 | Q54: ='Input Sheet'!S104 -> 0 | R54: ='Input Sheet'!T104 ->  | T54: ='Input Sheet'!V104 -> 19 | U54: ='Input Sheet'!W104 -> 1
A55: ='Input Sheet'!C105 -> 1M+S839462 | B55: ='Input Sheet'!D105 -> 2011 | C55: ='Input Sheet'!E105 -> COOPER | D55: ='Input Sheet'!F105 -> 76633 | E55: ='Input Sheet'!G105 -> 0 | F55: ='Input Sheet'!H105 -> 0 | G55: ='Input Sheet'!I105 -> 0 | H55: ='Input Sheet'!J105 ->  | J55: ='Input Sheet'!L105 -> 621 | K55: ='Input Sheet'!M105 -> 4.6 | L55: ='Input Sheet'!N105 -> 464 | M55: ='Input Sheet'!O105 -> 27 | N55: 124.2 | O55: ='Input Sheet'!Q105 -> 0 | P55: ='Input Sheet'!R105 -> 0 | Q55: ='Input Sheet'!S105 -> 0 | R55: ='Input Sheet'!T105 ->  | T55: ='Input Sheet'!V105 -> 124.2 | U55: ='Input Sheet'!W105 -> 1
A56: RO's 51-100 | D56: Totals | E56: =SUM(E6:E55) -> 2019.77 | F56: =SUM(F6:F55) -> 16.3 | I56: =SUM(I6:I55) ->  | J56: =SUM(J6:J55) -> 6339.36 | K56: =SUM(K6:K55) -> 56.9 | N56: =SUM(N6:N55) ->  | O56: =SUM(O6:O55) -> 5490.5 | P56: =SUM(P6:P55) -> 41.5 | S56: =SUM(S6:S55) ->  | T56: =SUM(T6:T55) -> 3080.275 | U56: =COUNTIF(U5:U55,1) -> 12
A57: Date of Study: | E57: C Labor | J57: M Labor | O57: R Labor | T57: Total Cost of Labor | U57: One Item Repair Order
A58: Study Compiled by | E58: Labor Sales | F58: Flat Rate Hours | G58: Technician Number | H58: Pay Per FRH | I58: Labor Cost | J58: Labor Sales | K58: Flat Rate Hours | L58: Technician Number | M58: Pay Per FRH | N58: Labor Cost | O58: Labor Sales | P58: Flat Rate Hours | Q58: Technician Number | R58: Pay Per FRH | S58: Labor Cost

Sheet Summary Report
C1: Repair Order Analysis Summary Report
E3: Sales in Dollars | G3: FRH's on RO's
I4: Averages | J4: Analysis
C5: Competitive | E5: ='RO Report 1-50'!E56+'RO Report 51-100'!E56 -> 3737.81 | F5: ÷ | G5: ='RO Report 1-50'!F56+'RO Report 51-100'!F56 -> 34.2 | H5: = | I5: =IF(ISERROR(E5/G5),"",E5/G5) -> 109.2926901 | J5: FRH Average
C6: Maintenance | E6: ='RO Report 1-50'!J56+'RO Report 51-100'!J56 -> 11515.01 | F6: ÷ | G6: ='RO Report 1-50'!K56+'RO Report 51-100'!K56 -> 100.6 | H6: = | I6: =IF(ISERROR(E6/G6),"",E6/G6) -> 114.4633201 | J6: FRH Average
C7: Repair | E7: ='RO Report 1-50'!O56+'RO Report 51-100'!O56 -> 11277 | F7: ÷ | G7: ='RO Report 1-50'!P56+'RO Report 51-100'!P56 -> 84.2 | H7: = | I7: =IF(ISERROR(E7/G7),"",E7/G7) -> 133.9311164 | J7: FRH Average
C8: Totals | E8: =SUM(E5:E7) -> 26529.82 | F8: ÷ | G8: =SUM(G5:G7) -> 219 | H8: = | I8: =IF(ISERROR(E8/G8),"",E8/G8) -> 121.1407306 | J8: Customer ELR
H9: Target Labor Rate | I9: 126.5 | J9: Per FRH
C10: Total Ro's in Sample | E10: 25 | H10: Difference | I10: =IF(ISERROR(I8-I9),"",I8-I9) -> -5.359269406 | J10: Per FRH
C12: Cost of Labor
C13: Total Cost of Labor | E13: ='Input Sheet'!V106 -> 6018.075 | F13: ÷ | G13: Total Sales | H13: = | I13: =IF(ISERROR(E13/E8),"",E13/E8) -> 0.2268419085 | J13: Percent Cost of Sales
C14: Total Cost of Labor | E14: =E13 -> 6018.075 | F14: ÷ | G14: Total FRH's | H14: = | I14: =IF(ISERROR(E14/G8),"",E14/G8) -> 27.47979452 | J14: Cost per FRH
C16: Repair Order Measurements
C17: Total Labor Sales | E17: =E8 -> 26529.82 | F17: ÷ | G17: Total RO's | H17: = | I17: =IF(ISERROR(E17/E10),"",E17/E10) -> 1061.1928 | J17: Avg Labor per RO
C18: Total FRH's | E18: =G8 -> 219 | F18: ÷ | G18: Total RO's | H18: = | I18: =IF(ISERROR(E18/E10),"",E18/E10) -> 8.76 | J18: Avg FRH's per RO
C19: Menu Sales | F19: ÷ | G19: Total RO's | H19: = | J19: Percent Menu Sales
C20: Competitive FRH's | E20: =G5 -> 34.2 | F20: ÷ | G20: Total FRH's | H20: = | I20: =IF(ISERROR(E20/G8),"",(E20/G8)) -> 0.1561643836 | J20: Percent Competitive
C21: Maintenance FRH's | E21: =G6 -> 100.6 | F21: ÷ | G21: Total FRH's | H21: = | I21: =IF(ISERROR(E21/G8),"",(E21/G8)) -> 0.4593607306 | J21: Percent Maintenance
C22: Repair FRH' | E22: =G7 -> 84.2 | F22: ÷ | G22: Total FRH's | H22: = | I22: =IF(ISERROR(E22/G8),"",E22/G8) -> 0.3844748858 | J22: Percent Repair
C23: One item RO's | E23: ='RO Report 1-50'!U56+'RO Report 51-100'!U56 -> 26 | F23: ÷ | G23: Total RO's | H23: = | I23: =IF(ISERROR(E23/E10),"",E23/E10) -> 1.04 | J23: Percent One Item RO
C25: Model Year Analysis
C26: =YEAR(Title!K17)+1 -> 2018 | D26: =YEAR(Title!K17) -> 2017 | E26: =YEAR(Title!K17)-1 -> 2016 | G26: =YEAR(Title!K17)-2 -> 2015 | H26: =YEAR(Title!K17)-3 -> 2014 | J26: =YEAR(Title!K17)-4 -> 2013 | K26: Older | L26: Total
C27: =COUNTIF('Input Sheet'!D6:D105,C26) -> 0 | D27: =COUNTIF('Input Sheet'!D6:D105,D26) -> 3 | E27: =COUNTIF('Input Sheet'!D6:D105,E26) -> 4 | G27: =COUNTIF('Input Sheet'!D6:D105,G26) -> 8 | H27: =COUNTIF('Input Sheet'!D6:D105,H26) -> 8 | J27: =COUNTIF('Input Sheet'!D6:D105,J26) -> 15 | K27: =L27-(SUM(C27:J27)) -> 62 | L27: =DCOUNTA('Input Sheet'!C4:F105,"Year",'Input Sheet'!D4:D105) -> 100
C28: =IF(ISERROR(C27/L27),"",C27/L27) -> 0 | D28: =IF(ISERROR(D27/L27),"",D27/L27) -> 0.03 | E28: =IF(ISERROR(E27/L27),"",E27/L27) -> 0.04 | G28: =IF(ISERROR(G27/L27),"",G27/L27) -> 0.08 | H28: =IF(ISERROR(H27/L27),"",H27/L27) -> 0.08 | J28: =IF(ISERROR(J27/L27),"",J27/L27) -> 0.15 | K28: =IF(ISERROR(K27/L27),"",K27/L27) -> 0.62
